Workbook

Sheet Maquette
A2: VARIABLES A SAISIR
A3: Année | B3: 2024
A4: Budget | B4: initial
A5: N° budget

Sheet récap
B1: EPSCP - synthèse des documents budgétaires
B4: Intitulé du tableau | C4: Périmètre | D4: Soumission au CA | E4: Contrôles entre tableaux
A6: 1 | B6: Tableau des emplois | C6: Budget de l'établissement | D6: Pour vote | E6: =IF('1-tab emplois_ETAB'!F20<>"","Problème dotation < emplois ETAB","OK") -> OK
A7: 2 | B7: Tableau des autorisations budgétaires | C7: Budget établissement principal | D7: Pour vote. Pour les SIE, le vote relève du CA de l'établissement de rattachement | E7: =IF((IF(AND('2-tab_aut_budg_UBS'!E32="",'2-tab_aut_budg_UBS'!F32="",'2-tab_aut_budg_UBS'!E33="",'2-tab_aut_budg_UBS'!F33="",'2-tab_aut_budg_UBS'!E34="",'2-tab_aut_budg_UBS'!F34="",'2-tab_aut_budg_UBS'!N32="",'2-tab_aut_budg_UBS'!O32="",'2-tab_aut_budg_UBS'!N33="",'2-tab_aut_budg_UBS'!O33="",'2-tab_aut_budg_UBS'!N34="",'2-tab_aut_budg_UBS'!O34="",'2-tab_aut_budg_UBS'!N35="",'2-tab_aut_budg_UBS'!O35="",'2-tab_aut_budg_UBS'!L32=""),"","Problème(s) avec tableau 3 ETAB")&" "&IF('2-tab_aut_budg_UBS'!L33="","","Problème(s) avec tableau 4")&" "&IF(AND('2-tab_aut_budg_UBS'!G32="",'2-tab_aut_budg_UBS'!G33="",'2-tab_aut_budg_UBS'!G34="",'2-tab_aut_budg_UBS'!G35="",'2-tab_aut_budg_UBS'!H32="",'2-tab_aut_budg_UBS'!H33="",'2-tab_aut_budg_UBS'!H34="",'2-tab_aut_budg_UBS'!H35="",'6-tab CR_TF_UBS'!N46=""),"","Problème(s) avec tableau 6 ETAB")&" "&IF(AND('2-tab_aut_budg_UBS'!I32="",'2-tab_aut_budg_UBS'!I33="",'2-tab_aut_budg_UBS'!I34="",'2-tab_aut_budg_UBS'!P32="",'2-tab_aut_budg_UBS'!P33="",'2-tab_aut_budg_UBS'!P34="",'2-tab_aut_budg_UBS'!P35="",'2-tab_aut_budg_UBS'!P36="",'2-tab_aut_budg_UBS'!Q32="",'2-tab_aut_budg_UBS'!Q33="",'2-tab_aut_budg_UBS'!Q34=""),"","Problème(s) avec tableau 7")&" "&IF(AND('2-tab_aut_budg_UBS'!R32="",'2-tab_aut_budg_UBS'!R33="",'2-tab_aut_budg_UBS'!R34=""),"","Problème(s) avec tableau 8 ETAB"))=" ","OK",(IF(AND('2-tab_aut_budg_UBS'!E32="",'2-tab_aut_budg_UBS'!F32="",'2-tab_aut_budg_UBS'!E33="",'2-tab_aut_budg_UBS'!F33="",'2-tab_aut_budg_UBS'!E34="",'2-tab_aut_budg_UBS'!F34="",'2-tab_aut_budg_UBS'!N32="",'2-tab_aut_budg_UBS'!O32="",'2-tab_aut_budg_UBS'!N33="",'2-tab_aut_budg_UBS'!O33="",'2-tab_aut_budg_UBS'!N34="",'2-tab_aut_budg_UBS'!O34="",'2-tab_aut_budg_UBS'!N35="",'2-tab_aut_budg_UBS'!O35="",'2-tab_aut_budg_UBS'!L32=""),"","Problème(s) avec tableau 3 ETAB")&" "&IF('2-tab_aut_budg_UBS'!L33="","","Problème(s) avec tableau 4")&" "&IF(AND('2-tab_aut_budg_UBS'!G32="",'2-tab_aut_budg_UBS'!G33="",'2-tab_aut_budg_UBS'!G34="",'2-tab_aut_budg_UBS'!G35="",'2-tab_aut_budg_UBS'!H32="",'2-tab_aut_budg_UBS'!H33="",'2-tab_aut_budg_UBS'!H34="",'2-tab_aut_budg_UBS'!H35="",'6-tab CR_TF_UBS'!N46=""),"","Problème(s) avec tableau 6 ETAB")&" "&IF(AND('2-tab_aut_budg_UBS'!I32="",'2-tab_aut_budg_UBS'!I33="",'2-tab_aut_budg_UBS'!I34="",'2-tab_aut_budg_UBS'!P32="",'2-tab_aut_budg_UBS'!P33="",'2-tab_aut_budg_UBS'!P34="",'2-tab_aut_budg_UBS'!P35="",'2-tab_aut_budg_UBS'!P36="",'2-tab_aut_budg_UBS'!Q32="",'2-tab_aut_budg_UBS'!Q33="",'2-tab_aut_budg_UBS'!Q34=""),"","Problème(s) avec tableau 7")&" "&IF(AND('2-tab_aut_budg_UBS'!R32="",'2-tab_aut_budg_UBS'!R33="",'2-tab_aut_budg_UBS'!R34=""),"","Problème(s) avec tableau 8 ETAB"))) -> OK
A8: 3 | B8: Tableau des dépenses par destination et recettes par origine | C8: Budget établissement principal | D8: Pour information | E8: =IF((IF(COUNTA(CONTROLES_TAB3_ETAB)-COUNTIF(CONTROLES_TAB3_1_ETAB,"")-COUNTIF(CONTROLES_TAB3_2_ETAB,"")-COUNTIF(CONTROLES_TAB3_3_ETAB,"")-COUNTIF(CONTROLES_TAB3_4_ETAB,"")=0,"","Problème(s) avec tableau 2 ETAB")&" "&IF(AND('3-tab_destination_origine_UBS'!M52="",'3-tab_destination_origine_UBS'!L30=""),"","Problème(s) avec tableau 4")&" "&IF(AND('3-tab_destination_origine_UBS'!H54="",'3-tab_destination_origine_UBS'!I54="",'3-tab_destination_origine_UBS'!J54=""),"","Problème(s) avec tableau 8 ETAB"))=" ","OK",(IF(COUNTA(CONTROLES_TAB3_ETAB)-COUNTIF(CONTROLES_TAB3_1_ETAB,"")-COUNTIF(CONTROLES_TAB3_2_ETAB,"")-COUNTIF(CONTROLES_TAB3_3_ETAB,"")-COUNTIF(CONTROLES_TAB3_4_ETAB,"")=0,"","Problème(s) avec tableau 2 ETAB")&" "&IF(AND('3-tab_destination_origine_UBS'!M52="",'3-tab_destination_origine_UBS'!L30=""),"","Problème(s) avec tableau 4")&" "&IF(AND('3-tab_destination_origine_UBS'!H54="",'3-tab_destination_origine_UBS'!I54="",'3-tab_destination_origine_UBS'!J54=""),"","Problème(s) avec tableau 8 ETAB"))) -> OK
A9: 4 | B9: Tableau d'équilibre financier | C9: Budget établissement principal | D9: Pour vote | E9: OK
A10: 5 | B10: Tableau des opération pour compte de tiers | C10: Budget établissement principal | D10: Pour information | E10: =IF((IF(AND('5-tab compte de tiers_UBS'!E27="",'5-tab compte de tiers_UBS'!F27=""),"","Problème(s) avec tableau 4"))="","OK",(IF(AND('5-tab compte de tiers_UBS'!E27="",'5-tab compte de tiers_UBS'!F27=""),"","Problème(s) avec tableau 4"))) -> OK
A11: 6 | B11: Tableau de situation patrimoniale (tableau compte de résultat - tableau de financement) | C11: Budget établissement principal | D11: Pour vote | E11: OK
A12: 7 | B12: Tableau présentant le plan de trésorerie | C12: Budget établissement principal | D12: Pour information | E12: =IF((IF(AND('7-tab Plan_tréso_UBS'!P10="",'7-tab Plan_tréso_UBS'!P11="",'7-tab Plan_tréso_UBS'!P12="",'7-tab Plan_tréso_UBS'!P13="",'7-tab Plan_tréso_UBS'!P14="",'7-tab Plan_tréso_UBS'!P16="",'7-tab Plan_tréso_UBS'!P17="",'7-tab Plan_tréso_UBS'!P18="",'7-tab Plan_tréso_UBS'!P30="",'7-tab Plan_tréso_UBS'!P31="",'7-tab Plan_tréso_UBS'!P33=""),"","Problème(s) avec tableau 2 ETAB")&" "&IF(AND('7-tab Plan_tréso_UBS'!P19="",'7-tab Plan_tréso_UBS'!P23="",'7-tab Plan_tréso_UBS'!P39="",'7-tab Plan_tréso_UBS'!P43="",'7-tab Plan_tréso_UBS'!P48=""),"","Problème(s) avec tableau 4")&" "&IF('7-tab Plan_tréso_UBS'!P49="","","Problème avec tableau 6 ETAB")&" "&IF(AND('7-tab Plan_tréso_UBS'!Q16="",'7-tab Plan_tréso_UBS'!Q17="",'7-tab Plan_tréso_UBS'!Q18="",'7-tab Plan_tréso_UBS'!Q35="",'7-tab Plan_tréso_UBS'!Q36="",'7-tab Plan_tréso_UBS'!Q38=""),"","Problème(s) avec tableau 8 ETAB"))=" ","OK",(IF(AND('7-tab Plan_tréso_UBS'!P10="",'7-tab Plan_tréso_UBS'!P11="",'7-tab Plan_tréso_UBS'!P12="",'7-tab Plan_tréso_UBS'!P13="",'7-tab Plan_tréso_UBS'!P14="",'7-tab Plan_tréso_UBS'!P16="",'7-tab Plan_tréso_UBS'!P17="",'7-tab Plan_tréso_UBS'!P18="",'7-tab Plan_tréso_UBS'!P30="",'7-tab Plan_tréso_UBS'!P31="",'7-tab Plan_tréso_UBS'!P33=""),"","Problème(s) avec tableau 2 ETAB")&" "&IF(AND('7-tab Plan_tréso_UBS'!P19="",'7-tab Plan_tréso_UBS'!P23="",'7-tab Plan_tréso_UBS'!P39="",'7-tab Plan_tréso_UBS'!P43="",'7-tab Plan_tréso_UBS'!P48=""),"","Problème(s) avec tableau 4")&" "&IF('7-tab Plan_tréso_UBS'!P49="","","Problème avec tableau 6 ETAB")&" "&IF(AND('7-tab Plan_tréso_UBS'!Q16="",'7-tab Plan_tréso_UBS'!Q17="",'7-tab Plan_tréso_UBS'!Q18="",'7-tab Plan_tréso_UBS'!Q35="",'7-tab Plan_tréso_UBS'!Q36="",'7-tab Plan_tréso_UBS'!Q38=""),"","Problème(s) avec tableau 8 ETAB"))) -> OK
A13: 8 | B13: Tableau des opérations liées aux recettes fléchées | C13: Budget établissement principal | D13: Pour information | E13: =IF((IF(AND('8-tab recettes_fléchées_UBS'!H13="",'8-tab recettes_fléchées_UBS'!H14="",'8-tab recettes_fléchées_UBS'!H15=""),"","Problème(s) avec tableau 2 ETAB")&" "&IF(AND('8-tab recettes_fléchées_UBS'!I13="",'8-tab recettes_fléchées_UBS'!I14="",'8-tab recettes_fléchées_UBS'!I15=""),"","Problème(s) avec tableau 3 ETAB")&" "&IF('8-tab recettes_fléchées_UBS'!D31="","","Problème avec tableau 4")&" "&IF(AND('8-tab recettes_fléchées_UBS'!J13="",'8-tab recettes_fléchées_UBS'!J14="",'8-tab recettes_fléchées_UBS'!J15="",'8-tab recettes_fléchées_UBS'!H19="",'8-tab recettes_fléchées_UBS'!H21="",'8-tab recettes_fléchées_UBS'!H24=""),"","Problème(s) avec tableau 7"))=" ","OK",(IF(AND('8-tab recettes_fléchées_UBS'!H13="",'8-tab recettes_fléchées_UBS'!H14="",'8-tab recettes_fléchées_UBS'!H15=""),"","Problème(s) avec tableau 2 ETAB")&" "&IF(AND('8-tab recettes_fléchées_UBS'!I13="",'8-tab recettes_fléchées_UBS'!I14="",'8-tab recettes_fléchées_UBS'!I15=""),"","Problème(s) avec tableau 3 ETAB")&" "&IF('8-tab recettes_fléchées_UBS'!D31="","","Problème avec tableau 4")&" "&IF(AND('8-tab recettes_fléchées_UBS'!J13="",'8-tab recettes_fléchées_UBS'!J14="",'8-tab recettes_fléchées_UBS'!J15="",'8-tab recettes_fléchées_UBS'!H19="",'8-tab recettes_fléchées_UBS'!H21="",'8-tab recettes_fléchées_UBS'!H24=""),"","Problème(s) avec tableau 7"))) -> OK
A14: 9 | B14: Tableau des opérations pluriannuelles | C14: Budget de l'établissement | D14: Pour vote
A15: 10 | B15: Tableau détaillé des opérations pluriannuelles et programmation | C15: Budget de l'établissement | D15: Pour information
A16: 11 | B16: Tableau retraçant les moyens des unités mixtes de recherche | C16: Budget établissement principal | D16: Pour information
A17: Annexe 5 | B17: Tableau de synthèse | C17: Budget établissement principal | E17: OK
A18: Annexe 14 | B18: Plan d'actions achats prévisionnel | C18: Budget de l'établissement
A19: Annexe 15 | B19: Annexe immobilière | C19: Budget de l'établissement

Sheet TS MESR
A1: UBS | C1: =IF(Maquette!B4="initial",CONCATENATE("Budget ",Maquette!B4," ",Maquette!B3),CONCATENATE("Budget rectificatif ",Maquette!B5," ",Maquette!B3)) -> Budget initial 2024
C2: budget agrégé | E2: budget établissement
C3: hors SIE | E3: avec SIE
A5: T6 | B5: résultat net comptable | C5: ='6-tab CR_TF_UBS'!F14-'6-tab CR_TF_UBS'!L14 -> -1178667.27 | E5: ='6-tab CR_TF_UBS'!F14-'6-tab CR_TF_UBS'!L14 -> -1178667.27 | G5: onglet "6-tab CR_TF_ETAB" : cellule F 14 (si perte) ou cellule L 14 (si bénéfice)
A6: T6 | B6: CAF | C6: ='6-tab CR_TF_UBS'!F28 -> 1399083.73 | E6: ='6-tab CR_TF_UBS'!F28 -> 1399083.73 | G6: onglet "6-tab CR_TF_ETAB" : cellule F 28
A7: T6 | B7: Variation FDR | C7: ='6-tab CR_TF_UBS'!L46 -> -2848427 | E7: ='6-tab CR_TF_UBS'!L46 -> -2848427 | G7: onglet "6-tab CR_TF_ETAB" : cellule L 46
A8: T6 | B8: FDR | C8: ='6-tab CR_TF_UBS'!L49 -> 6999547.65 | E8: ='6-tab CR_TF_UBS'!L49 -> 6999547.65 | G8: onglet "6-tab CR_TF_ETAB" : cellule L 49
A10: T4 | B10: variation de la trésorerie | C10: ='6-tab CR_TF_UBS'!L48 -> -3691992.07 | E10: ='6-tab CR_TF_UBS'!L48 -> -3691992.07 | G10: onglet "6-tab CR_TF_ETAB" : cellule L 48
A11: T6 | B11: trésorerie | C11: ='6-tab CR_TF_UBS'!L51 -> 7316175.6 | E11: ='6-tab CR_TF_UBS'!L51 -> 7316175.6 | G11: onglet "6-tab CR_TF_ETAB" : cellule L 51
A13: T6 | B13: produits | C13: ='6-tab CR_TF_UBS'!L13 -> 107541175.5 | E13: ='6-tab CR_TF_UBS'!L13 -> 107541175.5 | G13: onglet "6-tab CR_TF_ETAB" : cellule L 13
A14: T6 | B14: produits encaissables | C14: ='6-tab CR_TF_UBS'!L13+'6-tab CR_TF_UBS'!F24 -> 103146100.5 | E14: ='6-tab CR_TF_UBS'!L13+'6-tab CR_TF_UBS'!F24 -> 103146100.5 | G14: onglet "6-tab CR_TF_ETAB" : cellule L 13 + cellule F 24
A15: T2 | B15: SCSP | C15: ='2-tab_aut_budg_UBS'!R12 -> 71010666 | E15: ='2-tab_aut_budg_UBS'!R12 -> 71010666 | G15: onglet "2-tab_aut_budg_ETAB" cellule R 12
A17: T6 | B17: charges de fonctionnement décaissables | C17: ='6-tab CR_TF_UBS'!F13-'6-tab CR_TF_UBS'!F23 -> 101747016.8 | E17: ='6-tab CR_TF_UBS'!F13-'6-tab CR_TF_UBS'!F23 -> 101747016.8 | G17: onglet "6-tab CR_TF_ETAB" : cellule F 13 - cellule F 23
A18: T6 | B18: charges de personnels | C18: ='6-tab CR_TF_UBS'!F9 -> 84644197.43 | E18: ='6-tab CR_TF_UBS'!F9 -> 84644197.43 | G18: onglet "6-tab CR_TF_ETAB" : cellule F 9
A20: T6 | B20: emplois hors IAF | C20: ='6-tab CR_TF_UBS'!F36 -> 6196469.38 | E20: ='6-tab CR_TF_UBS'!F36 -> 6196469.38 | G20: onglet "6-tab CR_TF_ETAB" : cellule F 36 (attention fusion cellules F36/F37/F38)
A22: T2 | B22: solde budgétaire | C22: ='2-tab_aut_budg_AGR'!L30-'2-tab_aut_budg_AGR'!R30 -> 0 | E22: ='2-tab_aut_budg_UBS'!L30-'2-tab_aut_budg_UBS'!R30 -> -3471756.07 | G22: onglet "2-tab_aut_budg_ETAB" cellule R 30 (si déficit) ou cellule L 30 (si excédent)
A23: T2 | B23: recettes (encaissements) | C23: ='2-tab_aut_budg_AGR'!R28 -> 0 | E23: ='2-tab_aut_budg_UBS'!R28 -> 104186031.1 | G23: onglet "2-tab_aut_budg_ETAB" cellule R 28
A24: T2 | B24: autorisations d'engagements | C24: ='2-tab_aut_budg_AGR'!K28 -> 0 | E24: ='2-tab_aut_budg_UBS'!K28 -> 108598343.7 | G24: onglet "2-tab_aut_budg_ETAB" cellule K 28
A26: T9 | B26: restes à payer sur AE consommées en fin d'année n (CP) | E26: ='9-tab op_pluriannuelles_UBS'!Q34 -> 2312493.82 | G26: onglet "9-tab op_pluriannuelles_ETAB" cellule O 27
A27: T9 | B27: restes à encaisser (année n+1 et suivantes) | E27: ='9-tab op_pluriannuelles_UBS'!J67 -> 11321392.2 | G27: onglet "9-tab op_pluriannuelles_ETAB" cellule H 54
A29: synthèse | B29: niveau final des restes à payer | E29: ='Annexe Synthèse_UBS'!H52 -> 940556.56 | G29: onglet "Annexe Synthèse_ETAB" cellule H 52
A30: synthèse | B30: niveau final de la trésorerie fléchée | E30: ='Annexe Synthèse_UBS'!H59 -> 650639.2 | G30: onglet "Annexe Synthèse_ETAB" cellule H 59

Sheet Indicateurs
A1: UBS | C1: =IF(Maquette!B4="initial",CONCATENATE("BI ",Maquette!B3),CONCATENATE("Budget rectificatif ",Maquette!B3," ",Maquette!B5)) -> BI 2024
A3: plafond Etat | C3: ='1-tab emplois_ETAB'!F19 -> 835.5 | E3: tableau 1 : ligne 19
A4: plafond ressources propres | C4: ='1-tab emplois_ETAB'!K19 -> 290 | E4: tableau 1 : ligne 19
A5: Total ETPT OREMS | C5: =C3+C4 -> 1125.5 | E5: tableau 1 : ligne 19
A7: Plafond Etat notifié MESR | C7: ='1-tab emplois_ETAB'!F19 -> 835.5
A9: dépenses de personnels (64 + 631-632-633) | C9: ='6-tab CR_TF_UBS'!F9 -> 84644197.43 | E9: onglet "6-tab CR_TF_ETAB" : cellule F9
A10: MS OREMS
A12: dont rémunérations principales (64111)
A14: dont cours complémentaires OREMS
A15: poids CC/MS OREMS
A17: masse salariale notifiée MESR
A19: masse salariale rémunérée hors SCSP
A20: % masse salariale rémunérée hors SCSP
A22: dépenses totales section de fct | C22: ='6-tab CR_TF_UBS'!F13 -> 108719842.8 | E22: onglet "6-tab CR_TF_ETAB" : cellule F 13
A23: % masse salariale sur total classe 6 | C23: =IF(C22=0,0,C9/C22) -> 0.7785533465 | E23: = ligne 9 / ligne 22
A25: dépenses de fonctionnement (section de fct - MS) | C25: =C22-C9 -> 24075645.35 | E25: = ligne 22 - ligne 9
A26: % fonctionnement sur total classe 6 | C26: =IF(C22=0,0,C25/C22) -> 0.2214466535 | E26: = ligne 25 / ligne 22
A27: vérif MS + fct | C27: =C23+C26 -> 1 | E27: = ligne 23 + ligne 26
A29: dépenses décaissables section de fct | C29: ='6-tab CR_TF_UBS'!F13-'6-tab CR_TF_UBS'!F23 -> 101747016.8 | E29: onglet "6-tab CR_TF_ETAB" : cellule F 13 - cellule F 23 | G29: =C29/360 -> 282630.6022
A30: % masse salariale sur dépenses décaissables | C30: =IF(C29=0,0,C9/C29) -> 0.831908395 | E30: = ligne 9 / ligne22
A32: dépenses d'investissements | C32: ='6-tab CR_TF_UBS'!F36 -> 6196469.38 | E32: onglet "6-tab CR_TF_ETAB" : cellule F36 (attention fusion cellules F36/F37/F38)
A34: SCSP brute notifiée | E34: sans objet
A35: le
A36: mise en réserve
A37: % age de la mise en réserve
A38: mobilisation fonds de roulement
A39: SCSP nette
A40: dont masse salariale
A41: %age masse salariale
A42: dont fonctionnement
A43: %age fonctionnement
A45: Poids de la SCSP sur les recettes encaissables | C45: =IF(C49=0,0,C39/C49) -> 0
A46: moyenne nationale 2013 : 83,6% rapport IGF IGAENR mars 2015
A47: recettes totales | C47: ='6-tab CR_TF_UBS'!L13 -> 107541175.5 | E47: onglet "6-tab CR_TF_ETAB" : cellule L 13
A49: recettes encaissables | C49: ='6-tab CR_TF_UBS'!L13+'6-tab CR_TF_UBS'!F24 -> 103146100.5 | E49: onglet "6-tab CR_TF_ETAB" : cellule L 13 + cellule F 24
A50: % masse salariale sur recettes enc. Ratio MESR 81_83% | C50: =IF(C49=0,0,C9/C49) -> 0.8206243087 | E50: =ligne 13 / ligne 54
E51: =CONCATENATE("si % inférieur à ",F51*100," %") -> si % inférieur à 80 % | F51: 0.8
A52: ressources propres (cl.7 -77 -78) | E52: =CONCATENATE("si % entre ",F51*100," et ",F52*100," %") -> si % entre 80 et 83 % | F52: 0.83
A53: % masse salariale sur ressources propres (notion CRB) | E53: =CONCATENATE("si % supérieur à ",F52*100," %") -> si % supérieur à 83 %
A55: recettes d'investissements | C55: ='6-tab CR_TF_UBS'!L40-'6-tab CR_TF_UBS'!L35 -> 1948958.65 | E55: onglet "6-tab CR_TF_ETAB" : cellule L 40 - cellule L 35
A56: %investissements financés par subventions | C56: =IF(C32=0,0,C55/C32) -> 0.3145272784 | E56: = ligne 55 / ligne 32
A57: % invsetissements financés par la CAF | C57: =IF(C32=0,0,C66/C32) -> 0.2257872418 | E57: = ligne 66 / ligne 32
A59: solde budgétaire (à compter de 2016) | C59: ='2-tab_aut_budg_UBS'!L30-'2-tab_aut_budg_UBS'!R30 -> -3471756.07 | E59: onglet "2-tab_aut_budg_ETAB" : cellule R 30 (si déficit) ou cellule L 30 (si excédent)
A61: résultat net comptable | C61: ='6-tab CR_TF_UBS'!F14-'6-tab CR_TF_UBS'!L14 -> -1178667.27 | E61: onglet "6-tab CR_TF_ETAB" : cellule L 14 (si perte) ou cellule F 14 (si bénéfice)
A63: variation FDR | C63: ='6-tab CR_TF_UBS'!L46 -> -2848427 | E63: onglet "6-tab CR_TF_ETAB" : cellule L 46
A64: vérif
A66: CAF/IAF | C66: ='6-tab CR_TF_UBS'!F28 -> 1399083.73 | E66: onglet "6-tab CR_TF_ETAB" : cellule F 28
A68: EBE
A70: FDR | C70: ='6-tab CR_TF_UBS'!L49 -> 6999547.65 | E70: onglet "6-tab CR_TF_ETAB" : cellule L 49
A71: FDR en jours de dépenses décaissables | C71: =IF(C29=0,0,C70*360/C29) -> 24.76571042 | E71: =CONCATENATE("si inférieur à ",F71," jours") -> si inférieur à 20 jours | F71: 20
E72: =CONCATENATE("si supérieur à ",F72," jours") -> si supérieur à 30 jours | F72: 30
A73: TRESORERIE | C73: ='6-tab CR_TF_UBS'!L51 -> 7316175.6 | E73: onglet "6-tab CR_TF_ETAB" : cellule L 51
A74: TRESORERIE en jours de dépenses décaissables | C74: =IF(C29=0,0,C73*360/C29) -> 25.88599941 | E74: =CONCATENATE("si inférieur à ",F74," jours") -> si inférieur à 30 jours | F74: 30
E75: =CONCATENATE("si supérieur à ",F75," jours") -> si supérieur à 31 jours | F75: 31
A76: BFR | C76: =C70-C73 -> -316627.95 | E76: = ligne 70 - ligne 73

Sheet 1-tab emplois_ETAB
B1: Tableau 1 - Université de Bretagne Sud (0561718N) - Etablissement principal + Fondation
B2: ="Tableau des emplois présenté par l’établissement à l’appui du budget "&Maquette!B4&" "&Maquette!B5&" "&Maquette!B3 -> Tableau des emplois présenté par l’établissement à l’appui du budget initial 2024
B4: POUR VOTE DE L'ORGANE DÉLIBÉRANT
G5: (A) | L5: (B) | P5: ( C ) = (A) + (B)
F6: Emplois sous plafond Etat * | K6: Emplois financés hors SCSP | P6: Global
B7: Catégories d'emplois | C7: Nature des emplois | F7: En ETPT | K7: En ETPT
B8: Enseignants, enseignants-chercheurs, chercheurs | C8: Permanents | D8: Titulaires | F8: 383 | N8: 0 | P8: =F8 -> 383
D9: CDI | F9: FDF | K9: 9 | P9: =F9+K9 -> 
C10: Non permanents | D10: CDD | F10: 77.5 | K10: 92 | P10: =F10+K10 -> 169.5
B11: S/total EC | F11: =SUM(F8:I10) -> 460.5 | K11: =SUM(K9:N10) -> 101 | P11: =SUM(P8:P10) -> 
B13: Elèves fonctionnaires stagiaires des écoles nationales supérieures (ENS) | P13: =F13 -> 0
B15: BIATSS (personnels de bibliothèques, ingénieurs, administratifs, techniques et de service) | C15: Permanents | D15: Titulaires | F15: 287 | P15: =F15 -> 287
D16: CDI | F16: 26 | K16: 19 | P16: =K16+F16 -> 45
C17: Non permanents | D17: CDD | F17: 62 | K17: 170 | P17: =K17+F17 -> 232
B18: S/total Biatss | F18: =SUM(F15:I17) -> 375 | K18: =SUM(K16:N17) -> 189 | P18: =SUM(P15:P17) -> 564
B19: Totaux | F19: =F11+F13+F18 -> 835.5 | J19: (1) | K19: =K11+K18 -> 290 | P19: =P11+P13+P18 -> 
F20: =IF(F19>F21,"! Nombre total d'emplois sous plafond > à la notification de l'Etat","") ->  | P20: Plafond global des emplois voté par le CA ** | Q20: (2)
B21: Rappel du plafond des emplois fixé par l'Etat | F21: 843 | J21: (3)
B22: Note sur les modalités de renseignement du tableau
B23: Ce tableau doit être annexé au budget de l'établissement et, en cas de modification, aux budgets rectificatifs. Les chiffres qu'il contient doivent être exprimés en équivalents temps plein travaillés (ETPT). Le guide de décompte des emplois élaboré par la DAF et la DGESIP précise les régles de décompte des emplois en ETPT en fonction des catégories de personnel.
B24: Seul est soumis au vote du conseil d'administration le plafond global des emplois (case annotée (2))
B25: Le nombre total d'emplois sous plafond Etat (case annotée (1)) ne peut être supérieur au plafond des emplois Etat qui a été notifié à l'établissement et rappelé en case (3)
B26: * : cf. article R719-54 du code de l'éducation : "plafond d'emplois fixé par l'État relatif aux emplois financés par l'État" ** : cf. article R719-54 du code de l'éducation : "plafond d'autorisation de l'ensemble des emplois rémunérés par l'établissement"

Sheet 2-tab_aut_budg_UBS
B1: Tableau 2 - Université de Bretagne Sud (0561718N) : Etablissement principal
B2: ="Autorisations budgétaires - Budget consolidé "&Maquette!B4&" "&Maquette!B5&" "&Maquette!B3 -> Autorisations budgétaires - Budget consolidé initial 2024
B5: POUR VOTE DE L'ORGANE DÉLIBÉRANT
B8: Dépenses | N8: Recettes
C9: Exécution N-1: BR2/2023 | E9: Budget initial (a) | G9: Nouveau BR | I9: Somme des BR (yc nouveau BR) (b) | K9: TOTAL : dernier budget modifié (c) = (a) + (b) | N9: Exécution N-1: BR2/2023 | O9: Budget initial (d) | P9: Nouveau BR | Q9: Somme des BR (yc nouveau BR) (e) | R9: TOTAL : dernier budget modifié (f) = (d) + (e)
C10: AE | D10: CP | E10: AE | F10: CP | G10: AE | H10: CP | I10: AE | J10: CP | K10: AE | L10: CP | N10: Montants | O10: Montants | P10: Montants | Q10: Montants | R10: Montants
B11: Personnel | C11: 80423681.91 | D11: 80423681.91 | E11: 85557956.43 | F11: 85557956.43 | K11: =E11+I11 -> 85557956.43 | L11: =F11+J11 -> 85557956.43 | N11: =SUM(N12:N16) -> 101415025.9 | O11: =SUM(O12:O16) -> 103305955.1 | P11: =SUM(P12:P16) -> 0 | Q11: 0 | R11: =O11+Q11 -> 103305955.1 | S11: Recettes globalisées
B12: dont contributions employeur au CAS Pension | C12: 20016600 | D12: 20016600 | E12: 21043747 | F12: 21043747 | K12: =E12+I12 -> 21043747 | L12: =F12+J12 -> 21043747 | N12: 70171179 | O12: 71010666 | R12: 71010666 | S12: Subvention pour charges de service public
C13: 0 | D13: 0 | K13: 0 | L13: 0 | N13: 3349367.25 | O13: 2924258.45 | R13: 2924258.45 | S13: Autres financements de l'Etat
C14: 0 | D14: 0 | K14: 0 | L14: 0 | N14: 681352.61 | O14: 612900 | R14: 612900 | S14: Fiscalité affectée
B15: Fonctionnement et intervention | C15: 16206200.12 | D15: 15509039.5 | E15: 16029605.91 | F15: 15903361.35 | K15: 16029605.91 | L15: 15903361.35 | N15: 9524472.74 | O15: 7664812.96 | R15: 7664812.96 | S15: Autres financements publics
C16: 0 | D16: 0 | K16: 0 | L16: 0 | N16: 17688654.26 | O16: 21093317.7 | R16: 21093317.7 | S16: Recettes propres
C17: 0 | D17: 0 | K17: 0 | L17: 0
C18: 0 | D18: 0 | K18: 0 | L18: 0 | N18: =SUM(N19:N21) -> 437115.69 | O18: =SUM(O19:O21) -> 880075.98 | P18: 0 | Q18: 0 | R18: =O18+Q18 -> 880075.98 | S18: Recettes fléchées **
C19: 0 | D19: 0 | K19: 0 | L19: 0 | R19: 0 | S19: Financements de l'Etat fléchés
B20: Investissement | C20: 8306676.26 | D20: 8445240.92 | E20: 7010781.38 | F20: 6196469.38 | K20: 7010781.38 | L20: 6196469.38 | N20: 437115.69 | O20: 880075.98 | R20: 880075.98 | S20: Autres financements publics fléchés
K21: 0 | L21: 0 | R21: 0 | S21: Recettes propres fléchées
K22: 0 | L22: 0
B23: Enveloppes* destinées à des contrats de recherche | G23: =G24+G25+G26 -> 0 | H23: 0 | I23: 0 | J23: 0 | K23: 0 | L23: 0
B24: Personnel | K24: =E24+I24 -> 0 | L24: =F24+J24 -> 0
B25: Fonctionnement | K25: 0 | L25: 0
B26: Investissement | K26: 0 | L26: 0
B28: TOTAL DES DÉPENSES | C28: =C20+C15+C11+C23 -> 104936558.3 | D28: =D20+D15+D11+D23 -> 104377962.3 | E28: =E20+E15+E11+E23 -> 108598343.7 | F28: =F20+F15+F11+F23 -> 107657787.2 | G28: 0 | H28: 0 | I28: 0 | J28: 0 | K28: 108598343.7 | L28: 107657787.2 | N28: =N11+N18 -> 101852141.5 | O28: 104186031.1 | P28: =P11+P18 -> 0 | Q28: =Q11+Q18 -> 0 | R28: =R11+R18 -> 104186031.1 | S28: TOTAL DES RECETTES
B30: Solde budgétaire (excédent) | D30: =IF(N28-D28>=0,N28-D28,0) -> 0 | F30: =IF(O28-F28>=0,O28-F28,0) -> 0 | H30: =IF(P28-H28>=0,P28-H28,0) -> 0 | J30: =IF(Q28-J28>=0,Q28-J28,0) -> 0 | L30: =IF(R28-L28>=0,R28-L28,0) -> 0 | N30: =IF(D28-N28>0,D28-N28,0) -> 2525820.78 | O30: =IF(F28-O28>0,F28-O28,0) -> 3471756.07 | P30: =IF(H28-P28>0,H28-P28,0) -> 0 | Q30: =IF(J28-Q28>0,J28-Q28,0) -> 0 | R30: =IF(L28-R28>0,L28-R28,0) -> 3471756.07 | S30: Solde budgétaire (déficit)
B32: * Chaque enveloppe peut être détaillée en fonction des besoins des organismes. | E32: =IF('3-tab_destination_origine_UBS'!C31="","","! Incohérence total Personnel AE avec Tab3 ETAB") ->  | F32: =IF('3-tab_destination_origine_UBS'!D31="","","! Incohérence total Personnel CP avec Tab3 ETAB") ->  | H32: =IF(L24="",IF(ROUND(D12,-1)<>ROUND('6-tab CR_TF_UBS'!B10,-1),"! Incohérence pensions civ. N-1 Tab6 ETAB",""),"") ->  | I32: =IF('7-tab Plan_tréso_UBS'!P30="","","! Incohérence total Personnel CP avec Tab7") ->  | K32: =IF(ROUND(K28,-1)=ROUND(#REF!+'2-tab_aut_budg_AGR'!K28,-1),"","! Pb agrégat dépenses AE") ->  | L32: =IF(AND(CONTROLES_TAB3_3_ETAB="",CONTROLES_TAB3_4_ETAB=""),"","! Incohérence solde budgétaire Tab3 ETAB") ->  | N32: =IF('3-tab_destination_origine_UBS'!C53="","","! Incohérence Subv charges serv public avec Tab3 ETAB") ->  | O32: =IF('3-tab_destination_origine_UBS'!D53="","","! Incohérence Autres financ. Etat avec Tab3 ETAB") ->  | P32: =IF('7-tab Plan_tréso_UBS'!P10="","","! Incohérence Subv service public Tab7") ->  | Q32: =IF('7-tab Plan_tréso_UBS'!P16="","","! Incohérence Financ Etat fléchés Tab7") ->  | R32: =IF(ROUND(R19,-1)<>ROUND('8-tab recettes_fléchées_UBS'!D13,-1),"! Incohérence Financ. Etat fléchés avec Tab8 ETAB","") -> 
B33: ** Montant issu du tableau "Opérations sur recettes fléchées" (tableau 8) | E33: =IF('3-tab_destination_origine_UBS'!E31="","","! Incohérence total Fonct AE avec Tab3 ETAB") ->  | F33: =IF('3-tab_destination_origine_UBS'!F31="","","! Incohérence total Fonct CP avec Tab3 ETAB") ->  | H33: =IF(L24="",IF(ROUND(F12,-1)<>ROUND('6-tab CR_TF_UBS'!C10,-1),"! Incohérence pensions civ. BI Tab6 ETAB",""),"") ->  | I33: =IF('7-tab Plan_tréso_UBS'!P31="","","! Incohérence total Fonct CP avec Tab 7") ->  | K33: =IF(ROUND(L28,-1)=ROUND(#REF!+'2-tab_aut_budg_AGR'!L28,-1),"","! Pb agrégat dépenses CP") ->  | L33: =IF(COUNTA(CONTROLES_TAB4)-COUNTIF(CONTROLES_TAB4_1,"")-COUNTIF(CONTROLES_TAB4_2,"")=0,"","! Incohérence solde budgétaire avec tab4") ->  | N33: =IF('3-tab_destination_origine_UBS'!E53="","","! Incohérence Fiscalité affectée avec Tab3 ETAB") ->  | O33: =IF('3-tab_destination_origine_UBS'!F531="","","! Incohérence Autres financements publics avec Tab3 ETAB") ->  | P33: =IF('7-tab Plan_tréso_UBS'!P11="","","! Incohérence Autres financ Etat Tab7") ->  | Q33: =IF('7-tab Plan_tréso_UBS'!P17="","","! Incohérence Autres financ fléchés Tab7") ->  | R33: =IF(ROUND(R20,-1)<>ROUND('8-tab recettes_fléchées_UBS'!D14,-1),"! Incohérence Autres financ. publics fléchés avec Tab8 ETAB","") -> 
E34: =IF('3-tab_destination_origine_UBS'!G31="","","! Incohérence total Invest AE avec Tab3 ETAB") ->  | F34: =IF('3-tab_destination_origine_UBS'!H31="","","! Incohérence total Invest CP avec Tab3 ETAB") ->  | H34: =IF(L24="",IF(ROUND(H12,-1)<>ROUND('6-tab CR_TF_UBS'!D10,-1),"! Incohérence pensions civ. BR Tab6 ETAB",""),"") ->  | I34: =IF('7-tab Plan_tréso_UBS'!P33="","","! Incohérence total Invest. CP avec Tab 7") ->  | K34: =IF(ROUND(R28,-1)=ROUND(#REF!+'2-tab_aut_budg_AGR'!R28,-1),"","! Pb agrégat total recettes") ->  | N34: =IF('3-tab_destination_origine_UBS'!G53="","","! Incohérence Recettes propres avec Tab3 ETAB") ->  | O34: =IF('3-tab_destination_origine_UBS'!H53="","","! Incohérence Financements Etat fléchés avec Tab3 ETAB") ->  | P34: =IF('7-tab Plan_tréso_UBS'!P12="","","! Incohérence Fiscalité affectée Tab7") ->  | Q34: =IF('7-tab Plan_tréso_UBS'!P18="","","! Incohérence Recettes propres fléchées Tab7") ->  | R34: =IF(ROUND(R21,-1)<>ROUND('8-tab recettes_fléchées_UBS'!D15,-1),"! Incohérence Recettes propres fléchées avec Tab8 ETAB","") -> 
E35: ="Exécution N-1 : Différence charges de personnel entre tableau 2 et tableau 6 est de : "&'6-tab CR_TF_UBS'!B9-ROUND('2-tab_aut_budg_UBS'!D11+'2-tab_aut_budg_UBS'!D24,-1) -> Exécution N-1 : Différence charges de personnel entre tableau 2 et tableau 6 est de : -837799,969999999 | H35: =IF(L24="",IF(ROUND(J12,-1)<>ROUND('6-tab CR_TF_UBS'!E10,-1),"! Incohérence pensions civ. total BR Tab6 ETAB",""),"") ->  | N35: =IF('3-tab_destination_origine_UBS'!I53="","","! Incohérence Autres financ. fléchés avec Tab3 ETAB") ->  | O35: =IF('3-tab_destination_origine_UBS'!J53="","","! Incohérence Recettes propres fléchées avec Tab3 ETAB") ->  | P35: =IF('7-tab Plan_tréso_UBS'!P13="","","! Incohérence Autres financ publ Tab7") -> 
E36: ="BI : Différence charges de personnel entre tableau 2 et tableau 6 est de : "&'6-tab CR_TF_UBS'!C9-ROUND('2-tab_aut_budg_UBS'!F11+'2-tab_aut_budg_UBS'!F24,-1) -> BI : Différence charges de personnel entre tableau 2 et tableau 6 est de : -913762,569999993 | P36: =IF('7-tab Plan_tréso_UBS'!P14="","","! Incohérence Recettes propres Tab7") -> 
E37: ="Budget BI+BR : Différence charges de personnel entre tableau 2 et tableau 6 est de : "&'6-tab CR_TF_UBS'!F9-ROUND('2-tab_aut_budg_UBS'!L11+'2-tab_aut_budg_UBS'!L24,-1) -> Budget BI+BR : Différence charges de personnel entre tableau 2 et tableau 6 est de : -913762,569999993

Sheet 2-tab_aut_budg_AGR (hidden)
B1: Tableau 2 - Université de Bretagne Sud (0561718N) : Etablissement principal + Fondation
B2: ="Autorisations budgétaires - Budget agrégé "&Maquette!B4&" "&Maquette!B5&" "&Maquette!B3 -> Autorisations budgétaires - Budget agrégé initial 2024
B5: POUR VOTE DE L'ORGANE DÉLIBÉRANT
B8: Dépenses | N8: Recettes
C9: Exécution N-1 | E9: Budget initial (a) | G9: Nouveau BR | I9: Somme des BR (yc nouveau BR) (b) | K9: TOTAL : dernier budget modifié (c) = (a) + (b) | N9: Exécution N-1 | O9: Budget initial (d) | P9: Nouveau BR | Q9: Somme des BR (yc nouveau BR) (e) | R9: TOTAL : dernier budget modifié (f) = (d) + (e)
C10: AE | D10: CP | E10: AE | F10: CP | G10: AE | H10: CP | I10: AE | J10: CP | K10: AE | L10: CP | N10: Montants | O10: Montants | P10: Montants | Q10: Montants | R10: Montants
B11: Personnel | K11: =E11+I11 -> 0 | L11: =F11+J11 -> 0 | N11: =SUM(N12:N16) -> 0 | O11: =SUM(O12:O16) -> 0 | P11: =SUM(P12:P16) -> 0 | Q11: 0 | R11: =O11+Q11 -> 0 | S11: Recettes globalisées
B12: dont contributions employeur au CAS Pension | K12: =E12+I12 -> 0 | L12: 0 | R12: =O12+Q12 -> 0 | S12: Subvention pour charges de service public
K13: 0 | L13: 0 | R13: 0 | S13: Autres financements de l'Etat
K14: 0 | L14: 0 | R14: 0 | S14: Fiscalité affectée
B15: Fonctionnement et intervention | K15: 0 | L15: 0 | R15: 0 | S15: Autres financements publics
K16: 0 | L16: 0 | R16: 0 | S16: Recettes propres
K17: 0 | L17: 0
K18: 0 | L18: 0 | N18: =SUM(N19:N21) -> 0 | O18: =SUM(O19:O21) -> 0 | P18: 0 | Q18: 0 | R18: 0 | S18: Recettes fléchées **
K19: 0 | L19: 0 | R19: 0 | S19: Financements de l'Etat fléchés
B20: Investissement | K20: 0 | L20: 0 | R20: 0 | S20: Autres financements publics fléchés
K21: 0 | L21: 0 | R21: 0 | S21: Recettes propres fléchées
K22: 0 | L22: 0
B23: Enveloppes* destinées à des contrats de recherche | C23: =C24+C25+C26 -> 0 | D23: =D24+D25+D26 -> 0 | E23: =E24+E25+E26 -> 0 | F23: =F24+F25+F26 -> 0 | G23: 0 | H23: 0 | I23: 0 | J23: 0 | K23: 0 | L23: 0
B24: Personnel | K24: 0 | L24: 0
B25: Fonctionnement | K25: 0 | L25: 0
B26: Investissement | K26: 0 | L26: 0
B28: TOTAL DES DÉPENSES | C28: =C20+C15+C11+C23 -> 0 | D28: =D20+D15+D11+D23 -> 0 | E28: =E20+E15+E11+E23 -> 0 | F28: =F20+F15+F11+F23 -> 0 | G28: 0 | H28: 0 | I28: 0 | J28: 0 | K28: 0 | L28: 0 | N28: =N11+N18 -> 0 | O28: 0 | P28: =P11+P18 -> 0 | Q28: =Q11+Q18 -> 0 | R28: =R11+R18 -> 0 | S28: TOTAL DES RECETTES
B30: Solde budgétaire (excédent) | D30: =IF(N28-D28>=0,N28-D28,0) -> 0 | F30: =IF(O28-F28>=0,O28-F28,0) -> 0 | H30: =IF(P28-H28>=0,P28-H28,0) -> 0 | J30: =IF(Q28-J28>=0,Q28-J28,0) -> 0 | L30: =IF(R28-L28>=0,R28-L28,0) -> 0 | N30: =IF(D28-N28>0,D28-N28,0) -> 0 | O30: =IF(F28-O28>0,F28-O28,0) -> 0 | P30: =IF(H28-P28>0,H28-P28,0) -> 0 | Q30: =IF(J28-Q28>0,J28-Q28,0) -> 0 | R30: =IF(L28-R28>0,L28-R28,0) -> 0 | S30: Solde budgétaire (déficit)
B32: * Chaque enveloppe peut être détaillée en fonction des besoins des organismes. | E32: =IF('3-tab_destination_origine_AGR'!C31="","","! Incohérence total Personnel AE avec Tab3 AGR") ->  | F32: =IF('3-tab_destination_origine_AGR'!D31="","","! Incohérence total Personnel CP avec Tab3 AGR") ->  | H32: =IF(L24="",IF(ROUND(D12,-1)<>ROUND('6-tab CR_TF_AGR'!B10,-1),"! Incohérence pensions civ. N-1 Tab6 AGR",""),"") ->  | K32: =IF(ROUND(K28,-1)=ROUND(#REF!+#REF!,-1),"","! Pb agrégat dépenses AE") ->  | L32: =IF(AND(CONTROLES_TAB3_3_AGR="",CONTROLES_TAB3_4_AGR=""),"","! Incohérence solde budgétaire Tab3 AGR") ->  | N32: =IF('3-tab_destination_origine_AGR'!C53="","","! Incohérence Subv charges serv public avec Tab3 AGR") ->  | O32: =IF('3-tab_destination_origine_AGR'!D53="","","! Incohérence Autres financ. Etat avec Tab3 AGR") ->  | R32: =IF(ROUND(R19,-1)<>ROUND('8-tab recettes_fléchées_AGR'!D13,-1),"! Incohérence Financ. Etat fléchés avec Tab8 AGR","") -> 
B33: ** Montant issu du tableau "Opérations sur recettes fléchées" (tableau 8) | E33: =IF('3-tab_destination_origine_AGR'!E31="","","! Incohérence total Fonct AE avec Tab3 AGR") ->  | F33: =IF('3-tab_destination_origine_AGR'!F31="","","! Incohérence total Fonct CP avec Tab3 AGR") ->  | H33: =IF(L24="",IF(ROUND(F12,-1)<>ROUND('6-tab CR_TF_AGR'!C10,-1),"! Incohérence pensions civ. BI Tab6 AGR",""),"") ->  | K33: =IF(ROUND(L28,-1)=ROUND(#REF!+#REF!,-1),"","! Pb agrégat dépenses CP") ->  | N33: =IF('3-tab_destination_origine_AGR'!E53="","","! Incohérence Fiscalité affectée avec Tab3 AGR") ->  | O33: =IF('3-tab_destination_origine_AGR'!F531="","","! Incohérence Autres financements publics avec Tab3 AGR") ->  | R33: =IF(ROUND(R20,-1)<>ROUND('8-tab recettes_fléchées_AGR'!D14,-1),"! Incohérence Autres financ. publics fléchés avec Tab8 AGR","") -> 
E34: =IF('3-tab_destination_origine_AGR'!G31="","","! Incohérence total Invest AE avec Tab3 AGR") ->  | F34: =IF('3-tab_destination_origine_AGR'!H31="","","! Incohérence total Invest CP avec Tab3 AGR") ->  | H34: =IF(L24="",IF(ROUND(H12,-1)<>ROUND('6-tab CR_TF_AGR'!D10,-1),"! Incohérence pensions civ. BR Tab6 AGR",""),"") ->  | K34: =IF(ROUND(R28,-1)=ROUND(#REF!+#REF!,-1),"","! Pb agrégat total recettes") ->  | N34: =IF('3-tab_destination_origine_AGR'!G53="","","! Incohérence Recettes propres avec Tab3 AGR") ->  | O34: =IF('3-tab_destination_origine_AGR'!H53="","","! Incohérence Financements Etat fléchés avec Tab3 AGR") ->  | R34: =IF(ROUND(R21,-1)<>ROUND('8-tab recettes_fléchées_AGR'!D15,-1),"! Incohérence Recettes propres fléchées avec Tab8 AGR","") -> 
E35: ="Exécution N-1 : Différence charges de personnel entre tableau 2 et tableau 6 est de : "&'6-tab CR_TF_AGR'!B9-ROUND('2-tab_aut_budg_AGR'!D11+'2-tab_aut_budg_AGR'!D24,-1) ->  | H35: =IF(L24="",IF(ROUND(J12,-1)<>ROUND('6-tab CR_TF_AGR'!E10,-1),"! Incohérence pensions civ. total BR Tab6 AGR",""),"") ->  | N35: =IF('3-tab_destination_origine_AGR'!I53="","","! Incohérence Autres financ. fléchés avec Tab3 AGR") ->  | O35: =IF('3-tab_destination_origine_AGR'!J53="","","! Incohérence Recettes propres fléchées avec Tab3 AGR") -> 
E36: ="BI : Différence charges de personnel entre tableau 2 et tableau 6 est de : "&'6-tab CR_TF_AGR'!C9-ROUND('2-tab_aut_budg_AGR'!F11+'2-tab_aut_budg_AGR'!F24,-1) -> 
E37: ="Budget BI+BR : Différence charges de personnel entre tableau 2 et tableau 6 est de : "&'6-tab CR_TF_AGR'!F9-ROUND('2-tab_aut_budg_AGR'!L11+'2-tab_aut_budg_AGR'!L24,-1) -> 

Sheet 3-tab_destination_origine_UBS
B1: Tableau 3 - Université de Bretagne Sud (0561718N) : Etablissement principal
B2: ="Dépenses par destination et recettes par origine - Budget consolidé "&Maquette!B4&" "&Maquette!B5&" "&Maquette!B3 -> Dépenses par destination et recettes par origine - Budget consolidé initial 2024
B4: POUR INFORMATION DE L'ORGANE DÉLIBÉRANT
B5: Tableau des dépenses par destination (obligatoire)
B6: Budget | C6: Dépenses de l’organisme
C7: Personnel | E7: Fonctionnement et intervention | G7: Investissement | I7: Total
C8: AE = CP | E8: AE | F8: CP | G8: AE | H8: CP | I8: AE | J8: CP
B9: Formation initiale et continue (d) = (a) + (b) + (c) | C9: =SUM(C10:C12) -> 49781417.98 | D9: =SUM(D10:D12) -> 49781417.98 | E9: 3542269.83 | F9: 3542269.83 | G9: 1848031.98 | H9: 1548031.98 | I9: =C9+E9+G9 -> 55171719.79 | J9: =D9+F9+H9 -> 54871719.79
B10: D101 - Formation initiale et continue de niveau Licence (a) | C10: 36181316 | D10: 36181316 | E10: 2618266 | F10: 2618266 | G10: 1382311 | H10: 1082311 | I10: =C10+E10+G10 -> 40181893 | J10: =D10+F10+H10 -> 39881893
B11: D102 - Formation initiale et continue de niveau Master (b) | C11: 11747252 | D11: 11747252 | E11: 791006.4 | F11: 791006.4 | G11: 465720.98 | H11: 465720.98 | I11: 13003979.38 | J11: 13003979.38
B12: D103 - Formation initiale et continue de niveau Doctorat (c) | C12: 1852849.98 | D12: 1852849.98 | E12: 132997.43 | F12: 132997.43 | G12: 0 | H12: 0 | I12: 1985847.41 | J12: 1985847.41
B13: D105 - Bibliothèques et documentation | C13: 1696007 | D13: 1696007 | E13: 464164 | F13: 464164 | G13: 60000 | H13: 60000 | I13: 2220171 | J13: 2220171
B14: D106 - Recherche universitaire en sciences de la vie, biotechnologie et santé | C14: 1536735.18 | D14: 1536735.18 | E14: 284906.81 | F14: 284906.81 | G14: 96817.79 | H14: 96817.79 | I14: 1918459.78 | J14: 1918459.78
B15: D107 - Recherche universitaire en mathématiques, sciences et techniques de l'information et de la communication, micro et nanotechnologies | C15: 7316789.78 | D15: 7316789.78 | E15: 652463.24 | F15: 676218.68 | G15: 783382.58 | H15: 783382.58 | I15: 8752635.6 | J15: 8776391.04
B16: D108 - Recherche universitaire en physique, chimie et sciences pour l'ingénieur | C16: 6611192.54 | D16: 6611192.54 | E16: 1161003.25 | F16: 1161003.25 | G16: 951299.33 | H16: 1005401.33 | I16: 8723495.12 | J16: 8777597.12
B17: D109 - Recherche universitaire en physique nucléaire et des hautes énergies | C17: 0 | D17: 0 | E17: 0 | F17: 0 | G17: 0 | H17: 0 | I17: 0 | J17: 0
B18: D110 - Recherche universitaire en sciences de la terre, de l'univers et de l'environnement | C18: 580891 | D18: 580891 | E18: 183130.46 | F18: 183130.46 | G18: 0 | H18: 0 | I18: 764021.46 | J18: 764021.46
B19: D111 - Recherche universitaire en sciences de l'homme et de la société | C19: 5917450.95 | D19: 5917450.95 | E19: 452258.32 | F19: 452258.32 | G19: 10053.7 | H19: 10053.7 | I19: 6379762.97 | J19: 6379762.97
B20: D112 - Recherche universitaire interdisciplinaire et transversale | C20: 523645 | D20: 523645 | E20: 610826 | F20: 610826 | G20: 2000 | H20: 2000 | I20: 1136471 | J20: 1136471
B21: D113 - Diffusion des savoirs et musées | I21: 0 | J21: 0
B22: D114 - Immobilier | C22: 2225891 | D22: 2225891 | E22: 4596519 | F22: 4596519 | G22: 1645000 | H22: 1345000 | I22: 8467410 | J22: 8167410
B23: D115 - Pilotage et support | C23: 7079352 | D23: 7079352 | E23: 2296310 | F23: 2196310 | G23: 76200 | H23: 76200 | I23: 9451862 | J23: 9351862
B24: Étudiants (h) = (e) + (f) + (g) | C24: =SUM(C25:C27) -> 2288584 | D24: =SUM(D25:D27) -> 2288584 | E24: 1785755 | F24: 1735755 | G24: 1537996 | H24: 1269582 | I24: 5612335 | J24: 5293921
B25: D201 - Aides directes aux étudiants (e) | C25: 0 | D25: 0 | E25: 1220960 | F25: 1170960 | G25: 0 | H25: 0 | I25: 1220960 | J25: 1170960
B26: D202 - Aides indirectes (f) | C26: 9135 | D26: 9135 | E26: 0 | F26: 0 | G26: 0 | H26: 0 | I26: 9135 | J26: 9135
B27: D203 - Santé des étudiants et activités associatives, culturelles et sportives (g) | C27: 2279449 | D27: 2279449 | E27: 564795 | F27: 564795 | G27: 1537996 | H27: 1269582 | I27: 4382240 | J27: 4113826
B28: Total | C28: =SUM(C10:C24) -> 85557956.43 | D28: =SUM(D10:D24) -> 85557956.43 | E28: 16029605.91 | F28: 15903361.35 | G28: 7010781.38 | H28: 6196469.38 | I28: =C28+E28+G28 -> 108598343.7 | J28: =D28+F28+H28 -> 107657787.2
C30: =IF(SUM(C9:C28)<>SUM(D9:D28),"! Dépenses de personnel AE <> CP","") ->  | H30: SOLDE BUDGETAIRE (excédent) | J30: =IF(K50>J28,K50-J28,0) -> 0 | K30: =IF(ROUND(J30,-1)<>ROUND('2-tab_aut_budg_UBS'!L30,-1),"Incohérence solde budgétaire avec Tab2 ETAB","") ->  | L30: =IF(ROUND(J30,-1)<>ROUND('4-tab_financier_UBS'!M11,-1),"! Incohérence solde budgétaire avec Tab4","") -> 
C31: =IF(ROUND(C28,-1)<>ROUND('2-tab_aut_budg_UBS'!K11+'2-tab_aut_budg_UBS'!K24,-1),"! Incohérence total Personnel AE avec Tab2 ETAB","") ->  | D31: =IF(ROUND(D28,-1)<>ROUND('2-tab_aut_budg_UBS'!L11+'2-tab_aut_budg_UBS'!L24,-1),"! Incohérence total Personnel CP avec Tab2 ETAB","") ->  | E31: =IF(ROUND(E28,-1)<>ROUND('2-tab_aut_budg_UBS'!K15+'2-tab_aut_budg_UBS'!K25,-1),"! Incohérence total Fonctionnement AE avec Tab2 ETAB","") ->  | F31: =IF(ROUND(F28,-1)<>ROUND('2-tab_aut_budg_UBS'!L15+'2-tab_aut_budg_UBS'!L25,-1),"! Incohérence total Fonctionnement CP avec Tab2 ETAB","") ->  | G31: =IF(ROUND(G28,-1)<>ROUND('2-tab_aut_budg_UBS'!K20+'2-tab_aut_budg_UBS'!K26,-1),"! Incohérence total Investissement AE avec Tab2 ETAB","") ->  | H31: =IF(ROUND(H28,-1)<>ROUND('2-tab_aut_budg_UBS'!L20+'2-tab_aut_budg_UBS'!L26,-1),"! Incohérence total Investissement CP avec Tab2 ETAB","") ->  | I31: =IF(ROUND(I28,-1)<>ROUND('2-tab_aut_budg_UBS'!K28,-1),"! Incohérence Total dépenses AE avec Tab2 ETAB","") ->  | J31: =IF(ROUND(J28,-1)<>ROUND('2-tab_aut_budg_UBS'!L28,-1),"! Incohérence Total dépenses CP avec Tab2 ETAB","") -> 
B32: Tableau des recettes par origine (obligatoire)
B34: Budget | C34: Recettes de l'organisme
C35: Recettes globalisées | H35: Recettes fléchées | K35: Total
C36: Subvention pour charges de service public | D36: Autres financements de l'Etat | E36: Fiscalité affectée | F36: Autres financements publics | G36: Recettes propres | H36: Financements de l'Etat fléchés | I36: Autres financements publics fléchés | J36: Recettes propres fléchées
B37: Subvention pour charges de service public | C37: 71010666 | D37: 0 | E37: 0 | F37: 0 | G37: 0 | H37: 0 | I37: 0 | J37: 0 | K37: =C37 -> 71010666
B38: Droits d'inscription | C38: 0 | D38: 0 | E38: 0 | F38: 0 | G38: 1197129 | H38: 0 | I38: 0 | J38: 0 | K38: =SUM(G38:J38) -> 1197129
B39: Formation continue, diplômes propres et VAE | C39: 0 | D39: 0 | E39: 0 | F39: 0 | G39: 11964890 | H39: 0 | I39: 0 | J39: 0 | K39: =SUM(G39:J39) -> 11964890
B40: Taxe d'apprentissage | C40: 0 | D40: 0 | E40: 0 | F40: 0 | G40: 530000 | H40: 0 | I40: 0 | J40: 0 | K40: =SUM(G40:J40) -> 530000
B41: Contrats et prestations de recherche hors ANR | C41: 0 | D41: 0 | E41: 0 | F41: 0 | G41: 1063850.7 | H41: 0 | I41: 0 | J41: 0 | K41: =SUM(G41:J41) -> 1063850.7
B42: Valorisation | C42: 0 | D42: 0 | E42: 0 | F42: 0 | G42: 560328 | H42: 0 | I42: 0 | J42: 0 | K42: =SUM(G42:J42) -> 560328
B43: ANR investissements d'avenir | C43: 0 | D43: 0 | E43: 0 | F43: 485302.74 | G43: 0 | H43: 0 | I43: 0 | J43: 0 | K43: =SUM(F43,H43:J43) -> 485302.74
B44: ANR hors investissements d'avenir | C44: 0 | D44: 0 | E44: 0 | F44: 2980334.03 | G44: 0 | H44: 0 | I44: 880075.98 | J44: 0 | K44: =SUM(F44,H44:J44) -> 3860410.01
B45: Subventions d'exploitation et financement des actifs - Région | C45: 0 | D45: 0 | E45: 0 | F45: 1576425.55 | G45: 0 | H45: 0 | I45: 0 | J45: 0 | K45: =SUM(F45,H45:J45) -> 1576425.55
B46: Subventions d'exploitation et financement des actifs - Union Européenne | C46: 0 | D46: 0 | E46: 0 | F46: 1453974.64 | G46: 0 | H46: 0 | I46: 0 | J46: 0 | K46: =SUM(F46,H46:J46) -> 1453974.64
B47: Subventions d'exploitation et financement des actifs - Autres | C47: 0 | D47: 2924258.45 | E47: 0 | F47: 1168776 | G47: 0 | H47: 0 | I47: 0 | J47: 0 | K47: =SUM(D47,F47:J47) -> 4093034.45
B48: Fondations - fonds propres, réserves, dons et legs | C48: 0 | D48: 0 | E48: 0 | F48: 0 | G48: 0 | H48: 0 | I48: 0 | J48: 0 | K48: =SUM(D48,F48:J48) -> 0
B49: Autres recettes | C49: 0 | D49: 0 | E49: 612900 | F49: 0 | G49: 5777120 | H49: 0 | I49: 0 | J49: 0 | K49: =SUM(E49:J49) -> 6390020
B50: Total | C50: =C37 -> 71010666 | D50: =SUM(D47:D48) -> 2924258.45 | E50: =E49 -> 612900 | F50: =SUM(F43:F49) -> 7664812.96 | G50: =SUM(G38:G42,G47:G49) -> 21093317.7 | H50: =SUM(H38:H49) -> 0 | I50: =SUM(I38:I49) -> 880075.98 | J50: 0 | K50: =SUM(K37:K49) -> 104186031.1
B52: La liste des destination est susceptible d'être modifiée par le ministre chargé de l'enseignement supérieur | I52: SOLDE BUDGETAIRE (déficit) | K52: =IF(J28>K50,J28-K50,0) -> 3471756.07 | L52: =IF(ROUND(K52,-1)<>ROUND('2-tab_aut_budg_UBS'!R30,-1),"! Incohérence solde budgétaire avec Tab2 ETAB","") ->  | M52: =IF(ROUND(K52,-1)<>ROUND('4-tab_financier_UBS'!G11,-1),"! Incohérence solde budgétaire avec Tab4","") -> 
C53: =IF(ROUND(C50,-1)<>ROUND('2-tab_aut_budg_UBS'!R12,-1),"! Incohérence total Subv charges serv public avec Tab2 ETAB","") ->  | D53: =IF(ROUND(D50,-1)<>ROUND('2-tab_aut_budg_UBS'!R13,-1),"! Incohérence total Autres financements Etat avec Tab2 ETAB","") ->  | E53: =IF(ROUND(E50,-1)<>ROUND('2-tab_aut_budg_UBS'!R14,-1),"! Incohérence total Fiscalité affectée avec Tab2 ETAB","") ->  | F53: =IF(ROUND(F50,-1)<>ROUND('2-tab_aut_budg_UBS'!R15,-1),"! Incohérence total Autres financements publics avec Tab2 ETAB","") ->  | G53: =IF(ROUND(G50,-1)<>ROUND('2-tab_aut_budg_UBS'!R16,-1),"! Incohérence total Recettes propres avec Tab2 ETAB","") ->  | H53: =IF(ROUND(H50,-1)<>ROUND('2-tab_aut_budg_UBS'!R19,-1),"! Incohérence total Financements Etat fléchés avec Tab2 ETAB","") ->  | I53: =IF(ROUND(I50,-1)<>ROUND('2-tab_aut_budg_UBS'!R20,-1),"! Incohérence total Autres financements fléchés avec Tab2 ETAB","") ->  | J53: =IF(ROUND(J50,-1)<>ROUND('2-tab_aut_budg_UBS'!R21,-1),"! Incohérence total Recettes propres fléchées avec Tab2 ETAB","") ->  | K53: =IF(ROUND(K50,-1)<>ROUND('2-tab_aut_budg_UBS'!R28,-1),"! Incohérence total avec Tab2 ETAB","") -> 
H54: =IF(H50<>'8-tab recettes_fléchées_UBS'!D13,"! Incohérence Financements Etat fléchés avec Tab8 ETAB","") ->  | I54: =IF(ROUND(I50,-1)<>ROUND('8-tab recettes_fléchées_UBS'!D14,-1),"! Incohérence Autres financements fléchés avec Tab8 ETAB","") ->  | J54: =IF(ROUND(J50,-1)<>ROUND('8-tab recettes_fléchées_UBS'!D15,-1),"! Incohérences Recettes propres fléchées avec Tab8 ETAB ","") -> 

Sheet 3-tab_destination_origine_AGR (hidden)
B1: Tableau 3 - Université de Bretagne Sud (0561718N) : Etablissement principal + Fondation
B2: ="Dépenses par destination et recettes par origine - Budget agrégé "&Maquette!B4&" "&Maquette!B5&" "&Maquette!B3 -> Dépenses par destination et recettes par origine - Budget agrégé initial 2024
B4: POUR INFORMATION DE L'ORGANE DÉLIBÉRANT
B5: Tableau des dépenses par destination (obligatoire)
B6: Budget | C6: Dépenses de l’organisme
C7: Personnel | E7: Fonctionnement et intervention | G7: Investissement | I7: Total
C8: AE = CP | E8: AE | F8: CP | G8: AE | H8: CP | I8: AE | J8: CP
B9: Formation initiale et continue (d) = (a) + (b) + (c) | C9: =SUM(C10:C12) -> 0 | D9: =SUM(D10:D12) -> 0 | E9: 0 | F9: 0 | G9: 0 | H9: 0 | I9: =C9+E9+G9 -> 0 | J9: =D9+F9+H9 -> 0
B10: D101 - Formation initiale et continue de niveau Licence (a) | I10: =C10+E10+G10 -> 0 | J10: 0
B11: D102 - Formation initiale et continue de niveau Master (b) | I11: 0 | J11: 0
B12: D103 - Formation initiale et continue de niveau Doctorat (c) | I12: 0 | J12: 0
B13: D105 - Bibliothèques et documentation | I13: 0 | J13: 0
B14: D106 - Recherche universitaire en sciences de la vie, biotechnologie et santé | I14: 0 | J14: 0
B15: D107 - Recherche universitaire en mathématiques, sciences et techniques de l'information et de la communication, micro et nanotechnologies | I15: 0 | J15: 0
B16: D108 - Recherche universitaire en physique, chimie et sciences pour l'ingénieur | I16: 0 | J16: 0
B17: D109 - Recherche universitaire en physique nucléaire et des hautes énergies | I17: 0 | J17: 0
B18: D110 - Recherche universitaire en sciences de la terre, de l'univers et de l'environnement | I18: 0 | J18: 0
B19: D111 - Recherche universitaire en sciences de l'homme et de la société | I19: 0 | J19: 0
B20: D112 - Recherche universitaire interdisciplinaire et transversale | I20: 0 | J20: 0
B21: D113 - Diffusion des savoirs et musées | I21: 0 | J21: 0
B22: D114 - Immobilier | I22: 0 | J22: 0
B23: D115 - Pilotage et support | I23: 0 | J23: 0
B24: Étudiants (h) = (e) + (f) + (g) | C24: =SUM(C25:C27) -> 0 | D24: =SUM(D25:D27) -> 0 | E24: 0 | F24: 0 | G24: 0 | H24: 0 | I24: 0 | J24: 0
B25: D201 - Aides directes aux étudiants (e) | I25: 0 | J25: 0
B26: D202 - Aides indirectes (f) | I26: 0 | J26: 0
B27: D203 - Santé des étudiants et activités associatives, culturelles et sportives (g) | I27: 0 | J27: 0
B28: Total | C28: =SUM(C10:C24) -> 0 | D28: =SUM(D10:D24) -> 0 | E28: 0 | F28: 0 | G28: 0 | H28: 0 | I28: =C28+E28+G28 -> 0 | J28: =D28+F28+H28 -> 0
C30: =IF(SUM(C9:C28)<>SUM(D9:D28),"! Dépenses de personnel AE <> CP","") ->  | H30: SOLDE BUDGETAIRE (excédent) | J30: =IF(K50>J28,K50-J28,0) -> 0 | K30: =IF(ROUND(J30,-1)<>ROUND('2-tab_aut_budg_AGR'!L30,-1),"Incohérence solde budgétaire avec Tab2 AGR","") -> 
C31: =IF(ROUND(C28,-1)<>ROUND('2-tab_aut_budg_AGR'!K11+'2-tab_aut_budg_AGR'!K24,-1),"! Incohérence total Personnel AE avec Tab2 AGR","") ->  | D31: =IF(ROUND(D28,-1)<>ROUND('2-tab_aut_budg_AGR'!L11+'2-tab_aut_budg_AGR'!L24,-1),"! Incohérence total Personnel CP avec Tab2 AGR","") ->  | E31: =IF(ROUND(E28,-1)<>ROUND('2-tab_aut_budg_AGR'!K15+'2-tab_aut_budg_AGR'!K25,-1),"! Incohérence total Fonctionnement AE avec Tab2 AGR","") ->  | F31: =IF(ROUND(F28,-1)<>ROUND('2-tab_aut_budg_AGR'!L15+'2-tab_aut_budg_AGR'!L25,-1),"! Incohérence total Fonctionnement CP avec Tab2 AGR","") ->  | G31: =IF(ROUND(G28,-1)<>ROUND('2-tab_aut_budg_AGR'!K20+'2-tab_aut_budg_AGR'!K26,-1),"! Incohérence total Investissement AE avec Tab2 AGR","") ->  | H31: =IF(ROUND(H28,-1)<>ROUND('2-tab_aut_budg_AGR'!L20+'2-tab_aut_budg_AGR'!L26,-1),"! Incohérence total Investissement CP avec Tab2 AGR","") ->  | I31: =IF(ROUND(I28,-1)<>ROUND('2-tab_aut_budg_AGR'!K28,-1),"! Incohérence Total dépenses AE avec Tab2 AGR","") ->  | J31: =IF(ROUND(J28,-1)<>ROUND('2-tab_aut_budg_AGR'!L28,-1),"! Incohérence Total dépenses CP avec Tab2 AGR","") -> 
B32: Tableau des recettes par origine (obligatoire)
B34: Budget | C34: Recettes de l'organisme
C35: Recettes globalisées | H35: Recettes fléchées | K35: Total
C36: Subvention pour charges de service public | D36: Autres financements de l'Etat | E36: Fiscalité affectée | F36: Autres financements publics | G36: Recettes propres | H36: Financements de l'Etat fléchés | I36: Autres financements publics fléchés | J36: Recettes propres fléchées
B37: Subvention pour charges de service public | K37: =C37 -> 0
B38: Droits d'inscription | K38: =SUM(G38:J38) -> 0
B39: Formation continue, diplômes propres et VAE | K39: =SUM(G39:J39) -> 0
B40: Taxe d'apprentissage | K40: 0
B41: Contrats et prestations de recherche hors ANR | K41: 0
B42: Valorisation | K42: 0
B43: ANR investissements d'avenir | K43: =SUM(F43,H43:J43) -> 0
B44: ANR hors investissements d'avenir | K44: =SUM(F44,H44:J44) -> 0
B45: Subventions d'exploitation et financement des actifs - Région | K45: 0
B46: Subventions d'exploitation et financement des actifs - Union Européenne | K46: 0
B47: Subventions d'exploitation et financement des actifs - Autres | K47: =SUM(D47,F47:J47) -> 0
B48: Fondations - fonds propres, réserves, dons et legs | K48: =SUM(D48,F48:J48) -> 0
B49: Autres recettes | K49: =SUM(F49:J49) -> 0
B50: Total | C50: =C37 -> 0 | D50: =SUM(D47:D48) -> 0 | E50: =SUM(E47:E48) -> 0 | F50: =SUM(F43:F49) -> 0 | G50: =SUM(G38:G42,G47:G49) -> 0 | H50: =SUM(H38:H49) -> 0 | I50: =SUM(I38:I49) -> 0 | J50: 0 | K50: =SUM(K37:K49) -> 0
B52: La liste des destination est susceptible d'être modifiée par le ministre chargé de l'enseignement supérieur | I52: SOLDE BUDGETAIRE (déficit) | K52: =IF(J28>K50,J28-K50,0) -> 0 | L52: =IF(ROUND(K52,-1)<>ROUND('2-tab_aut_budg_AGR'!R30,-1),"! Incohérence solde budgétaire avec Tab2 AGR","") -> 
C53: =IF(ROUND(C50,-1)<>ROUND('2-tab_aut_budg_AGR'!R12,-1),"! Incohérence total Subv charges serv public avec Tab2 AGR","") ->  | D53: =IF(ROUND(D50,-1)<>ROUND('2-tab_aut_budg_AGR'!R13,-1),"! Incohérence total Autres financements Etat avec Tab2 AGR","") ->  | E53: =IF(ROUND(E50,-1)<>ROUND('2-tab_aut_budg_AGR'!R14,-1),"! Incohérence total Fiscalité affectée avec Tab2 AGR","") ->  | F53: =IF(ROUND(F50,-1)<>ROUND('2-tab_aut_budg_AGR'!R15,-1),"! Incohérence total Autres financements publics avec Tab2 AGR","") ->  | G53: =IF(ROUND(G50,-1)<>ROUND('2-tab_aut_budg_AGR'!R16,-1),"! Incohérence total Recettes propres avec Tab2 AGR","") ->  | H53: =IF(ROUND(H50,-1)<>ROUND('2-tab_aut_budg_AGR'!R19,-1),"! Incohérence total Financements Etat fléchés avec Tab2 AGR","") ->  | I53: =IF(ROUND(I50,-1)<>ROUND('2-tab_aut_budg_AGR'!R20,-1),"! Incohérence total Autres financements fléchés avec Tab2 AGR","") ->  | J53: =IF(ROUND(J50,-1)<>ROUND('2-tab_aut_budg_AGR'!R21,-1),"! Incohérence total Recettes propres fléchées avec Tab2 AGR","") ->  | K53: =IF(ROUND(K50,-1)<>ROUND('2-tab_aut_budg_AGR'!R28,-1),"! Incohérence total avec Tab2 AGR","") -> 
H54: =IF(H50<>'8-tab recettes_fléchées_UBS'!D13,"! Incohérence Financements Etat fléchés avec Tab8 ETAB","") ->  | I54: =IF(ROUND(I50,-1)<>ROUND('8-tab recettes_fléchées_AGR'!D14,-1),"! Incohérence Autres financements fléchés avec Tab8 AGR","") ->  | J54: =IF(ROUND(J50,-1)<>ROUND('8-tab recettes_fléchées_AGR'!D15,-1),"! Incohérences Recettes propres fléchées avec Tab8 AGR ","") -> 

Sheet 4-tab_financier_UBS
B1: Tableau 4 - Université de Bretagne Sud (0561718N) : Etablissement principal
B2: ="Équilibre financier - Budget consolidé "&Maquette!B4&" "&Maquette!B5&" "&Maquette!B3 -> Équilibre financier - Budget consolidé initial 2024
B5: POUR VOTE DE L'ORGANE DÉLIBÉRANT
B9: Besoins (utilisation des financements) | I9: Financements (couverture des besoins)
C10: Exécution N-1: BR2/2023 | D10: Budget initial (a) | E10: Nouveau BR | F10: Somme des BR (yc nouveau BR) (b) | G10: TOTAL : dernier budget modifié (c) = (a) + (b) | I10: Exécution N-1: BR2/2023 | J10: Budget initial (d) | K10: Nouveau BR | L10: Somme des BR (yc nouveau BR) (e) | M10: TOTAL : dernier budget modifié (f) = (d) + (e)
B11: Solde budgétaire (déficit) * (D2) | C11: ='2-tab_aut_budg_UBS'!N30 -> 2525820.78 | D11: ='2-tab_aut_budg_UBS'!O30 -> 3471756.07 | G11: =IF(SUM(J11,L11)-SUM(D11,F11)<0,-(SUM(J11,L11)-SUM(D11,F11)),0) -> 3471756.07 | M11: =IF(SUM(J11,L11)-SUM(D11,F11)>=0,SUM(J11,L11)-SUM(D11,F11),0) -> 0 | N11: Solde budgétaire (excédent) * (D1) | R11: Opérations ayant un impact sur la trésorerie
B12: dont solde budgétaire budget principal | C12: =C11 -> 2525820.78 | D12: =D11 -> 3471756.07 | G12: =D12+F12 -> 3471756.07 | M12: =IF(SUM(J12,L12)-SUM(D12,F12)>=0,SUM(J12,L12)-SUM(D12,F12),0) -> 0 | N12: dont solde budgétaire budget principal
B13: dont solde budgétaire budget du SAIC | G13: 0 | M13: 0 | N13: dont solde budgétaire budget du SAIC | P13: Opérations budgétaires
B14: dont solde budgétaire FU | G14: 0 | M14: 0 | N14: dont solde budgétaire FU
B15: dont solde budgétaire BAI | G15: 0 | M15: 0 | N15: dont solde budgétaire BAI
B16: dont solde budgétaire SIE | G16: 0 | M16: 0 | N16: dont solde budgétaire SIE
G17: 0 | M17: =J17+L17 -> 0
B18: Remboursements d'emprunts (capital) ; Nouveaux prêts (capital) ; Dépôts et cautionnements (b1) | C18: 1200 | G18: 0 | I18: 11198 | M18: 0 | N18: Nouveaux emprunts (capital) ; Remboursements de prêts (capital) ; Dépôts et cautionnements (b2)
G19: 0 | M19: 0
B20: Opérations au nom et pour le compte de tiers ** (décaissements de l’exercice) (c1) | C20: 3218816 | D20: ='5-tab compte de tiers_UBS'!E22 -> 1439063 | G20: 1439063 | I20: 2831758 | J20: ='5-tab compte de tiers_UBS'!F22 -> 1218827 | M20: 1218827 | N20: Opérations au nom et pour le compte de tiers ** (encaissements de l’exercice) (c2) | P20: Opérations non budgétaires | Q20: =J20-D20 -> -220236
G21: 0 | M21: 0
B22: Autres décaissements sur comptes de tiers (non budgétaires) (e1) | D22: 0 | G22: 0 | J22: 0 | M22: 0 | N22: Autres encaissements sur comptes de tiers (non budgétaires) (e2)
G23: 0 | M23: 0
B24: Sous-total des opérations ayant un impact négatif sur la trésorerie de l'organisme (1= D2+b1+c1+e1) | C24: =C11+C18+C20+C22 -> 5745836.78 | D24: =D11+D18+D20+D22 -> 4910819.07 | E24: =E11+E18+E20+E22 -> 0 | F24: =F11+F18+F20+F22 -> 0 | G24: =G11+G18+G20+G22 -> 4910819.07 | H24: et | I24: =I11+I18+I20+I22 -> 2842956 | J24: =J11+J18+J20+J22 -> 1218827 | K24: =K11+K18+K20+K22 -> 0 | L24: =L11+L18+L20+L22 -> 0 | M24: =M11+M18+M20+M22 -> 1218827 | N24: Sous-total des opérations ayant un impact positif sur la trésorerie de l'organisme (2=D1+b2+c2+e2) | P24: La variation de trésorerie : - se détermine par différence entre (1) et (2), - se décompose en (a) et (d), - s'explique par D, (b), (c), (e).
B25: Variation de trésorerie (I) | C25: =IF(I24-C24>0,I24-C24,) -> 0 | D25: =IF(J24-D24>0,J24-D24,) -> 0 | E25: =IF(K24-E24>0,K24-E24,) -> 0 | F25: =IF(L24-F24>0,L24-F24,) -> 0 | G25: =IF(M24-G24>0,M24-G24,) -> 0 | H25: ou | I25: =IF(C24-I24>0,C24-I24,0) -> 2902880.78 | J25: =IF(D24-J24>0,D24-J24,0) -> 3691992.07 | K25: =IF(E24-K24>0,E24-K24,0) -> 0 | L25: =IF(F24-L24>0,F24-L24,0) -> 0 | M25: =IF(G24-M24>0,G24-M24,0) -> 3691992.07 | N25: Variation de trésorerie (II)
G26: =D26+F26 -> 0 | M26: =J26+L26 -> 0 | R26: Décomposition de la variation de trésorerie
B27: dont Abondement de la trésorerie fléchée *** (a1) | G27: 0 | H27: ou | I27: 420540.42 | J27: =-('8-tab recettes_fléchées_UBS'!D28) -> 947895.42 | M27: 947895.42 | N27: dont Prélèvement sur la trésorerie fléchée *** (a2)
G28: 0
B29: dont Abondement sur la trésorerie non fléchée (d1) | C29: =C25 -> 0 | G29: 0 | H29: ou | I29: =I25-I27 -> 2482340.36 | J29: =J25-J27 -> 2744096.65 | M29: 2744096.65 | N29: dont Prélèvement sur la trésorerie non fléchée (d2) | P29: = différence entre variation de trésorerie (I ou II) et (a)
G30: 0
B31: TOTAL DES BESOINS (1 + I) | C31: =C25+C24 -> 5745836.78 | D31: =D25+D24 -> 4910819.07 | E31: 0 | F31: =F25+F24 -> 0 | G31: =G25+G24 -> 4910819.07 | H31: et | I31: =I25+I24 -> 5745836.78 | J31: =J25+J24 -> 4910819.07 | K31: 0 | L31: 0 | M31: 4910819.07 | N31: TOTAL DES FINANCEMENTS (2 + II)
B33: * solde budgétaire à détailler pour chaque composante du budget de l'établissement | C33: =IF(ROUND(C11,-1)<>ROUND('2-tab_aut_budg_UBS'!N30,-1),"! Incohérence solde budgétaire N-1 avec Tab2 ETAB","") ->  | D33: =IF(ROUND(D11,-1)<>ROUND('2-tab_aut_budg_UBS'!O30,-1),"! Incohérence solde budgétaire BI avec Tab2 ETAB","") ->  | E33: =IF(ROUND(E11,-1)<>ROUND('2-tab_aut_budg_UBS'!P30,-1),"! Incohérence solde budgétaire BR avec Tab2 ETAB","") ->  | F33: =IF(ROUND(F11,-1)<>ROUND('2-tab_aut_budg_UBS'!Q30,-1),"! Incohérence solde budgétaire BR tot avec Tab2 ETAB","") ->  | G33: =IF(ROUND(G11,-1)<>ROUND('2-tab_aut_budg_UBS'!R30,-1),"! Incohérence solde budgétaire Total avec Tab2 ETAB","") ->  | I33: =IF(ROUND(I11,-1)<>ROUND('2-tab_aut_budg_UBS'!D30,-1),"! Incohérence solde budgétaire N-1 avec Tab2 ETAB","") ->  | J33: =IF(ROUND(J11,-1)<>ROUND('2-tab_aut_budg_UBS'!F30,-1),"! Incohérence solde budgétaire BI avec Tab2 ETAB","") ->  | K33: =IF(ROUND(K11,-1)<>ROUND('2-tab_aut_budg_UBS'!H30,-1),"! Incohérence solde budgétaire BR avec Tab2 ETAB","") ->  | L33: =IF(ROUND(L11,-1)<>ROUND('2-tab_aut_budg_UBS'!J30,-1),"! Incohérence solde budgétaire BR tot avec Tab2 ETAB","") ->  | M33: =IF(ROUND(M11,-1)<>ROUND('2-tab_aut_budg_UBS'!L30,-1),"! Incohérence solde budgétaire Total avec Tab2 ETAB","") -> 
B34: Montant issu du tableau "Autorisations budgétaires" (tableau 2) | F34: =IF(ROUND(G11,-1)<>ROUND('3-tab_destination_origine_UBS'!K52,-1),"! Incohérence solde budgétaire avec Tab3 ETAB","") ->  | G34: =IF(ROUND(G20,-1)<>ROUND('5-tab compte de tiers_UBS'!E22,-1),"! Incohérence décaissements tiers avec Tab5","") ->  | L34: =IF(ROUND(M11,-1)<>ROUND('3-tab_destination_origine_UBS'!J30,-1),"! Incohérence solde budgétaire avec Tab3 ETAB","") ->  | M34: =IF(ROUND(M20,-1)<>ROUND('5-tab compte de tiers_UBS'!F22,-1),"! Incohérence encaissements tiers avec Tab5","") -> 
B35: ** Montants issus du tableau "Opérations pour compte de tiers" (tableau 5) | F35: =IF(ROUND(G18,-1)<>ROUND('7-tab Plan_tréso_UBS'!O39,-1),"! Incohérence remb emprunts avec Tab7","") ->  | G35: =IF(ROUND(G20+G22,-1)<>ROUND('7-tab Plan_tréso_UBS'!O43,-1),"! Incohérence décaissements tiers avec Tab7","") ->  | L35: =IF(ROUND(M18,-1)<>ROUND('7-tab Plan_tréso_UBS'!O19,-1),"! Incohérence recettes emprunts avec Tab7","") ->  | M35: =IF(ROUND(M20+M22,-1)<>ROUND('7-tab Plan_tréso_UBS'!O23,-1),"! Incohérence encaissements tiers avec Tab7","") -> 
B36: *** Montant issu du tableau "Opérations sur recettes fléchées" (tableau 8) | C36: =IF('6-tab CR_TF_UBS'!H48<=0,IF(ROUND('6-tab CR_TF_UBS'!H48,-1)<>-ROUND(I25,-1),"! Incohérence var trésorerie N-1 Tab6 ETAB",""),IF(ROUND('6-tab CR_TF_UBS'!H48,-1)<>ROUND(C25,-1),"! Incohérence var N-1 trésorerie Tab6 ETAB","")) ->  | E36: =IF('6-tab CR_TF_UBS'!J48<=0,IF(ROUND('6-tab CR_TF_UBS'!J48,-1)<>-ROUND(K25,-1),"! Incohérence var trésorerie BR Tab6 ETAB",""),IF(ROUND('6-tab CR_TF_UBS'!J48,-1)<>ROUND(E25,-1),"! Incohérence var trésorerie BR Tab6 ETAB","")) ->  | F36: =IF('6-tab CR_TF_UBS'!K48<=0,IF(ROUND('6-tab CR_TF_UBS'!K48,-1)<>-ROUND(L25,-1),"! Incohérence var trésorerie BR tot Tab6 ETAB",""),IF(ROUND('6-tab CR_TF_UBS'!K48,-1)<>ROUND(F25,-1),"! Incohérence var trésorerie BR tot Tab6 ETAB","")) ->  | G36: =IF('6-tab CR_TF_UBS'!L48<=0,IF(ROUND('6-tab CR_TF_UBS'!L48,-1)<>-ROUND(M25,-1),"! Incohérence var trésorerie Total Tab6 ETAB",""),IF(ROUND('6-tab CR_TF_UBS'!L48,-1)<>ROUND(G25,-1),"! Incohérence var trésorerie Total Tab6 ETAB","")) ->  | M36: =IF('7-tab Plan_tréso_UBS'!O48<=0,IF(-ROUND('7-tab Plan_tréso_UBS'!O48,-1)<>ROUND('4-tab_financier_UBS'!M25,-1),"! Incohérence variation de trésorerie Tab7",""),IF(ROUND('7-tab Plan_tréso_UBS'!O48,-1)<>ROUND('4-tab_financier_UBS'!G25,-1),"! Incohérence variation trésorerie Tab7","")) -> 
G37: =IF('8-tab recettes_fléchées_UBS'!D28>0,IF(ROUND(G27,-1)<>ROUND('8-tab recettes_fléchées_UBS'!D28,-1),"! Incohérence abond. trésorerie fléchée avec Tab8 ETAB",""),"") ->  | M37: =IF('8-tab recettes_fléchées_UBS'!D27<=0,IF(ROUND(M27,-1)<>-ROUND('8-tab recettes_fléchées_UBS'!D28,-1),"! Incohérence prélèv. trésorerie fléchée avec Tab8 ETAB",""),"") -> 
B38: SAIC : service d'activités industrielles et commerciales
B39: FU : fondation universitaire
B40: BAI : budget annexe immobilier
B41: SIE : service inter-établissements

Sheet 5-tab compte de tiers_UBS
B1: Tableau 5 - Université de Bretagne Sud (0561718N) - Etablissement principal
B2: ="Opérations pour le compte de tiers - Budget consolidé "&Maquette!B4&" "&Maquette!B5&" "&Maquette!B3 -> Opérations pour le compte de tiers - Budget consolidé initial 2024
B5: POUR INFORMATION DE L'ORGANE DÉLIBÉRANT
B9: Opérations ou regroupement d'opérations de même nature | C9: Comptes | D9: Libellé | E9: Prévisions de décaissements | F9: Prévisions d'encaissements
B10: Opération 1 | C10: C 46711 | D10: Bourse Mobilité Internationale | E10: 114000 | F10: 152000
C11: C 4…
B12: Opération 2 | C12: C 44571 et C 44551 | D12: TVA | E12: 789936 | F12: 686220
C13: C 4...
B14: Opération 3 | C14: C 467611 | D14: Projet Cyberus | E14: 154520
C15: C 4...
B16: Opération 4 | C16: C 467612 | D16: Mobilité apprentissage | E16: 16400 | F16: 16400
C17: C 4...
B18: Opération 5 | C18: C 467613 | D18: Mobilité des doctorants | E18: 0 | F18: 0
C19: C 4...
B20: Opération 6 | C20: C 467614 | D20: Projet Tranga | E20: 364207 | F20: 364207
C21: C 4...
B22: TOTAL | E22: =SUM(E10:E21) -> 1439063 | F22: =SUM(F10:F21) -> 1218827
E23: (c1) | F23: (c2)
D24: (c1) et (c2) étant repris au tableau "Équilibre financier" (tableau 4)
B25: N.B. : Dans l'hypothèse d'un écart entre les crédits et les débits d'un même compte, l'opération concernée devra faire l'objet d'une explication spécifique.
E27: =IF(ROUND(E22,-1)<>ROUND('4-tab_financier_UBS'!G20,-1),"! Incohérence total décaissements tiers avec Tab4","") ->  | F27: =IF(ROUND(F22,-1)<>ROUND('4-tab_financier_UBS'!M20,-1),"! Incohérence total encaissements tiers avec Tab4","") -> 

Sheet 6-tab CR_TF_UBS
A1: Tableau 6 - Université de Bretagne Sud (0561718N) - Etablissement principal
A2: ="Situation patrimoniale - Budget consolidé "&Maquette!B4&" "&Maquette!B5&" "&Maquette!B3 -> Situation patrimoniale - Budget consolidé initial 2024
A4: POUR VOTE DE L'ORGANE DÉLIBÉRANT
A6: Compte de résultat prévisionnel | B6: =IF(ROUND(F13,-1)=ROUND('6-tab CR_TF_AGR'!F13+'6-tab CR_TF_SIE'!F13,-1),"","! Pb agrégat charges") ->  | G6: =IF(ROUND(L13,-1)=ROUND('6-tab CR_TF_AGR'!L13+'6-tab CR_TF_SIE'!L13,-1),"","! Pb agrégat produits") -> 
A8: CHARGES | B8: Exécution N-1: BR2/2023 | C8: Budget initial (a) | D8: Nouveau BR | E8: Somme des BR (yc nouveau BR) (b) | F8: TOTAL : dernier budget modifié (c) = (a) + (b) | G8: PRODUITS | H8: Exécution N-1: BR2/2022 | I8: Budget initial (d) | J8: Nouveau BR | K8: Somme des BR (yc nouveau BR) (e) | L8: TOTAL : dernier budget modifié (f) = (d) + (e)
A9: Personnel | B9: 79585880.03 | C9: =85557956.43-913759 -> 84644197.43 | F9: =C9+E9 -> 84644197.43 | G9: Subventions de l'Etat | H9: 74017500.55 | I9: 77598726.24 | L9: =I9+K9 -> 77598726.24
A10: dont charges de pensions civiles* | B10: 20016600 | C10: 21043747 | F10: =C10+E10 -> 21043747 | G10: Fiscalité affectée | H10: 681432.61 | I10: 612900 | L10: =I10+K10 -> 612900
A11: Fonctionnement (autre que les charges de personnel) et intervention | B11: 24637917.57 | C11: 24075645.35 | F11: =C11+E11 -> 24075645.35 | G11: Autres subventions | H11: 6783343.17 | I11: 5386636.59 | L11: 5386636.59
G12: Autres produits | H12: 21340716.84 | I12: 23942912.68 | L12: 23942912.68
A13: TOTAL DES CHARGES (1) | B13: =B9+B11 -> 104223797.6 | C13: =C9+C11 -> 108719842.8 | D13: =D9+D11 -> 0 | E13: =E9+E11 -> 0 | F13: =F9+F11 -> 108719842.8 | G13: TOTAL DES PRODUITS (2) | H13: =SUM(H9:H12) -> 102822993.2 | I13: =SUM(I9:I12) -> 107541175.5 | J13: 0 | K13: 0 | L13: =SUM(L9:L12) -> 107541175.5
A14: Résultat prévisionnel : bénéfice (3) = (2) - (1) | B14: =IF(H13-B13>0,H13-B13,0) -> 0 | C14: =IF(I13-C13>0,I13-C13,0) -> 0 | F14: =IF(L13-F13>0,L13-F13,0) -> 0 | G14: Résultat prévisionnel : perte (4) = (1) - (2) | H14: =IF(B13-H13>0,B13-H13,0) -> 1400804.43 | I14: =IF(C13-I13>0,C13-I13,0) -> 1178667.27 | J14: =IF(D13-J13>0,D13-J13,0) -> 0 | K14: =IF(E13-K13>0,E13-K13,0) -> 0 | L14: =IF(F13-L13>0,F13-L13,0) -> 1178667.27
A15: TOTAL EQUILIBRE du compte de résultat prévisionnel (1) + (3) = (2) + (4) | B15: =B13+B14 -> 104223797.6 | C15: =C13+C14 -> 108719842.8 | D15: =D13+D14 -> 0 | E15: =E13+E14 -> 0 | F15: =F13+F14 -> 108719842.8 | G15: TOTAL EQUILIBRE du compte de résultat prévisionnel (1) + (3) = (2) + (4) | H15: =H13+H14 -> 104223797.6 | I15: =I13+I14 -> 108719842.8 | J15: =J13+J14 -> 0 | K15: 0 | L15: =L13+L14 -> 108719842.8
A16: * Il s'agit des sous catégories de comptes présentant les contributions employeur au CAS Pensions. | D16: ="Nouveau BR : Différence charges de personnel entre tableau 2 et tableau 6 est de : "&(ROUND(D9,0)-ROUND('2-tab_aut_budg_UBS'!H11+'2-tab_aut_budg_UBS'!H24,0)) -> Nouveau BR : Différence charges de personnel entre tableau 2 et tableau 6 est de : 0 | E16: ="Somme des BR : Différence charges de personnel entre tableau 2 et tableau 6 est de : "&(ROUND(E9,0)-ROUND('2-tab_aut_budg_UBS'!J11+'2-tab_aut_budg_UBS'!J24,0)) -> Somme des BR : Différence charges de personnel entre tableau 2 et tableau 6 est de : 0 | F16: ="Budget BI+BR : Différence charges de personnel entre tableau 2 et tableau 6 est de : "&(ROUND(F9,0)-ROUND('2-tab_aut_budg_UBS'!L11+'2-tab_aut_budg_UBS'!L24,0)) -> Budget BI+BR : Différence charges de personnel entre tableau 2 et tableau 6 est de : -913759
B17: =IF('2-tab_aut_budg_UBS'!L24="",IF(ROUND(B10,-1)<>ROUND('2-tab_aut_budg_UBS'!D12,-1),"! Incohérence charges PC Tab2 ETAB",""),"") ->  | C17: =IF('2-tab_aut_budg_UBS'!L24="",IF(ROUND(C10,-1)<>ROUND('2-tab_aut_budg_UBS'!F12,-1),"! Incohérence charges PC Tab2 ETAB",""),"") ->  | D17: =IF('2-tab_aut_budg_UBS'!L24="",IF(ROUND(D10,-1)<>ROUND('2-tab_aut_budg_UBS'!H12,-1),"! Incohérence charges PC Tab2 ETAB",""),"") ->  | E17: =IF('2-tab_aut_budg_UBS'!L24="",IF(ROUND(E10,-1)<>ROUND('2-tab_aut_budg_UBS'!J12,-1),"! Incohérence charges PC Tab2 ETAB",""),"") ->  | F17: =IF('2-tab_aut_budg_UBS'!L24="",IF(ROUND(F10,-1)<>ROUND('2-tab_aut_budg_UBS'!L12,-1),"! Incohérence charges PCl Tab2 ETAB",""),"") -> 
A19: Calcul de la capacité d'autofinancement (CAF) | B19: =IF(ROUND(F28,-1)=ROUND('6-tab CR_TF_AGR'!F28+'6-tab CR_TF_SIE'!F28,-1),"","! Pb agrégat CAF/IAF") -> 
B21: Exécution N-1: BR2/2023 | C21: Budget initial (g) | D21: Nouveau BR | E21: Somme des BR (yc nouveau BR) (h) | F21: TOTAL : dernier budget modifié (i) = (g) + (h)
A22: Résultat prévisionnel de l'exercice (bénéfice (3) ou perte (-4) | B22: =IF(B14>0,B14,-H14) -> -1400804.43 | C22: =IF(C14>0,C14,-I14) -> -1178667.27 | D22: =IF(D14>0,D14,-J14) -> 0 | E22: =IF(E14>0,E14,-K14) -> 0 | F22: =IF(F14>0,F14,-L14) -> -1178667.27
A23: + dotations aux amortissements, dépréciations et provisions | B23: 7086350 | C23: 6972826 | F23: =C23+E23 -> 6972826
A24: - reprises sur amortissements, dépréciations et provisions | B24: -4601046 | C24: -4395075 | F24: =C24+E24 -> -4395075
A25: + valeur nette comptable des éléments d'actifs cédés | B25: 0 | F25: =C25+E25 -> 0
A26: - produits de cession d'éléments d'actifs | B26: 0 | F26: =C26+E26 -> 0
A27: - quote-part des subventions d’investissement virée au résultat de l’exercice | B27: 0 | F27: =C27+E27 -> 0
A28: = CAF ou IAF* | B28: =SUM(B22:B27) -> 1084499.57 | C28: =SUM(C22:C27) -> 1399083.73 | D28: 0 | E28: 0 | F28: =SUM(F22:F27) -> 1399083.73
A29: * capacité d'autofinancement ou insuffisance d'autofinancement
A32: État prévisionnel de l'évolution de la situation patrimoniale en droits constatés | D32: =IF(ROUND(F41,-1)=ROUND('6-tab CR_TF_AGR'!F41+'6-tab CR_TF_SIE'!F41,-1),"","! Pb agrégat apport FDR") ->  | G32: =IF(ROUND(L41,-1)=ROUND('6-tab CR_TF_AGR'!L41+'6-tab CR_TF_SIE'!L41,-1),"","! Pb agrégat prélèvement FDR") -> 
A34: EMPLOIS | B34: Exécution N-1: BR2/2023 | C34: Budget initial (j) | D34: Nouveau BR | E34: Somme des BR (yc nouveau BR) (k) | F34: TOTAL : dernier budget modifié (l) = (j) + (k) | G34: RESSOURCES | H34: Exécution N-1: BR2/2023 | I34: Budget initial (m) | J34: Nouveau BR | K34: Somme des BR (yc nouveau BR) (n) | L34: TOTAL : dernier budget modifié (o) = (m) + (n)
A35: Insuffisance d'autofinancement* | B35: =IF(B28<0,-B28,0) -> 0 | C35: =IF(C28<0,-C28,0) -> 0 | D35: =IF(D28<0,-D28,0) -> 0 | E35: =IF(E28<0,-E28,0) -> 0 | F35: =IF(F28<0,-F28,0) -> 0 | G35: Capacité d'autofinancement* | H35: =IF(B28>0,B28,0) -> 1084499.57 | I35: =IF(C28>0,C28,0) -> 1399083.73 | J35: =IF(D28>0,D28,0) -> 0 | K35: =IF(E28>0,E28,0) -> 0 | L35: =IF(F28>0,F28,0) -> 1399083.73
A36: Investissements | B36: 8507234.32 | C36: 6196469.38 | F36: =C36+E36 -> 6196469.38 | G36: Financement de l'actif par l'État | H36: 75580.03 | I36: 500000 | L36: =I36+K36 -> 500000
G37: Financement de l'actif par des tiers autres que l'Etat | H37: 1293224.49 | I37: 1378733.65 | L37: =I37+K37 -> 1378733.65
G38: Autres ressources | H38: 1891859 | I38: 70225 | L38: 70225
A39: Remboursement des dettes financières | F39: =C39+E39 -> 0 | G39: Augmentation des dettes financières | H39: 0 | L39: 0
A40: TOTAL DES EMPLOIS (5) | B40: =SUM(B35:B39) -> 8507234.32 | C40: 6196469.38 | D40: 0 | E40: =SUM(E35:E39) -> 0 | F40: =SUM(F35:F39) -> 6196469.38 | G40: TOTAL DES RESSOURCES (6) | H40: =SUM(H35:H39) -> 4345163.09 | I40: 3348042.38 | J40: 0 | K40: =SUM(K35:K39) -> 0 | L40: =SUM(L35:L39) -> 3348042.38
A41: APPORT au FONDS DE ROULEMENT (7) = (6)-(5) | B41: =IF(H40-B40>0,H40-B40,0) -> 0 | C41: =IF(I40-C40>0,I40-C40,0) -> 0 | D41: =IF(J40-D40>0,J40-D40,0) -> 0 | E41: =IF(K40-E40>0,K40-E40,0) -> 0 | F41: =IF(L40-F40>0,L40-F40,0) -> 0 | G41: PRELEVEMENT sur FONDS DE ROULEMENT (8) = (5)-(6) | H41: =IF(B40-H40>0,B40-H40,0) -> 4162071.23 | I41: =IF(C40-I40>0,C40-I40,0) -> 2848427 | J41: =IF(D40-J40>0,D40-J40,0) -> 0 | K41: =IF(E40-K40>0,E40-K40,0) -> 0 | L41: =IF(F40-L40>0,F40-L40,0) -> 2848427
A43: POUR INFORMATION DE L'ORGANE DÉLIBÉRANT
H45: Exécution N-1: BR2/2023 | I45: Budget initial (q) | J45: Nouveau BR | K45: Somme des BR (yc nouveau BR) (r) | L45: TOTAL : dernier budget modifié Variation (s) = (q) + (r) Niveau = (p) + (s)
A46: VARIATION DU FONDS DE ROULEMENT : APPORT (7) ou PRELEVEMENT (8) | H46: =IF(B41>0,B41,-H41) -> -4162071.23 | I46: =IF(C41>0,C41,-I41) -> -2848427 | J46: =IF(D41>0,D41,-J41) -> 0 | K46: =IF(E41>0,E41,-K41) -> 0 | L46: =I46+K46 -> -2848427 | N46: =IF(L46<0,IF(ROUND(L46,-1)=-ROUND('2-tab_aut_budg_UBS'!R30,-1),"! Impossibilité Var fonds de roulement = Solde budg Tab2 ETAB",""),IF(L46>0,IF(ROUND(L46,-1)=ROUND('2-tab_aut_budg_UBS'!L30,-1),"! Impossibilité Var fonds de roulement = Solde budg Tab2 ETAB",""),"")) -> 
A47: Variation du BESOIN en FONDS DE ROULEMENT | H47: =H46-H48 -> -1259190.22 | I47: =I46-I48 -> 843565.07 | L47: =I47+K47 -> 843565.07
A48: Variation de la TRESORERIE : ABONDEMENT (I) ou PRELEVEMENT (II) * | H48: -2902881.01 | I48: ='7-tab Plan_tréso_UBS'!O48 -> -3691992.07 | L48: -3691992.07
A49: Niveau du FONDS DE ROULEMENT | H49: 9847974.65 | I49: =H49+I46 -> 6999547.65 | L49: =H49+L46 -> 6999547.65
A50: Niveau du BESOIN EN FONDS DE ROULEMENT | H50: =H49-H51 -> -1160193.02 | I50: -316627.95 | L50: =H50+L47 -> -316627.95
A51: Niveau de la TRESORERIE | H51: 11008167.67 | I51: =H51+I48 -> 7316175.6 | L51: 7316175.6
A53: * : montant issu du tableau "équilibre financier" | H53: =IF(H48<=0,IF(ROUND(H48,-1)<>-ROUND('4-tab_financier_UBS'!I25,-1),"! Incohérence var trésorerie N-1 Tab4",""),IF(ROUND(H48,-1)<>ROUND('4-tab_financier_UBS'!C25,-1),"! Incohérence var trésorerie N-1 Tab4","")) ->  | J53: =IF(J48<=0,IF(ROUND(J48,-1)<>-ROUND('4-tab_financier_UBS'!K25,-1),"! Incohérence var trésorerie BR Tab4",""),IF(ROUND(J48,-1)<>ROUND('4-tab_financier_UBS'!E25,-1),"! Incohérence var trésorerie BR Tab4","")) ->  | K53: =IF(K48<=0,IF(ROUND(K48,-1)<>-ROUND('4-tab_financier_UBS'!L25,-1),"! Incohérence var trésorerie BR totTab4",""),IF(ROUND(K48,-1)<>ROUND('4-tab_financier_UBS'!F25,-1),"! Incohérence var trésorerie BR tot Tab4","")) ->  | L53: =IF(L48<=0,IF(ROUND(L48,-1)<>-ROUND('4-tab_financier_UBS'!M25,-1),"! Incohérence trésorerie Total Tab4",""),IF(ROUND(L48,-1)<>ROUND('4-tab_financier_UBS'!G25,-1),"! Incohérence variation trésorerie Total Tab4","")) -> 
L54: =IF(ROUND(L51,-1)<>ROUND('7-tab Plan_tréso_UBS'!N49,-1),"! Incohérence de niveau de trésorerie final avec Tab7","") -> 

Sheet 6-tab CR_TF_AGR (hidden)
A1: Tableau 6 - Université de Bretagne Sud (0561718N) : Etablissement principal + Fondation
A2: ="Situation patrimoniale - Budget agrégé "&Maquette!B4&" "&Maquette!B5&" "&Maquette!B3 -> Situation patrimoniale - Budget agrégé initial 2024
A4: POUR VOTE DE L'ORGANE DÉLIBÉRANT
A6: Compte de résultat prévisionnel | B6: =IF(ROUND(F13,-1)=ROUND(#REF!+#REF!,-1),"","! Pb agrégat charges") ->  | G6: =IF(ROUND(L13,-1)=ROUND(#REF!+#REF!,-1),"","! Pb agrégat produits") -> 
A8: CHARGES | B8: Exécution N-1 | C8: Budget initial (a) | D8: Nouveau BR | E8: Somme des BR (yc nouveau BR) (b) | F8: TOTAL : dernier budget modifié (c) = (a) + (b) | G8: PRODUITS | H8: Exécution N-1 | I8: Budget initial (d) | J8: Nouveau BR | K8: Somme des BR (yc nouveau BR) (e) | L8: TOTAL : dernier budget modifié (f) = (d) + (e)
A9: Personnel | B9: =#REF!+#REF! ->  | C9: =#REF!+#REF! ->  | D9: =#REF!+#REF! ->  | E9: =#REF!+#REF! ->  | F9: =C9+E9 ->  | G9: Subventions de l'Etat | H9: =#REF!+#REF! ->  | I9: =#REF!+#REF! ->  | J9: =#REF!+#REF! ->  | K9: =#REF!+#REF! ->  | L9: =I9+K9 -> 
A10: dont charges de pensions civiles* | B10: =#REF!+#REF! ->  | C10: =#REF!+#REF! ->  | D10: =#REF!+#REF! ->  | E10: =#REF!+#REF! ->  | F10: =C10+E10 ->  | G10: Fiscalité affectée | H10: =#REF!+#REF! ->  | I10: =#REF!+#REF! ->  | J10: =#REF!+#REF! ->  | K10: =#REF!+#REF! ->  | L10: =I10+K10 -> 
A11: Fonctionnement (autre que les charges de personnel) et intervention | B11: =#REF!+#REF! ->  | C11: =#REF!+#REF! ->  | D11: =#REF!+#REF! ->  | E11: =#REF!+#REF! ->  | F11: =C11+E11 ->  | G11: Autres subventions | H11: =#REF!+#REF! ->  | I11: =#REF!+#REF! ->  | J11: =#REF!+#REF! ->  | K11: =#REF!+#REF! -> 
B12: =#REF!+#REF! ->  | C12: =#REF!+#REF! ->  | D12: =#REF!+#REF! ->  | E12: =#REF!+#REF! ->  | G12: Autres produits | H12: =#REF!+#REF! ->  | I12: =#REF!+#REF! ->  | J12: =#REF!+#REF! ->  | K12: =#REF!+#REF! -> 
A13: TOTAL DES CHARGES (1) | B13: =B9+B11 ->  | C13: =C9+C11 ->  | D13: =D9+D11 ->  | F13: =F9+F11 ->  | G13: TOTAL DES PRODUITS (2) | H13: =SUM(H9:H12) ->  | I13: =SUM(I9:I12) ->  | L13: =SUM(L9:L12) -> 
A14: Résultat prévisionnel : bénéfice (3) = (2) - (1) | B14: =IF(H13-B13>0,H13-B13,0) ->  | C14: =IF(I13-C13>0,I13-C13,0) ->  | D14: =IF(J13-D13>0,J13-D13,0) ->  | E14: =IF(K13-E13>0,K13-E13,0) ->  | F14: =IF(L13-F13>0,L13-F13,0) ->  | G14: Résultat prévisionnel : perte (4) = (1) - (2) | H14: =IF(B13-H13>0,B13-H13,0) ->  | I14: =IF(C13-I13>0,C13-I13,0) ->  | J14: =IF(D13-J13>0,D13-J13,0) ->  | K14: =IF(E13-K13>0,E13-K13,0) ->  | L14: =IF(F13-L13>0,F13-L13,0) -> 
A15: TOTAL EQUILIBRE du compte de résultat prévisionnel (1) + (3) = (2) + (4) | B15: =B13+B14 ->  | C15: =C13+C14 ->  | D15: =D13+D14 ->  | F15: =F13+F14 ->  | G15: TOTAL EQUILIBRE du compte de résultat prévisionnel (1) + (3) = (2) + (4) | H15: =H13+H14 ->  | I15: =I13+I14 ->  | L15: =L13+L14 -> 
A16: * Il s'agit des sous catégories de comptes présentant les contributions employeur au CAS Pensions. | B16: ="Exécution N-1 : Différence charges de personnel entre tableau 2 et tableau 6 est de : "&(ROUND(B9,0)-ROUND('2-tab_aut_budg_AGR'!D11+'2-tab_aut_budg_AGR'!D24,0)) ->  | C16: ="BI : Différence charges de personnel entre tableau 2 et tableau 6 est de : "&(ROUND(C9,0)-ROUND('2-tab_aut_budg_AGR'!F11+'2-tab_aut_budg_AGR'!F24,0)) ->  | D16: ="Nouveau BR : Différence charges de personnel entre tableau 2 et tableau 6 est de : "&(ROUND(D9,0)-ROUND('2-tab_aut_budg_AGR'!H11+'2-tab_aut_budg_AGR'!H24,0)) ->  | E16: ="Somme des BR : Différence charges de personnel entre tableau 2 et tableau 6 est de : "&(ROUND(E9,0)-ROUND('2-tab_aut_budg_AGR'!J11+'2-tab_aut_budg_AGR'!J24,0)) ->  | F16: ="Budget BI+BR : Différence charges de personnel entre tableau 2 et tableau 6 est de : "&(ROUND(F9,0)-ROUND('2-tab_aut_budg_AGR'!L11+'2-tab_aut_budg_AGR'!L24,0)) -> 
B17: =IF('2-tab_aut_budg_AGR'!L24="",IF(ROUND(B10,-1)<>ROUND('2-tab_aut_budg_AGR'!D12,-1),"! Incohérence charges PC Tab2 AGR",""),"") ->  | C17: =IF('2-tab_aut_budg_AGR'!L24="",IF(ROUND(C10,-1)<>ROUND('2-tab_aut_budg_AGR'!F12,-1),"! Incohérence charges PC Tab2 AGR",""),"") ->  | D17: =IF('2-tab_aut_budg_AGR'!L24="",IF(ROUND(D10,-1)<>ROUND('2-tab_aut_budg_AGR'!H12,-1),"! Incohérence charges PC Tab2 AGR",""),"") ->  | E17: =IF('2-tab_aut_budg_AGR'!L24="",IF(ROUND(E10,-1)<>ROUND('2-tab_aut_budg_AGR'!J12,-1),"! Incohérence charges PC Tab2 AGR",""),"") ->  | F17: =IF('2-tab_aut_budg_AGR'!L24="",IF(ROUND(F10,-1)<>ROUND('2-tab_aut_budg_AGR'!L12,-1),"! Incohérence charges PCl Tab2 AGR",""),"") -> 
A19: Calcul de la capacité d'autofinancement (CAF) | B19: =IF(ROUND(F28,-1)=ROUND(#REF!+#REF!,-1),"","! Pb agrégat CAF/IAF") -> 
B21: Exécution N-1 | C21: Budget initial (g) | D21: Nouveau BR | E21: Somme des BR (yc nouveau BR) (h) | F21: TOTAL : dernier budget modifié (i) = (g) + (h)
A22: Résultat prévisionnel de l'exercice (bénéfice (3) ou perte (-4) | B22: =IF(B14>0,B14,-H14) ->  | C22: =IF(C14>0,C14,-I14) ->  | D22: =IF(D14>0,D14,-J14) ->  | E22: =IF(E14>0,E14,-K14) ->  | F22: =IF(F14>0,F14,-L14) -> 
A23: + dotations aux amortissements, dépréciations et provisions | B23: =#REF!+#REF! ->  | C23: =#REF!+#REF! ->  | D23: =#REF!+#REF! ->  | E23: =#REF!+#REF! ->  | F23: =C23+E23 -> 
A24: - reprises sur amortissements, dépréciations et provisions | B24: =#REF!+#REF! ->  | C24: =#REF!+#REF! ->  | D24: =#REF!+#REF! ->  | E24: =#REF!+#REF! ->  | F24: =C24+E24 -> 
A25: + valeur nette comptable des éléments d'actifs cédés | B25: =#REF!+#REF! ->  | C25: =#REF!+#REF! ->  | D25: =#REF!+#REF! ->  | E25: =#REF!+#REF! ->  | F25: =C25+E25 -> 
A26: - produits de cession d'éléments d'actifs | B26: =#REF!+#REF! ->  | C26: =#REF!+#REF! ->  | D26: =#REF!+#REF! ->  | E26: =#REF!+#REF! ->  | F26: =C26+E26 -> 
A27: - quote-part des subventions d’investissement virée au résultat de l’exercice | B27: =#REF!+#REF! ->  | C27: =#REF!+#REF! ->  | D27: =#REF!+#REF! ->  | E27: =#REF!+#REF! ->  | F27: =C27+E27 -> 
A28: = CAF ou IAF* | B28: =SUM(B22:B27) ->  | C28: =SUM(C22:C27) ->  | F28: =SUM(F22:F27) -> 
A29: * capacité d'autofinancement ou insuffisance d'autofinancement
A32: État prévisionnel de l'évolution de la situation patrimoniale en droits constatés | D32: =IF(ROUND(F41,-1)=ROUND(#REF!+#REF!,-1),"","! Pb agrégat apport FDR") ->  | G32: =IF(ROUND(L41,-1)=ROUND(#REF!+#REF!,-1),"","! Pb agrégat prélèvement FDR") -> 
A34: EMPLOIS | B34: Exécution N-1 | C34: Budget initial (j) | D34: Nouveau BR | E34: Somme des BR (yc nouveau BR) (k) | F34: TOTAL : dernier budget modifié (l) = (j) + (k) | G34: RESSOURCES | H34: Exécution N-1 | I34: Budget initial (m) | J34: Nouveau BR | K34: Somme des BR (yc nouveau BR) (n) | L34: TOTAL : dernier budget modifié (o) = (m) + (n)
A35: Insuffisance d'autofinancement* | B35: =IF(B28<0,-B28,0) ->  | C35: =IF(C28<0,-C28,0) ->  | D35: =IF(D28<0,-D28,0) ->  | E35: =IF(E28<0,-E28,0) ->  | F35: =IF(F28<0,-F28,0) ->  | G35: Capacité d'autofinancement* | H35: =IF(B28>0,B28,0) ->  | I35: =IF(C28>0,C28,0) ->  | J35: =IF(D28>0,D28,0) ->  | K35: =IF(E28>0,E28,0) ->  | L35: =IF(F28>0,F28,0) -> 
A36: Investissements | B36: =#REF!+#REF! ->  | C36: =#REF!+#REF! ->  | D36: =#REF!+#REF! ->  | E36: =#REF!+#REF! ->  | F36: =C36+E36 ->  | G36: Financement de l'actif par l'État | H36: =#REF!+#REF! ->  | I36: =#REF!+#REF! ->  | J36: =#REF!+#REF! ->  | K36: =#REF!+#REF! ->  | L36: =I36+K36 -> 
B37: =#REF!+#REF! ->  | C37: =#REF!+#REF! ->  | D37: =#REF!+#REF! ->  | E37: =#REF!+#REF! ->  | G37: Financement de l'actif par des tiers autres que l'Etat | H37: =#REF!+#REF! ->  | I37: =#REF!+#REF! ->  | J37: =#REF!+#REF! ->  | K37: =#REF!+#REF! ->  | L37: =I37+K37 -> 
B38: =#REF!+#REF! ->  | C38: =#REF!+#REF! ->  | D38: =#REF!+#REF! ->  | E38: =#REF!+#REF! ->  | G38: Autres ressources | H38: =#REF!+#REF! ->  | I38: =#REF!+#REF! ->  | J38: =#REF!+#REF! ->  | K38: =#REF!+#REF! -> 
A39: Remboursement des dettes financières | B39: =#REF!+#REF! ->  | C39: =#REF!+#REF! ->  | D39: =#REF!+#REF! ->  | E39: =#REF!+#REF! ->  | F39: =C39+E39 ->  | G39: Augmentation des dettes financières | H39: =#REF!+#REF! ->  | I39: =#REF!+#REF! ->  | J39: =#REF!+#REF! ->  | K39: =#REF!+#REF! -> 
A40: TOTAL DES EMPLOIS (5) | B40: =SUM(B35:B39) ->  | E40: =SUM(E35:E39) ->  | F40: =SUM(F35:F39) ->  | G40: TOTAL DES RESSOURCES (6) | H40: =SUM(H35:H39) ->  | L40: =SUM(L35:L39) -> 
A41: APPORT au FONDS DE ROULEMENT (7) = (6)-(5) | B41: =IF(H40-B40>0,H40-B40,0) ->  | C41: =IF(I40-C40>0,I40-C40,0) ->  | D41: =IF(J40-D40>0,J40-D40,0) ->  | E41: =IF(K40-E40>0,K40-E40,0) ->  | F41: =IF(L40-F40>0,L40-F40,0) ->  | G41: PRELEVEMENT sur FONDS DE ROULEMENT (8) = (5)-(6) | H41: =IF(B40-H40>0,B40-H40,0) ->  | I41: =IF(C40-I40>0,C40-I40,0) ->  | J41: =IF(D40-J40>0,D40-J40,0) ->  | K41: =IF(E40-K40>0,E40-K40,0) ->  | L41: =IF(F40-L40>0,F40-L40,0) -> 
A43: POUR INFORMATION DE L'ORGANE DÉLIBÉRANT
H45: Exécution N-1 (p) | I45: Budget initial (q) | J45: Nouveau BR | K45: Somme des BR (yc nouveau BR) (r) | L45: TOTAL : dernier budget modifié Variation (s) = (q) + (r) Niveau = (p) + (s)
A46: VARIATION DU FONDS DE ROULEMENT : APPORT (7) ou PRELEVEMENT (8) | H46: =IF(B41>0,B41,-H41) ->  | I46: =IF(C41>0,C41,-I41) ->  | J46: =IF(D41>0,D41,-J41) ->  | K46: =IF(E41>0,E41,-K41) ->  | L46: =I46+K46 ->  | N46: =IF(L46<0,IF(ROUND(L46,-1)=-ROUND('2-tab_aut_budg_AGR'!R30,-1),"! Impossibilité Var fonds de roulement = Solde budg Tab2 AGR",""),IF(L46>0,IF(ROUND(L46,-1)=ROUND('2-tab_aut_budg_AGR'!L30,-1),"! Impossibilité Var fonds de roulement = Solde budg Tab2 AGR",""),"")) -> 
A47: Variation du BESOIN en FONDS DE ROULEMENT | H47: =#REF!+#REF! ->  | I47: =#REF!+#REF! ->  | J47: =#REF!+#REF! ->  | K47: =#REF!+#REF! ->  | L47: =I47+K47 -> 
A48: Variation de la TRESORERIE : ABONDEMENT (I) ou PRELEVEMENT (II) * | H48: =#REF!+#REF! ->  | I48: =#REF!+#REF! ->  | J48: =#REF!+#REF! ->  | K48: =#REF!+#REF! ->  | N48: =IF(ROUND(L48,-1)=ROUND(#REF!+#REF!,-1),"","! Pb agrégat variation trésorerie") -> 
A49: Niveau du FONDS DE ROULEMENT | H49: =#REF!+#REF! ->  | I49: =#REF!+#REF! ->  | J49: =#REF!+#REF! ->  | K49: =#REF!+#REF! ->  | L49: =H49+L46 -> 
A50: Niveau du BESOIN EN FONDS DE ROULEMENT | H50: =#REF!+#REF! ->  | I50: =#REF!+#REF! ->  | J50: =#REF!+#REF! ->  | K50: =#REF!+#REF! ->  | L50: =H50+L47 -> 
A51: Niveau de la TRESORERIE | H51: =#REF!+#REF! ->  | I51: =#REF!+#REF! ->  | J51: =#REF!+#REF! ->  | K51: =#REF!+#REF! ->  | N51: =IF(ROUND(L51,-1)=ROUND(#REF!+#REF!,-1),"","! Pb agrégat niveau trésorerie") -> 
A53: * : montant issu du tableau "équilibre financier"

Sheet 6-tab CR_TF_SIE (hidden)
A1: Tableau 6 - Université de Bretagne Sud (0561718N) : CFA
A2: ="Situation patrimoniale - Budget "&Maquette!B4&" "&Maquette!B5&" "&Maquette!B3 -> Situation patrimoniale - Budget initial 2024
A4: POUR VOTE DE L'ORGANE DÉLIBÉRANT
A6: Compte de résultat prévisionnel
A8: CHARGES | B8: Exécution N-1 | C8: Budget initial (a) | D8: Nouveau BR | E8: Somme des BR (yc nouveau BR) (b) | F8: TOTAL : dernier budget modifié (c) = (a) + (b) | G8: PRODUITS | H8: Exécution N-1 | I8: Budget initial (d) | J8: Nouveau BR | K8: Somme des BR (yc nouveau BR) (e) | L8: TOTAL : dernier budget modifié (f) = (d) + (e)
A9: Personnel | F9: =C9+E9 -> 0 | G9: Subventions de l'Etat | L9: =I9+K9 -> 0
A10: dont charges de pensions civiles* | F10: =C10+E10 -> 0 | G10: Fiscalité affectée | L10: =I10+K10 -> 0
A11: Fonctionnement (autre que les charges de personnel) et intervention | F11: =C11+E11 -> 0 | G11: Autres subventions | L11: 0
G12: Autres produits | L12: 0
A13: TOTAL DES CHARGES (1) | B13: =B9+B11 -> 0 | C13: =C9+C11 -> 0 | D13: =D9+D11 -> 0 | E13: 0 | F13: =F9+F11 -> 0 | G13: TOTAL DES PRODUITS (2) | H13: =SUM(H9:H12) -> 0 | I13: =SUM(I9:I12) -> 0 | J13: 0 | K13: 0 | L13: =SUM(L9:L12) -> 0
A14: Résultat prévisionnel : bénéfice (3) = (2) - (1) | B14: =IF(H13-B13>0,H13-B13,0) -> 0 | C14: =IF(I13-C13>0,I13-C13,0) -> 0 | D14: =IF(J13-D13>0,J13-D13,0) -> 0 | E14: =IF(K13-E13>0,K13-E13,0) -> 0 | F14: =IF(L13-F13>0,L13-F13,0) -> 0 | G14: Résultat prévisionnel : perte (4) = (1) - (2) | H14: =IF(B13-H13>0,B13-H13,0) -> 0 | I14: =IF(C13-I13>0,C13-I13,0) -> 0 | J14: =IF(D13-J13>0,D13-J13,0) -> 0 | K14: =IF(E13-K13>0,E13-K13,0) -> 0 | L14: =IF(F13-L13>0,F13-L13,0) -> 0
A15: TOTAL EQUILIBRE du compte de résultat prévisionnel (1) + (3) = (2) + (4) | B15: =B13+B14 -> 0 | C15: =C13+C14 -> 0 | D15: =D13+D14 -> 0 | E15: 0 | F15: =F13+F14 -> 0 | G15: TOTAL EQUILIBRE du compte de résultat prévisionnel (1) + (3) = (2) + (4) | H15: =H13+H14 -> 0 | I15: =I13+I14 -> 0 | J15: 0 | K15: 0 | L15: =L13+L14 -> 0
A16: * Il s'agit des sous catégories de comptes présentant les contributions employeur au CAS Pensions. | B16: ="Exécution N-1 : Différence charges de personnel entre tableau 2 et tableau 6 est de : "&(ROUND(B9,0)-ROUND(#REF!+#REF!,0)) ->  | C16: ="BI : Différence charges de personnel entre tableau 2 et tableau 6 est de : "&(ROUND(C9,0)-ROUND(#REF!+#REF!,0)) ->  | D16: ="Nouveau BR : Différence charges de personnel entre tableau 2 et tableau 6 est de : "&(ROUND(D9,0)-ROUND(#REF!+#REF!,0)) ->  | E16: ="Somme des BR : Différence charges de personnel entre tableau 2 et tableau 6 est de : "&(ROUND(E9,0)-ROUND(#REF!+#REF!,0)) ->  | F16: ="Budget BI+BR : Différence charges de personnel entre tableau 2 et tableau 6 est de : "&(ROUND(F9,0)-ROUND(#REF!+#REF!,0)) -> 
B17: =IF(#REF!="",IF(ROUND(B10,-1)<>ROUND(#REF!,-1),"! Incohérence charges PC Tab2 SIE",""),"") ->  | C17: =IF(#REF!="",IF(ROUND(C10,-1)<>ROUND(#REF!,-1),"! Incohérence charges PC Tab2 SIE",""),"") ->  | D17: =IF(#REF!="",IF(ROUND(D10,-1)<>ROUND(#REF!,-1),"! Incohérence charges PC Tab2 SIE",""),"") ->  | E17: =IF(#REF!="",IF(ROUND(E10,-1)<>ROUND(#REF!,-1),"! Incohérence charges PC Tab2 SIE",""),"") ->  | F17: =IF(#REF!="",IF(ROUND(F10,-1)<>ROUND(#REF!,-1),"! Incohérence charges PCl Tab2 SIE",""),"") -> 
A19: Calcul de la capacité d'autofinancement (CAF)
B21: Exécution N-1 | C21: Budget initial (g) | D21: Nouveau BR | E21: Somme des BR (yc nouveau BR) (h) | F21: TOTAL : dernier budget modifié (i) = (g) + (h)
A22: Résultat prévisionnel de l'exercice (bénéfice (3) ou perte (-4) | B22: =IF(B14>0,B14,-H14) -> 0 | C22: =IF(C14>0,C14,-I14) -> 0 | D22: =IF(D14>0,D14,-J14) -> 0 | E22: =IF(E14>0,E14,-K14) -> 0 | F22: =IF(F14>0,F14,-L14) -> 0
A23: + dotations aux amortissements, dépréciations et provisions | F23: =C23+E23 -> 0
A24: - reprises sur amortissements, dépréciations et provisions | F24: =C24+E24 -> 0
A25: + valeur nette comptable des éléments d'actifs cédés | F25: =C25+E25 -> 0
A26: - produits de cession d'éléments d'actifs | F26: =C26+E26 -> 0
A27: - quote-part des subventions d’investissement virée au résultat de l’exercice | F27: =C27+E27 -> 0
A28: = CAF ou IAF* | B28: =SUM(B22:B27) -> 0 | C28: =SUM(C22:C27) -> 0 | D28: 0 | E28: 0 | F28: =SUM(F22:F27) -> 0
A29: * capacité d'autofinancement ou insuffisance d'autofinancement
A32: État prévisionnel de l'évolution de la situation patrimoniale en droits constatés
A34: EMPLOIS | B34: Exécution N-1 | C34: Budget initial (j) | D34: Nouveau BR | E34: Somme des BR (yc nouveau BR) (k) | F34: TOTAL : dernier budget modifié (l) = (j) + (k) | G34: RESSOURCES | H34: Exécution N-1 | I34: Budget initial (m) | J34: Nouveau BR | K34: Somme des BR (yc nouveau BR) (n) | L34: TOTAL : dernier budget modifié (o) = (m) + (n)
A35: Insuffisance d'autofinancement* | B35: =IF(B28<0,-B28,0) -> 0 | C35: =IF(C28<0,-C28,0) -> 0 | D35: =IF(D28<0,-D28,0) -> 0 | E35: =IF(E28<0,-E28,0) -> 0 | F35: =IF(F28<0,-F28,0) -> 0 | G35: Capacité d'autofinancement* | H35: =IF(B28>0,B28,0) -> 0 | I35: =IF(C28>0,C28,0) -> 0 | J35: =IF(D28>0,D28,0) -> 0 | K35: =IF(E28>0,E28,0) -> 0 | L35: =IF(F28>0,F28,0) -> 0
A36: Investissements | F36: =C36+E36 -> 0 | G36: Financement de l'actif par l'État | L36: =I36+K36 -> 0
G37: Financement de l'actif par des tiers autres que l'Etat | L37: =I37+K37 -> 0
G38: Autres ressources | L38: 0
A39: Remboursement des dettes financières | F39: =C39+E39 -> 0 | G39: Augmentation des dettes financières | L39: 0
A40: TOTAL DES EMPLOIS (5) | B40: =SUM(B35:B39) -> 0 | C40: 0 | D40: 0 | E40: =SUM(E35:E39) -> 0 | F40: =SUM(F35:F39) -> 0 | G40: TOTAL DES RESSOURCES (6) | H40: =SUM(H35:H39) -> 0 | I40: 0 | J40: 0 | K40: 0 | L40: =SUM(L35:L39) -> 0
A41: APPORT au FONDS DE ROULEMENT (7) = (6)-(5) | B41: =IF(H40-B40>0,H40-B40,0) -> 0 | C41: =IF(I40-C40>0,I40-C40,0) -> 0 | D41: =IF(J40-D40>0,J40-D40,0) -> 0 | E41: =IF(K40-E40>0,K40-E40,0) -> 0 | F41: =IF(L40-F40>0,L40-F40,0) -> 0 | G41: PRELEVEMENT sur FONDS DE ROULEMENT (8) = (5)-(6) | H41: =IF(B40-H40>0,B40-H40,0) -> 0 | I41: =IF(C40-I40>0,C40-I40,0) -> 0 | J41: =IF(D40-J40>0,D40-J40,0) -> 0 | K41: =IF(E40-K40>0,E40-K40,0) -> 0 | L41: =IF(F40-L40>0,F40-L40,0) -> 0
A43: POUR INFORMATION DE L'ORGANE DÉLIBÉRANT
H45: Exécution N-1 (p) | I45: Budget initial (q) | J45: Nouveau BR | K45: Somme des BR (yc nouveau BR) (r) | L45: TOTAL : dernier budget modifié Variation (s) = (q) + (r) Niveau = (p) + (s)
A46: VARIATION DU FONDS DE ROULEMENT : APPORT (7) ou PRELEVEMENT (8) | H46: =IF(B41>0,B41,-H41) -> 0 | I46: =IF(C41>0,C41,-I41) -> 0 | J46: =IF(D41>0,D41,-J41) -> 0 | K46: =IF(E41>0,E41,-K41) -> 0 | L46: =I46+K46 -> 0 | N46: =IF(L46<0,IF(ROUND(L46,-1)=-ROUND(#REF!,-1),"! Impossibilité Var fonds de roulement = Solde budg Tab2 SIE",""),IF(L46>0,IF(ROUND(L46,-1)=ROUND(#REF!,-1),"! Impossibilité Var fonds de roulement = Solde budg Tab2 SIE",""),"")) -> 
A47: Variation du BESOIN en FONDS DE ROULEMENT | L47: =I47+K47 -> 0
A48: Variation de la TRESORERIE : ABONDEMENT (I) ou PRELEVEMENT (II) * | L48: 0
A49: Niveau du FONDS DE ROULEMENT | L49: =H49+L46 -> 0
A50: Niveau du BESOIN EN FONDS DE ROULEMENT | H50: =H49-H51 -> 0 | I50: =I49-I51 -> 0 | J50: 0 | K50: 0 | L50: =H50+L47 -> 0
A51: Niveau de la TRESORERIE | L51: 0
A53: * : montant issu du tableau "équilibre financier"

Sheet 7-tab Plan_tréso_UBS
B1: Tableau 7- Université de Bretagne Sud (0561718N) - Etablissement principal
B2: ="Plan de trésorerie - Budget consolidé "&Maquette!B4&" "&Maquette!B5&" "&Maquette!B3 -> Plan de trésorerie - Budget consolidé initial 2024
B4: POUR INFORMATION DE L'ORGANE DÉLIBÉRANT
B6: ( K€ ) | C6: janvier | D6: février | E6: mars | F6: avril | G6: mai | H6: juin | I6: juillet | J6: août | K6: septembre | L6: octobre | M6: novembre | N6: décembre | O6: TOTAL Variation de la trésorerie annuelle
B7: (1) SOLDE INITIAL (début de mois) | C7: 11008167.67 | D7: =C49 -> 23310437.54 | E7: =D49 -> 17340997.41 | F7: 11309457.28 | G7: 5359837.15 | H7: 17461517.02 | I7: 11348596.89 | J7: 4728556.76 | K7: 23424246.63 | L7: 16864626.5 | M7: 10244746.37 | N7: 3627146.24 | O7: =SUM(C7:N7) -> 156028333.5
B8: ENCAISSEMENTS
B9: Recettes budgétaires globalisées | C9: =SUM(C10:C14) -> 20929982.43 | D9: =SUM(D10:D14) -> 2623532.43 | E9: 2623532.43 | F9: 2673532.43 | G9: 20623532.43 | H9: 2673532.43 | I9: 2623532.43 | J9: 27929982.43 | K9: 2673532.43 | L9: 2623532.43 | M9: 2623532.43 | N9: 12684198.38 | O9: 103305955.1
B10: Subvention pour charges de service public | C10: 18000000 | D10: 0 | E10: 0 | F10: 0 | G10: 18000000 | H10: 0 | I10: 0 | J10: 25000000 | K10: 0 | L10: 0 | M10: 0 | N10: 10010666 | O10: =SUM(C10:N10) -> 71010666 | P10: =IF(ROUND(O10,-1)<>ROUND('2-tab_aut_budg_UBS'!R12,-1),"! Incohérence subv serv publ. Tab2 ETAB","") -> 
B11: Autres financements de l'Etat | C11: 227021.54 | D11: 227021.54 | E11: 227021.54 | F11: 277021.54 | G11: 227021.54 | H11: 277021.54 | I11: 227021.54 | J11: 227021.54 | K11: 277021.54 | L11: 227021.54 | M11: 227021.54 | N11: 277021.51 | O11: =SUM(C11:N11) -> 2924258.45 | P11: =IF(ROUND(O11,-1)<>ROUND('2-tab_aut_budg_UBS'!R13,-1),"! Incohérence autres financ. Etat Tab2 ETAB","") -> 
B12: Fiscalité affectée | C12: 306450 | D12: 0 | E12: 0 | F12: 0 | G12: 0 | H12: 0 | I12: 0 | J12: 306450 | K12: 0 | L12: 0 | M12: 0 | N12: 0 | O12: 612900 | P12: =IF(ROUND(O12,-1)<>ROUND('2-tab_aut_budg_UBS'!R14,-1),"! Incohérence fiscalité affectée Tab2 ETAB","") -> 
B13: Autres financements publics | C13: 638734.41 | D13: 638734.41 | E13: 638734.41 | F13: 638734.41 | G13: 638734.41 | H13: 638734.41 | I13: 638734.41 | J13: 638734.41 | K13: 638734.41 | L13: 638734.41 | M13: 638734.41 | N13: 638734.45 | O13: 7664812.96 | P13: =IF(ROUND(O13,-1)<>ROUND('2-tab_aut_budg_UBS'!R15,-1),"! Incohérence autres financ. publics Tab2 ETAB","") -> 
B14: Recettes propres | C14: 1757776.48 | D14: 1757776.48 | E14: 1757776.48 | F14: 1757776.48 | G14: 1757776.48 | H14: 1757776.48 | I14: 1757776.48 | J14: 1757776.48 | K14: 1757776.48 | L14: 1757776.48 | M14: 1757776.48 | N14: 1757776.42 | O14: 21093317.7 | P14: =IF(ROUND(O14,-1)<>ROUND('2-tab_aut_budg_UBS'!R16,-1),"! Incohérence recettes propres Tab2 ETAB","") -> 
B15: Recettes budgétaires fléchées | C15: =SUM(C16:C18) -> 73339.67 | D15: =SUM(D16:D18) -> 73339.67 | E15: 73339.67 | F15: 73339.67 | G15: 73339.67 | H15: 73339.67 | I15: 73339.67 | J15: 73339.67 | K15: 73339.67 | L15: 73339.67 | M15: 73339.67 | N15: 73339.61 | O15: =SUM(C15:N15) -> 880075.98
B16: Financements de l'Etat fléchés | C16: 0 | D16: 0 | E16: 0 | F16: 0 | G16: 0 | H16: 0 | I16: 0 | J16: 0 | K16: 0 | L16: 0 | M16: 0 | N16: 0 | O16: 0 | P16: =IF(ROUND(O16,-1)<>ROUND('2-tab_aut_budg_UBS'!R19,-1),"! Incohérence Financ. Etat fléchés Tab2 ETAB","") ->  | Q16: =IF(ROUND(O16,-1)<>ROUND('8-tab recettes_fléchées_UBS'!D13,-1),"! Incohérence Financ. Etat fléchés avec Tab8 ETAB","") -> 
B17: Autres financements publics fléchés | C17: 73339.67 | D17: 73339.67 | E17: 73339.67 | F17: 73339.67 | G17: 73339.67 | H17: 73339.67 | I17: 73339.67 | J17: 73339.67 | K17: 73339.67 | L17: 73339.67 | M17: 73339.67 | N17: 73339.61 | O17: 880075.98 | P17: =IF(ROUND(O17,-1)<>ROUND('2-tab_aut_budg_UBS'!R20,-1),"! Incohérence Autres financ. fléchés Tab2 ETAB","") ->  | Q17: =IF(ROUND(O17,-1)<>ROUND('8-tab recettes_fléchées_UBS'!D14,-1),"! Incohérence Autres financ. fléchés avec Tab8 ETAB","") -> 
B18: Recettes propres fléchées | C18: 0 | D18: 0 | E18: 0 | F18: 0 | G18: 0 | H18: 0 | I18: 0 | J18: 0 | K18: 0 | L18: 0 | M18: 0 | N18: 0 | O18: 0 | P18: =IF(ROUND(O18,-1)<>ROUND('2-tab_aut_budg_UBS'!R21,-1),"! Incohérence recettes propres fléchées Tab2 ETAB","") ->  | Q18: =IF(ROUND(O18,-1)<>ROUND('8-tab recettes_fléchées_UBS'!D15,-1),"! Incohérence Recettes propres fléchées avec Tab8 ETAB","") -> 
B19: Opérations non budgétaires | C19: =SUM(C20:C22) -> 0 | D19: =SUM(D20:D22) -> 0 | E19: 0 | F19: 0 | G19: 0 | H19: 0 | I19: 0 | J19: 0 | K19: 0 | L19: 0 | M19: 0 | N19: 0 | O19: 0 | P19: =IF(ROUND(O19,-1)<>ROUND('4-tab_financier_UBS'!M18,-1),"! Incohérence Emprunts Tab4","") -> 
B20: Emprunts : encaissements en capital | O20: 0
B21: Prêts : encaissements en capital | O21: 0
B22: Dépôts et cautionnements | O22: 0
B23: Opérations gérées en comptes de tiers : | C23: =SUM(C24:C26) -> 57185 | D23: =SUM(D24:D26) -> 102185 | E23: 57185 | F23: 59685 | G23: 164185 | H23: 57185 | I23: 57185 | J23: 57185 | K23: 57185 | L23: 57185 | M23: 65385 | N23: 427092 | O23: 1218827
B24: TVA encaissée | C24: 57185 | D24: 57185 | E24: 57185 | F24: 57185 | G24: 57185 | H24: 57185 | I24: 57185 | J24: 57185 | K24: 57185 | L24: 57185 | M24: 57185 | N24: 57185 | O24: 686220
B25: Dispositifs d'intervention pour compte de tiers : encaissements | C25: 0 | D25: 45000 | E25: 0 | F25: 2500 | G25: 107000 | H25: 0 | I25: 0 | J25: 0 | K25: 0 | L25: 0 | M25: 8200 | N25: 369907 | O25: 532607
B26: Autres encaissements d'opérations gérées en comptes de tiers | C26: 0 | D26: 0 | E26: 0 | F26: 0 | G26: 0 | H26: 0 | I26: 0 | J26: 0 | K26: 0 | L26: 0 | M26: 0 | N26: 0 | O26: 0
B27: A. TOTAL | C27: =C23+C19+C15+C9 -> 21060507.1 | D27: =D23+D19+D15+D9 -> 2799057.1 | E27: 2754057.1 | F27: 2806557.1 | G27: 20861057.1 | H27: 2804057.1 | I27: 2754057.1 | J27: 28060507.1 | K27: 2804057.1 | L27: 2754057.1 | M27: 2762257.1 | N27: 13184629.99 | O27: 105404858.1
B28: DECAISSEMENTS
B29: Dépenses liées à des recettes globalisées | C29: =SUM(C30:C33) -> 8539904.95 | D29: =SUM(D30:D33) -> 8539904.95 | E29: 8539904.95 | F29: 8539904.95 | G29: 8539904.95 | H29: 8539904.95 | I29: 9139904.95 | J29: 9139904.95 | K29: 9139904.95 | L29: 9139904.95 | M29: 9139904.95 | N29: 8890861.31 | O29: =SUM(C29:N29) -> 105829815.8
B30: Personnel | C30: 6800000 | D30: 6800000 | E30: 6800000 | F30: 6800000 | G30: 6800000 | H30: 6800000 | I30: 7400000 | J30: 7400000 | K30: 7400000 | L30: 7400000 | M30: 7400000 | N30: 7150956.43 | O30: =SUM(C30:N30) -> 84950956.43 | P30: =IF(ROUND(SUM(O30,O35),-1)<>ROUND('2-tab_aut_budg_UBS'!L11+'2-tab_aut_budg_UBS'!L24,-1),"! Incohérence Personnel Tab2 ETAB","") -> 
B31: Fonctionnement | C31: 1224615.83 | D31: 1224615.83 | E31: 1224615.83 | F31: 1224615.83 | G31: 1224615.83 | H31: 1224615.83 | I31: 1224615.83 | J31: 1224615.83 | K31: 1224615.83 | L31: 1224615.83 | M31: 1224615.83 | N31: 1224615.82 | O31: 14695389.95 | P31: =IF(ROUND(SUM(O31:O32,O36:O37),-1)<>ROUND('2-tab_aut_budg_UBS'!L15+'2-tab_aut_budg_UBS'!L25,-1),"! Incohérence Fonct et Interv. Tab2 ETAB","") -> 
B32: Intervention | O32: 0
B33: Investissement | C33: 515289.12 | D33: 515289.12 | E33: 515289.12 | F33: 515289.12 | G33: 515289.12 | H33: 515289.12 | I33: 515289.12 | J33: 515289.12 | K33: 515289.12 | L33: 515289.12 | M33: 515289.12 | N33: 515289.06 | O33: 6183469.38 | P33: =IF(ROUND(SUM(O33,O38),-1)<>ROUND('2-tab_aut_budg_UBS'!L20+'2-tab_aut_budg_UBS'!L26,-1),"! Incohérence Invt Tab2 ETAB","") -> 
B34: Dépenses liées à des recettes fléchées | C34: =SUM(C35:C38) -> 145664.28 | D34: =SUM(D35:D38) -> 145664.28 | E34: 145664.28 | F34: 145664.28 | G34: 145664.28 | H34: 152164.28 | I34: 162664.28 | J34: 155664.28 | K34: 155664.28 | L34: 155664.28 | M34: 155664.28 | N34: 162164.32 | O34: 1827971.4
B35: Personnel | C35: 45000 | D35: 45000 | E35: 45000 | F35: 45000 | G35: 45000 | H35: 45000 | I35: 62000 | J35: 55000 | K35: 55000 | L35: 55000 | M35: 55000 | N35: 55000 | O35: 607000 | Q35: =IF(ROUND(O35,-1)<>ROUND('8-tab recettes_fléchées_UBS'!D19,-1),"! Incohérence dépenses pers. fléchées avec Tab8 ETAB","") -> 
B36: Fonctionnement | C36: 100664.28 | D36: 100664.28 | E36: 100664.28 | F36: 100664.28 | G36: 100664.28 | H36: 100664.28 | I36: 100664.28 | J36: 100664.28 | K36: 100664.28 | L36: 100664.28 | M36: 100664.28 | N36: 100664.32 | O36: 1207971.4 | Q36: =IF(ROUND(SUM(O36:O37),-1)<>ROUND('8-tab recettes_fléchées_UBS'!D21,-1),"! Incohérence dépenses Fonct. fléchées avec Tab8 ETAB","") -> 
B37: Intervention | O37: 0
B38: Investissement | H38: 6500 | N38: 6500 | O38: 13000 | Q38: =IF(ROUND(O38,-1)<>ROUND('8-tab recettes_fléchées_UBS'!D24,-1),"! Incohérence dépenses invest fléchées avec Tab8 ETAB","") -> 
B39: Opérations non budgétaires | C39: =SUM(C40:C42) -> 0 | D39: =SUM(D40:D42) -> 0 | E39: 0 | F39: 0 | G39: 0 | H39: 0 | I39: 0 | J39: 0 | K39: 0 | L39: 0 | M39: 0 | N39: 0 | O39: 0 | P39: =IF(ROUND(O39,-1)<>ROUND('4-tab_financier_UBS'!G18,-1),"! Incohérence Emprunts Tab4","") -> 
B40: Emprunts : remboursements en capital | O40: 0
B41: Prêts : décaissements en capital | O41: 0
B42: Dépôts et cautionnements | O42: 0
B43: Opérations gérées en compte de tiers : | C43: =SUM(C44:C46) -> 72668 | D43: =SUM(D44:D46) -> 82928 | E43: 100028 | F43: 70608 | G43: 73808 | H43: 224908 | I43: 71528 | J43: 69248 | K43: 68108 | L43: 78368 | M43: 84288 | N43: 442575 | O43: 1439063
B44: TVA décaissée | C44: 65828 | D44: 65828 | E44: 65828 | F44: 65828 | G44: 65828 | H44: 65828 | I44: 65828 | J44: 65828 | K44: 65828 | L44: 65828 | M44: 65828 | N44: 65828 | O44: 789936
B45: Dispositifs d'intervention pour compte de tiers : décaissements | C45: 6840 | D45: 17100 | E45: 34200 | F45: 4780 | G45: 7980 | H45: 159080 | I45: 5700 | J45: 3420 | K45: 2280 | L45: 12540 | M45: 18460 | N45: 376747 | O45: 649127
B46: Autres décaissements d'opérations gérées en comptes de tiers | C46: 0 | D46: 0 | E46: 0 | F46: 0 | G46: 0 | H46: 0 | I46: 0 | J46: 0 | K46: 0 | L46: 0 | M46: 0 | N46: 0 | O46: 0
B47: B. TOTAL | C47: =C43+C39+C34+C29 -> 8758237.23 | D47: =D43+D39+D34+D29 -> 8768497.23 | E47: 8785597.23 | F47: 8756177.23 | G47: 8759377.23 | H47: 8916977.23 | I47: 9374097.23 | J47: 9364817.23 | K47: 9363677.23 | L47: 9373937.23 | M47: 9379857.23 | N47: 9495600.63 | O47: 109096850.2
B48: (2) SOLDE DU MOIS = A - B | C48: =C27-C47 -> 12302269.87 | D48: =D27-D47 -> -5969440.13 | E48: -6031540.13 | F48: -5949620.13 | G48: 12101679.87 | H48: -6112920.13 | I48: -6620040.13 | J48: 18695689.87 | K48: -6559620.13 | L48: -6619880.13 | M48: -6617600.13 | N48: 3689029.36 | O48: =SUM(C48:N48) -> -3691992.07 | P48: =IF(O48<0,IF(-ROUND(O48,-1)<>ROUND('4-tab_financier_UBS'!M25,-1),"! Incohérence variation trésorerie Tab4",""),IF(ROUND('7-tab Plan_tréso_UBS'!O48,-1)<>ROUND('4-tab_financier_UBS'!G25,-1),"! Incohérence variation trésorerie Tab4","")) -> 
B49: SOLDE CUMULE (1) + (2) | C49: =C48+C7 -> 23310437.54 | D49: =D48+D7 -> 17340997.41 | E49: 11309457.28 | F49: 5359837.15 | G49: 17461517.02 | H49: 11348596.89 | I49: 4728556.76 | J49: 23424246.63 | K49: 16864626.5 | L49: 10244746.37 | M49: 3627146.24 | N49: 7316175.6 | P49: =IF(ROUND(N49,-1)<>ROUND('6-tab CR_TF_UBS'!L51,-1),"! Incohérence niveau trésorerie avec Tab6 ETAB","") -> 
O50: Variation de trésorerie correspondant à celle du tableau d'équilibre financier (I) ou (II)

Sheet 8-tab recettes_fléchées_UBS
B1: Tableau 8 - Université de Bretagne Sud (0561718N) - Etablissement principal
B2: ="Opérations liées aux recettes fléchées - Budget consolidé "&Maquette!B4&" "&Maquette!B5&" "&Maquette!B3 -> Opérations liées aux recettes fléchées - Budget consolidé initial 2024
B5: POUR INFORMATION DE L'ORGANE DÉLIBÉRANT
C8: Antérieures à N non dénouées | D8: N | E8: N+1 | F8: N+2 | G8: N+3
B9: Position de financement des opérations fléchées en début d'exercice (a)
B11: Recettes fléchées (b) | C11: =SUM(C13:C15) -> 2658579.69 | D11: =SUM(D13:D15) -> 880075.98 | E11: 234549.88 | F11: 1905107.3 | G11: 508261.15
B13: Financements de l'État fléchés | C13: 0 | D13: 0 | E13: 0 | F13: 0 | G13: 0 | H13: =IF(ROUND(D13,-1)<>ROUND('2-tab_aut_budg_UBS'!R19,-1),"! Incohérence Financ. Etat fléchés avec Tab2 ETAB","") ->  | I13: =IF(ROUND(D13,-1)<>ROUND('3-tab_destination_origine_UBS'!H50,-1),"! Incohérence Financ. Etat fléchés avec Tab3 ETAB","") ->  | J13: =IF(ROUND(D13,-1)<>ROUND('7-tab Plan_tréso_UBS'!O16,-1),"! Incohérence Financ. Etat fléchés avec Tab7","") -> 
B14: Autres financements publics fléchés | C14: 2658579.69 | D14: 880075.98 | E14: 234549.88 | F14: 1905107.3 | G14: 508261.15 | H14: =IF(ROUND(D14,-1)<>ROUND('2-tab_aut_budg_UBS'!R20,-1),"! Incohérence Autres financ. fléchés avec Tab2 ETAB","") ->  | I14: =IF(ROUND(D14,-1)<>ROUND('3-tab_destination_origine_UBS'!I50,-1),"! Incohérence Autres financ. fléchés avec Tab3 ETAB","") ->  | J14: =IF(ROUND(D14,-1)<>ROUND('7-tab Plan_tréso_UBS'!O17,-1),"! Incohérence Autres financ. fléchés avec Tab7","") -> 
B15: Recettes propres fléchées | C15: 0 | D15: 0 | E15: 0 | F15: 0 | G15: 0 | H15: =IF(ROUND(D15,-1)<>ROUND('2-tab_aut_budg_UBS'!R21,-1),"! Incohérence Recettes propres fléchées avec Tab2 ETAB","") ->  | I15: =IF(ROUND(D15,-1)<>ROUND('3-tab_destination_origine_UBS'!J50,-1),"! Incohérence Recettes propres fléchées avec Tab3 ETAB","") ->  | J15: =IF(ROUND(D15,-1)<>ROUND('7-tab Plan_tréso_UBS'!O18,-1),"! Incohérence Recettes propres fléchées avec Tab7","") -> 
B17: Dépenses sur recettes fléchées (c) | C17: =C19+C21+C24 -> 780185.44 | D17: =D19+D21+D24 -> 1827971.4 | E17: 1525383 | F17: 1089462 | G17: 683713
B19: Personnel | C19: 119081.91 | D19: 607000 | E19: 229000 | F19: 219492 | G19: 210660 | H19: =IF(ROUND(D19,-1)<>ROUND('7-tab Plan_tréso_UBS'!O35,-1),"! Incohérence dépenses Pers fléchées avec Tab7","") -> 
B20: AE=CP | C20: 119081.91 | D20: 607000 | E20: 229000 | F20: 219492 | G20: 210660
B21: Fonctionnement et intervention | C21: =C23 -> 652939.93 | D21: =D23 -> 1207971.4 | E21: 1283383 | F21: 866970 | G21: 473053 | H21: =IF(ROUND(D21,-1)<>ROUND(SUM('7-tab Plan_tréso_UBS'!O36:O37),-1),"! Incohérence dépenses Fonct fléchées avec Tab7","") -> 
B22: AE | C22: 1527857.95 | D22: 1207971.4 | E22: 1249783 | F22: 388970 | G22: 237853
B23: CP | C23: 652939.93 | D23: 1207971.4 | E23: 1283383 | F23: 866970 | G23: 473053
B24: Investissement | C24: =C26 -> 8163.6 | D24: =D26 -> 13000 | E24: 13000 | F24: 3000 | G24: 0 | H24: =IF(ROUND(D24,-1)<>ROUND(SUM('7-tab Plan_tréso_UBS'!O38),-1),"! Incohérence dépenses Invest. fléchées avec Tab7","") -> 
B25: AE | C25: 8163.6 | D25: 13000 | E25: 13000 | F25: 3000 | G25: 0
B26: CP | C26: 8163.6 | D26: 13000 | E26: 13000 | F26: 3000 | G26: 0
B28: Solde budgétaire de l'exercice résultant des opérations fléchées (b) - (c) | C28: =C11-C17 -> 1878394.25 | D28: =D11-D17 -> -947895.42 | E28: =E11-E17 -> -1290833.12 | F28: 815645.3 | G28: -175451.85
D29: (1)
D30: (1) repris au tableau "Équilibre financier" en (a) (tableau 4)

Sheet 8-tab recettes_fléchées_AGR (hidden)
B1: Tableau 8 - Université de Bretagne Sud (0561718N) : Etablissement principal + Fondation
B2: ="Opérations liées aux recettes fléchées - Budget agrégé "&Maquette!B4&" "&Maquette!B5&" "&Maquette!B3 -> Opérations liées aux recettes fléchées - Budget agrégé initial 2024
B5: POUR INFORMATION DE L'ORGANE DÉLIBÉRANT
C8: Antérieures à N non dénouées | D8: N | E8: N+1 | F8: N+2 | G8: N+3
B9: Position de financement des opérations fléchées en début d'exercice (a)
B11: Recettes fléchées (b) | C11: =SUM(C13:C15) -> 0 | D11: =SUM(D13:D15) -> 0 | E11: 0 | F11: 0 | G11: 0
B13: Financements de l'État fléchés | H13: =IF(ROUND(D13,-1)<>ROUND('2-tab_aut_budg_AGR'!R19,-1),"! Incohérence Financ. Etat fléchés avec Tab2 AGR","") ->  | I13: =IF(ROUND(D13,-1)<>ROUND('3-tab_destination_origine_AGR'!H50,-1),"! Incohérence Financ. Etat fléchés avec Tab3 AGR","") -> 
B14: Autres financements publics fléchés | H14: =IF(ROUND(D14,-1)<>ROUND('2-tab_aut_budg_AGR'!R20,-1),"! Incohérence Autres financ. fléchés avec Tab2 AGR","") ->  | I14: =IF(ROUND(D14,-1)<>ROUND('3-tab_destination_origine_AGR'!I50,-1),"! Incohérence Autres financ. fléchés avec Tab3 AGR","") -> 
B15: Recettes propres fléchées | H15: =IF(ROUND(D15,-1)<>ROUND('2-tab_aut_budg_AGR'!R21,-1),"! Incohérence Recettes propres fléchées avec Tab2 AGR","") ->  | I15: =IF(ROUND(D15,-1)<>ROUND('3-tab_destination_origine_AGR'!J50,-1),"! Incohérence Recettes propres fléchées avec Tab3 AGR","") -> 
B17: Dépenses sur recettes fléchées (c) | C17: =C19+C21+C24 -> 0 | D17: =D19+D21+D24 -> 0 | E17: 0 | F17: 0 | G17: 0
B19: Personnel | C19: =C20 -> 0 | D19: =D20 -> 0 | E19: 0 | F19: 0 | G19: 0
B20: AE=CP
B21: Fonctionnement et intervention | C21: =C23 -> 0 | D21: =D23 -> 0 | E21: 0 | F21: 0 | G21: 0
B22: AE
B23: CP
B24: Investissement | C24: =C26 -> 0 | D24: =D26 -> 0 | E24: 0 | F24: 0 | G24: 0
B25: AE
B26: CP
B28: Solde budgétaire de l'exercice résultant des opérations fléchées (b) - (c) | C28: =C11-C17 -> 0 | D28: =D11-D17 -> 0 | E28: =E11-E17 -> 0 | F28: 0 | G28: 0
D29: (1)
D30: (1) repris au tableau "Équilibre financier" en (a) (tableau 4)

Sheet 9-tab op_pluriannuelles_UBS
B1: Tableau 9 - Université de Bretagne Sud (0561718N) - Etablissement principal
B2: ="Tableau des opérations pluriannuelles - Budget consolidé "&Maquette!B4&" "&Maquette!B5&" "&Maquette!B3 -> Tableau des opérations pluriannuelles - Budget consolidé initial 2024
B3: POUR VOTE DE L'ORGANE DÉLIBÉRANT
B6: A - Dépenses
B8: Opérations | E8: Montant de l'opération | F8: Autorisations d'engagement | K8: Crédits de paiement | P8: Restes
F9: AE ouvertes < N | G9: Conso AE < N | H9: Reports ou Reprogrammations N | I9: AE nouvelles ouvertes N | J9: Total AE N | K9: CP ouverts < N | L9: Conso CP < N | M9: Reports ou Reprogrammations N | N9: CP nouveaux ouverts N | O9: Total CP N | P9: Restes à engager > N (AE) | Q9: Restes à payer > N sur AE consommées <= N (CP)
B10: PFIRECHSAC | C10: RECH SUBVENTIONS AVEC CONDITIONS | E10: 17306636.48 | F10: 11774781.77 | G10: 9826209.22 | H10: 0 | I10: 3885370.74 | J10: =H10+I10 -> 3885370.74 | K10: 11735330.33 | L10: 9391873.02 | M10: 0 | N10: 3909126.18 | O10: =M10+N10 -> 3909126.18 | P10: =E10-G10-J10 -> 3595056.52 | Q10: =G10+J10-L10-O10 -> 410580.76
B11: PFIRECHCCR | C11: RECH CONTRATS DE COLLABORATION | E11: 1564024.23 | F11: 1391067.92 | G11: 1238720.01 | H11: 0 | I11: 157890.85 | J11: =H11+I11 -> 157890.85 | K11: 1391067.92 | L11: 1151853.8 | M11: 0 | N11: 157890.85 | O11: =M11+N11 -> 157890.85 | P11: =E11-G11-J11 -> 167413.37 | Q11: =G11+J11-L11-O11 -> 86866.21
B12: PFIRECHARE | C12: RECH ALLOCATION DE RECHERCHE DOCTORALE | E12: 2824079.17 | F12: 1573897.05 | G12: 1351745.55 | H12: 0 | I12: 718692.31 | J12: =H12+I12 -> 718692.31 | K12: 1573897.05 | L12: 1351048.59 | M12: 0 | N12: 718692.31 | O12: =M12+N12 -> 718692.31 | P12: =E12-G12-J12 -> 753641.31 | Q12: =G12+J12-L12-O12 -> 696.96
B13: PFIRECHCIF | C13: RECH CONTRATS CIFRE | E13: 612589.41 | F13: 169368.85 | G13: 132537.83 | H13: 0 | I13: 341250.76 | J13: =H13+I13 -> 341250.76 | K13: 169368.85 | L13: 113142.2 | M13: 0 | N13: 341250.76 | O13: =M13+N13 -> 341250.76 | P13: =E13-G13-J13 -> 138800.82 | Q13: =G13+J13-L13-O13 -> 19395.63
B14: PFIRECHAUT | C14: RECH CONTRATS AUTRES | E14: 19002.58 | F14: 4047.41 | G14: 4015.15 | H14: 0 | I14: 14955.17 | J14: 14955.17 | K14: 4047.41 | L14: 3635.87 | M14: 0 | N14: 14955.17 | O14: 14955.17 | P14: 32.26 | Q14: 379.28
B15: PFIRECHSSC | C15: RECH SUBVENTIONS SANS CONDITIONS | E15: 88879.31 | F15: 34327.59 | G15: 32784.36 | H15: 0 | I15: 43775.86 | J15: 43775.86 | K15: 34327.59 | L15: 28011.37 | M15: 0 | N15: 43775.86 | O15: 43775.86 | P15: 12319.09 | Q15: 4772.99
B16: PFIPIAHITR | C16: PIA HIT VOLET RECHERCHE | E16: 864000 | F16: 336559 | G16: 277915.69 | H16: 0 | I16: 324391 | J16: 324391 | K16: 336559 | L16: 233126.75 | M16: 0 | N16: 324391 | O16: 324391 | P16: 261693.31 | Q16: 44788.94
B17: Total Contrats de recherche | E17: =SUM(E10:E16) -> 23279211.18 | F17: =SUM(F10:F16) -> 15284049.59 | G17: =SUM(G10:G16) -> 12863927.81 | H17: =SUM(H10:H16) -> 0 | I17: 5486326.69 | J17: =SUM(J10:J16) -> 5486326.69 | K17: =SUM(K10:K16) -> 15244598.15 | L17: =SUM(L10:L16) -> 12272691.6 | M17: =SUM(M10:M16) -> 0 | N17: 5510082.13 | O17: =SUM(O10:O16) -> 5510082.13 | P17: =SUM(P10:P16) -> 4928956.68 | Q17: =SUM(Q10:Q16) -> 567480.77
B18: PFIERASDIV | C18: PROJETS UE ERASMUS + | E18: 1102403 | F18: 472722.02 | G18: 462644.17 | H18: 0 | I18: 507455.98 | J18: =H18+I18 -> 507455.98 | K18: 472722.02 | L18: 383834.91 | M18: 0 | N18: 457455.98 | O18: =M18+N18 -> 457455.98 | P18: =E18-G18-J18 -> 132302.85 | Q18: =G18+J18-L18-O18 -> 128809.26
B19: PFIERASCYB | C19: PROJET UE ERASMUS+ CYBERUS | E19: 4442928 | F19: 1713344.6 | G19: 1637083.07 | H19: 0 | I19: 1051198.4 | J19: 1051198.4 | K19: 966544.6 | L19: 772476.03 | M19: 0 | N19: 1051198.4 | O19: 1051198.4 | P19: 1754646.53 | Q19: 864607.04
B20: PFIPIABRIO | C20: PIA BRIO | E20: 860500 | F20: 226900 | G20: 193226.91 | H20: 0 | I20: 117000 | J20: 117000 | K20: 226900 | L20: 187199.08 | M20: 0 | N20: 117000 | O20: 117000 | P20: 550273.09 | Q20: 6027.83
B21: PFIANRFORM | C21: ANR PROJET FORMAFLEX | E21: 273880 | F21: 207380 | G21: 182562.27 | H21: 0 | I21: 66500 | J21: 66500 | K21: 207380 | L21: 182556.01 | M21: 0 | N21: 66500 | O21: 66500 | P21: 24817.73 | Q21: 6.26
B22: PFIANRTRAN | C22: ANR AAP PEA2 PROJET TRANGA | E22: 1279363 | F22: 40000 | G22: 8992.43 | H22: 0 | I22: 365990 | J22: =H22+I22 -> 365990 | K22: 40000 | L22: 7546.71 | M22: 0 | N22: 365990 | O22: =M22+N22 -> 365990 | P22: =E22-G22-J22 -> 904380.57 | Q22: =G22+J22-L22-O22 -> 1445.72
B23: PFIANRSKIL | C23: ANR PROJET CYBERSKILLS4ALL | E23: 464283 | F23: 53500 | G23: 2527.73 | H23: 0 | I23: 410783 | J23: 410783 | K23: 53500 | L23: 162.7 | M23: 0 | N23: 410783 | O23: 410783 | P23: 50972.27 | Q23: 2365.03
B24: PFIENSDIV | C24: CONTRATS ENSEIGNEMENT DIVERS | E24: 20000 | F24: 2000 | G24: 0 | H24: 0 | I24: 18000 | J24: 18000 | K24: 2000 | L24: 0 | M24: 0 | N24: 18000 | O24: 18000 | P24: 2000 | Q24: 0
B25: Total Contrats d'enseignement | E25: =SUM(E18:E24) -> 8443357 | F25: =SUM(F18:F24) -> 2715846.62 | G25: =SUM(G18:G24) -> 2487036.58 | H25: =SUM(H18:H24) -> 0 | I25: 2536927.38 | J25: =SUM(J18:J24) -> 2536927.38 | K25: =SUM(K18:K24) -> 1969046.62 | L25: =SUM(L18:L24) -> 1533775.44 | M25: =SUM(M18:M24) -> 0 | N25: 2486927.38 | O25: =SUM(O18:O24) -> 2486927.38 | P25: =SUM(P18:P24) -> 3419393.04 | Q25: =SUM(Q18:Q24) -> 1003261.14
B26: PPICVEC | C26: PPI CVEC | E26: 2400000 | F26: 875254 | G26: 833655.9 | H26: 0 | I26: 1524746 | J26: =H26+I26 -> 1524746 | K26: 643668 | L26: 395975.1 | M26: 0 | N26: 1256332 | O26: =M26+N26 -> 1256332 | P26: =E26-G26-J26 -> 41598.1 | Q26: =G26+J26-L26-O26 -> 706094.8
B27: CPERIFSYS | C27: CPER 2021-2027 IF-SYS-MER / IRDL | E27: 1002000 | F27: 678182.21 | G27: 544567.21 | H27: 0 | I27: 323817.79 | J27: 323817.79 | K27: 678182.21 | L27: 506385 | M27: 0 | N27: 323817.79 | O27: 323817.79 | P27: 133615 | Q27: 38182.21
B28: CPERBBB | C28: CPER 2021-2027 BREST BAY BASE / LBCM | E28: 65000 | F28: 0 | G28: 0 | H28: 0 | I28: 65000 | J28: 65000 | K28: 0 | L28: 0 | M28: 0 | N28: 65000 | O28: 65000 | P28: 0 | Q28: 0
B29: CPERIDF | C29: CPER 2021-2027 INDUSTRIE DU FUTUR | E29: 585000 | F29: 217330.14 | G29: 217330.14 | H29: 0 | I29: 367669.86 | J29: 367669.86 | K29: 163228.14 | L29: 165753.24 | M29: 0 | N29: 421771.86 | O29: 421771.86 | P29: 0 | Q29: -2525.1
B30: SACUEHYDRO | C30: FEDER HYDROGENE STOCKAGE | E30: 350000 | F30: 350000 | G30: 350000 | H30: 0 | I30: 0 | J30: 0 | K30: 350000 | L30: 350000 | M30: 0 | N30: 0 | O30: 0 | P30: 0 | Q30: 0
B31: CPERGLAZ | C31: CPER 2021-2027 GLAZ | E31: 120000 | F31: 0 | G31: 0 | H31: 0 | I31: 120000 | J31: 120000 | K31: 0 | L31: 0 | M31: 0 | N31: 120000 | O31: 120000 | P31: 0 | Q31: 0
B32: CPERMSHB | C32: CPER 2021-2027 MSHB | E32: 107000 | F32: 11200 | G32: 2791 | H32: 0 | I32: 95800 | J32: =H32+I32 -> 95800 | K32: 11200 | L32: 2791 | M32: 0 | N32: 95800 | O32: =M32+N32 -> 95800 | P32: =E32-G32-J32 -> 8409 | Q32: =G32+J32-L32-O32 -> 0
B33: Total Programme pluriannuels d'inv | E33: =SUM(E26:E32) -> 4629000 | F33: 2131966.35 | G33: 1948344.25 | H33: 0 | I33: 2497033.65 | J33: 2497033.65 | K33: 1846278.35 | L33: 1420904.34 | M33: 0 | N33: 2282721.65 | O33: 2282721.65 | P33: 183622.1 | Q33: 741751.91
B34: Total | E34: =E17+E25+E33 -> 36351568.18 | F34: 20131862.56 | G34: 17299308.64 | H34: 0 | I34: 10520287.72 | J34: 10520287.72 | K34: 19059923.12 | L34: 15227371.38 | M34: 0 | N34: 10279731.16 | O34: 10279731.16 | P34: 8531971.82 | Q34: 2312493.82
B35: Ss total personnel | E35: 18403039.23 | F35: 11030645.3 | G35: 9314150.44 | H35: 0 | I35: 4348951.43 | J35: =H35+I35 -> 4348951.43 | K35: 11030645.3 | L35: 9289251.1 | M35: 0 | N35: 4348951.43 | O35: =+M35+N35 -> 4348951.43 | P35: =E35-G35-J35 -> 4739937.36 | Q35: =G35+J35-L35-O35 -> 24899.34
B36: Ss total fonctionnement | E36: 12141156.18 | F36: 6214838.87 | G36: 5352279.2 | H36: 0 | I36: 3288076.91 | J36: 3288076.91 | K36: 5428587.43 | L36: 3939513.38 | M36: 0 | N36: 3261832.35 | O36: =+M36+N36 -> 3261832.35 | P36: 3500800.07 | Q36: 1439010.38
B37: Ss total investissement | E37: 5807372.77 | F37: 2886378.39 | G37: 2632879 | H37: 0 | I37: 2883259.38 | J37: 2883259.38 | K37: 2600690.39 | L37: 1998606.9 | M37: 0 | N37: 2668947.38 | O37: 2668947.38 | P37: 291234.39 | Q37: 848584.1
C38: =IF(ROUND(C34,-1)<>ROUND('10-tab_op_pluri_détail_UBS'!E27,-1),"Erreur investissement avec tab 10","") ->  | D38: =IF(ROUND(D34,-1)<>ROUND('10-tab_op_pluri_détail_UBS'!EG7,-1),"Erreur investissement avec tab 10","") ->  | E38: =IF(ROUND(E34,-1)<>ROUND('10-tab_op_pluri_détail_UBS'!G25,-1),"Erreur investissement avec tab 10","") ->  | F38: =IF(ROUND(F34,-1)<>ROUND('10-tab_op_pluri_détail_UBS'!I25,-1),"Erreur investissement avec tab 10","") ->  | G38: =IF(ROUND(G34,-1)<>ROUND('10-tab_op_pluri_détail_UBS'!J25,-1),"Erreur investissement avec tab 10","") ->  | H38: =IF(ROUND(H34,-1)<>ROUND('10-tab_op_pluri_détail_UBS'!K25,-1),"Erreur investissement avec tab 10","") ->  | I38: =IF(ROUND(I34,-1)<>ROUND('10-tab_op_pluri_détail_UBS'!M25,-1),"Erreur investissement avec tab 10","") ->  | J38: =IF(ROUND(J34,-1)<>ROUND('10-tab_op_pluri_détail_UBS'!N25,-1),"Erreur investissement avec tab 10","") ->  | K38: =IF(ROUND(K34,-1)<>ROUND('10-tab_op_pluri_détail_UBS'!O25,-1),"Erreur investissement avec tab 10","") ->  | L38: =IF(ROUND(L34,-1)<>ROUND('10-tab_op_pluri_détail_UBS'!P25,-1),"Erreur investissement avec tab 10","") ->  | M38: =IF(ROUND(M34,-1)<>ROUND('10-tab_op_pluri_détail_UBS'!EP7,-1),"Erreur investissement avec tab 10","") -> 
B40: B - Recettes
B41: Opérations | E41: Montant de l'opération | F41: Prélèvement sur la trésorerie | G41: Financements extérieurs
G42: Montant | H42: Encaissements < N | I42: Encaissements prévus N | J42: Restes à encaisser > N
B43: PFIRECHSAC | C43: RECH SUBVENTIONS AVEC CONDITIONS | E43: 17306636.48 | F43: =E43-G43 -> -82114.92 | G43: 17388751.4 | H43: 9601241.28 | I43: 3538222.26 | J43: 4249287.86
B44: PFIRECHCCR | C44: RECH CONTRATS DE COLLABORATION | E44: 1564024.23 | F44: =E44-G44 -> -278985.19 | G44: 1843009.42 | H44: 1298956.71 | I44: 72455.08 | J44: 471597.63
B45: PFIRECHARE | C45: RECH ALLOCATION DE RECHERCHE DOCTORALE | E45: 2824079.17 | F45: =E45-G45 -> 61216.5 | G45: 2762862.67 | H45: 859919.82 | I45: 609696.85 | J45: 1293246
B46: PFIRECHCIF | C46: RECH CONTRATS CIFRE | E46: 612589.41 | F46: =E46-G46 -> -113189.14 | G46: 725778.55 | H46: 360661.35 | I46: 213175.62 | J46: 151941.58
B47: PFIRECHAUT | C47: RECH CONTRATS AUTRES | E47: 19002.58 | F47: -3040.42 | G47: 22043 | H47: 19269.6 | I47: 15848 | J47: -13074.6
B48: PFIRECHSSC | C48: RECH SUBVENTIONS SANS CONDITIONS | E48: 88879.31 | F48: -8620.69 | G48: 97500 | H48: 25000 | I48: 12500 | J48: 60000
B49: PFIPIAHITR | C49: PIA HIT VOLET RECHERCHE | E49: 864000 | F49: 0 | G49: 864000 | H49: 289800 | I49: 0 | J49: 574200
B50: Total Contrats de recherche | E50: =SUM(E43:E49) -> 23279211.18 | F50: =SUM(F43:F49) -> -424733.86 | G50: =SUM(G43:G49) -> 23703945.04 | H50: =SUM(H43:H49) -> 12454848.76 | I50: 4461897.81 | J50: 6787198.47
B51: PFIERASDIV | C51: PROJETS UE ERASMUS + | E51: 1102403 | F51: =E51-G51 -> 0 | G51: 1102403 | H51: 930294.83 | I51: 62286 | J51: 109822.17
B52: PFIERASCYB | C52: PROJET UE ERASMUS+ CYBERUS | E52: 4442928 | F52: =E52-G52 -> 0 | G52: 4442928 | H52: 2221464 | I52: 0 | J52: 2221464
B53: PFIPIABRIO | C53: PIA BRIO | E53: 860500 | F53: -1500 | G53: 862000 | H53: 258867.12 | I53: 86200 | J53: 516932.88
B54: PFIANRFORM | C54: ANR PROJET FORMAFLEX | E54: 273880 | F54: =E54-G54 -> 0 | G54: 273880 | H54: 164328 | I54: 27388 | J54: 82164
B55: PFIANRTRAN | C55: ANR AAP PEA2 PROJET TRANGA | E55: 1279363 | F55: =E55-G55 -> 0 | G55: 1279363 | H55: 437115.69 | I55: 415792.98 | J55: 426454.33
B56: PFIANRSKIL | C56: ANR PROJET CYBERSKILLS4ALL | E56: 464283 | F56: 0 | G56: 464283 | H56: 0 | I56: 464283 | J56: 0
B57: PFIENSDIV | C57: CONTRATS ENSEIGNEMENT DIVERS | E57: 20000 | F57: 0 | G57: 20000 | H57: 20000 | I57: 0 | J57: 0
B58: Total Contrats d'enseignement | E58: =SUM(E51:E57) -> 8443357 | F58: =SUM(F51:F57) -> -1500 | G58: =SUM(G51:G57) -> 8444857 | H58: 4032069.64 | I58: 1055949.98 | J58: 3356837.38
B59: PPICVEC | C59: PPI CVEC | E59: 2400000 | F59: =E59-G59 -> 1061604.54 | G59: 1338395.46 | H59: 1162239.11 | I59: 176400 | J59: -243.65
B60: CPERIFSYS | C60: CPER 2021-2027 IF-SYS-MER / IRDL | E60: 1002000 | F60: 0 | G60: 1002000 | H60: 272500 | I60: 298000 | J60: 431500
B61: CPERBBB | C61: CPER 2021-2027 BREST BAY BASE / LBCM | E61: 65000 | F61: 0 | G61: 65000 | H61: 0 | I61: 65000 | J61: 0
B62: CPERIDF | C62: CPER 2021-2027 INDUSTRIE DU FUTUR | E62: 585000 | F62: 56000 | G62: 529000 | H62: 137900 | I62: 0 | J62: 391100
B63: SACUEHYDRO | C63: FEDER HYDROGENE STOCKAGE | E63: 350000 | F63: 70000 | G63: 280000 | H63: 28000 | I63: 0 | J63: 252000
B64: CPERGLAZ | C64: CPER 2021-2027 GLAZ | E64: 120000 | F64: 0 | G64: 120000 | H64: 66200 | I64: 53800 | J64: 0
B65: CPERMSHB | C65: CPER 2021-2027 MSHB | E65: 107000 | F65: 0 | G65: 107000 | H65: 0 | I65: 4000 | J65: 103000
B66: Total Programme pluriannuels d'inv | E66: =SUM(E59:E65) -> 4629000 | F66: 1187604.54 | G66: 3441395.46 | H66: 1666839.11 | I66: 597200 | J66: 1177356.35
B67: Total | E67: =+E50+E58+E66 -> 36351568.18 | F67: =+F50+F58+F66 -> 761370.68 | G67: =+G50+G58+G66 -> 35590197.5 | H67: =+H50+H58+H66 -> 18153757.51 | I67: =I50+I58+I66 -> 6115047.79 | J67: =J50+J58+J66 -> 11321392.2
B80: Différence Dépenses - Recettes | C80: =E34-E67 -> 0
B83: COMMENTAIRES SUR LES TABLEAUX DE SUIVI DES OPÉRATIONS PLURIANNUELLES
B85: 1 | C85: Les opérations sont identifiées par un nom et un millésime ; elles peuvent ne pas être toutes individualisées et faire l'objet de regroupements, un niveau de détail suffisant au regard des caractéristiques de l'établissements devant néanmoins être maintenu ;
B87: 2 | C87: Le degré d'exigence quant à la précision de l'évaluation, au budget initial, des reports prévisibles devra être fonction des contraintes qui pèsent sur les établissements pour établir ce chiffrage, notamment pour les contrats de recherche ;
B89: 3 | C89: En recettes, une ligne sera maintenue, même après la fin d'une opération tant que la totalité des financements extérieurs n'a pas été recouvrée ;
B91: 4 | C91: Pour les contrats de recherche, ne devra être indiquée au titre de l'autofinancement que, le cas échéant, la participation de l'établissement qui doit donner lieu à justification en application du contrat.

Sheet 10-tab_op_pluri_détail_UBS
C1: Tableau 10 - Université de Bretagne Sud (0561718N) - Etablissement principal
C2: ="Tableau détaillé des opérations pluriannuelles et programmation - Budget consolidé "&Maquette!B4&" "&Maquette!B5&" "&Maquette!B3 -> Tableau détaillé des opérations pluriannuelles et programmation - Budget consolidé initial 2024
C4: POUR INFORMATION DE L'ORGANE DÉLIBÉRANT
C5: Suivi par opération (ou par regroupement d'opérations) des autorisations d'engagement, des crédits de paiement et des recettes
C7: A - Prévision d'autorisations d'engagement et de crédits de paiement
C8: Prévisions d'AE et de CP | G8: Prévisions | I8: Prévisions N (BI + BR) | W8: Prévisions N+1 et suivantes
C9: Opération | F9: Nature | G9: Coût total de l'opération | I9: AE ouvertes < N | J9: Conso AE < N | K9: Reports ou Reprogrammations N | M9: AE nouvelles ouvertes N | N9: Total AE N | O9: CP ouverts < N | P9: Conso CP < N | R9: Reports ou Reprogrammations N | T9: CP nouveaux ouverts N | U9: Total CP N | W9: AE prévues en N+1 | X9: CP prévus en N+1 | Y9: AE prévues en N+2 | Z9: CP prévus en N+2 | AA9: AE prévues > N+2 | AB9: CP prévus > N+2
C10: Contrats de recherche | F10: Personnel | G10: 15609077.23 | I10: 10300235.3 | J10: 8774888.24 | K10: 0 | M10: 3441851.43 | N10: 3441851.43 | O10: 10300235.3 | P10: 8749988.9 | R10: 0 | T10: 3441851.43 | U10: 3441851.43 | W10: 1405227.93 | X10: 1405227.93 | Y10: 442943.59 | Z10: 442943.59 | AA10: 18818.98 | AB10: 18818.98
F11: Fonctionnement | G11: 6468791.78 | I11: 4231006.87 | J11: 3414518.44 | K11: 0 | M11: 1617675.51 | N11: 1617675.51 | O11: 4191555.43 | P11: 2955013.76 | R11: 0 | T11: 1641430.95 | U11: 1641430.95 | W11: 415653.02 | X11: 431349.02 | Y11: 158031.05 | Z11: 158031.05 | AA11: 46425.33 | AB11: 46425.33
F12: Investissement | G12: 1201342.17 | I12: 752807.42 | J12: 674521.13 | K12: 0 | M12: 426799.75 | N12: 426799.75 | O12: 752807.42 | P12: 567688.94 | R12: 0 | T12: 426799.75 | U12: 426799.75 | W12: 21735 | X12: 21735 | Y12: 0 | Z12: 0 | AA12: 0 | AB12: 0
C13: Total Contrats de recherche | G13: =SUM(G10:G12) -> 23279211.18 | I13: =SUM(I10:I12) -> 15284049.59 | J13: =SUM(J10:J12) -> 12863927.81 | K13: =SUM(K10:K12) -> 0 | L13: 0 | M13: =SUM(M10:M12) -> 5486326.69 | N13: =SUM(N10:N12) -> 5486326.69 | O13: =SUM(O10:O12) -> 15244598.15 | P13: =SUM(P10:Q12) -> 12272691.6 | R13: =SUM(R10:R12) -> 0 | T13: =SUM(T10:T12) -> 5510082.13 | U13: =SUM(U10:U12) -> 5510082.13 | W13: =SUM(W10:W12) -> 1842615.95 | X13: 1858311.95 | Y13: 600974.64 | Z13: 600974.64 | AA13: 65244.31 | AB13: 65244.31
C14: Contrats d'enseignement | F14: Personnel | G14: 2726962 | I14: 719210 | J14: 536471.2 | K14: 0 | M14: 851300 | N14: 851300 | O14: 719210 | P14: 536471.2 | R14: 0 | T14: 851300 | U14: 851300 | W14: 342000 | X14: 342000 | Y14: 317492 | Z14: 317492 | AA14: 496960 | AB14: 496960
F15: Fonctionnement | G15: 5672364.4 | I15: 1983832 | J15: 1937760.76 | K15: 0 | M15: 1670401.4 | N15: 1670401.4 | O15: 1237032 | P15: 984499.62 | R15: 0 | T15: 1620401.4 | U15: 1620401.4 | W15: 1364008 | X15: 1447608 | Y15: 395970 | Z15: 873970 | AA15: 258153 | AB15: 493353
F16: Investissement | G16: 44030.6 | I16: 12804.62 | J16: 12804.62 | K16: 0 | M16: 15225.98 | N16: 15225.98 | O16: 12804.62 | P16: 12804.62 | R16: 0 | T16: 15225.98 | U16: 15225.98 | W16: 13000 | X16: 13000 | Y16: 3000 | Z16: 3000 | AA16: 0 | AB16: 0
C17: Total Contrats d'enseignement | G17: =SUM(G14:G16) -> 8443357 | I17: =SUM(I14:I16) -> 2715846.62 | J17: =SUM(J14:J16) -> 2487036.58 | K17: =SUM(K14:K16) -> 0 | M17: =SUM(M14:M16) -> 2536927.38 | N17: =SUM(N14:N16) -> 2536927.38 | O17: =SUM(O14:O16) -> 1969046.62 | P17: =SUM(P14:P16) -> 1533775.44 | R17: =SUM(R14:R16) -> 0 | T17: =SUM(T14:T16) -> 2486927.38 | U17: =SUM(U14:U16) -> 2486927.38 | W17: =SUM(W14:W16) -> 1719008 | X17: 1802608 | Y17: 716462 | Z17: 1194462 | AA17: 755113 | AB17: 990313
C18: Programme pluriannuels d'inv | F18: Personnel | G18: 67000 | I18: 11200 | J18: 2791 | K18: 0 | M18: 55800 | N18: 55800 | O18: 11200 | P18: 2791 | R18: 0 | T18: 55800 | U18: 55800 | W18: 0 | X18: 0 | Y18: 0 | Z18: 0 | AA18: 0 | AB18: 0
F19: Fonctionnement | G19: 0 | I19: 0 | J19: 0 | K19: 0 | M19: 0 | N19: 0 | O19: 0 | P19: 0 | R19: 0 | T19: 0 | U19: 0 | W19: 0 | X19: 0 | Y19: 0 | Z19: 0 | AA19: 0 | AB19: 0
F20: Investissement | G20: 4562000 | I20: 2120766.35 | J20: 1945553.25 | K20: 0 | M20: 2441233.65 | N20: 2441233.65 | O20: 1835078.35 | P20: 1418113.34 | R20: 0 | T20: 2226921.65 | U20: 2226921.65 | W20: 0 | X20: 500000 | Y20: 0 | Z20: 0 | AA20: 0 | AB20: 0
C21: Total Programme pluriannuels d'inv | G21: =SUM(G18:G20) -> 4629000 | I21: =SUM(I18:I20) -> 2131966.35 | J21: =SUM(J18:J20) -> 1948344.25 | K21: =SUM(K18:K20) -> 0 | L21: 0 | M21: 2497033.65 | N21: 2497033.65 | O21: =SUM(O18:O20) -> 1846278.35 | P21: =SUM(P18:Q20) -> 1420904.34 | R21: =SUM(R18:R20) -> 0 | S21: 0 | T21: 2282721.65 | U21: 2282721.65 | W21: =SUM(W18:W20) -> 0 | X21: =SUM(X18:X20) -> 500000 | Y21: =SUM(Y18:Y20) -> 0 | Z21: =SUM(Z18:Z20) -> 0 | AA21: =SUM(AA18:AA20) -> 0 | AB21: =SUM(AB18:AB20) -> 0
F22: Ss total Personnel | G22: =+G10+G14+G18 -> 18403039.23 | I22: =+I10+I14+I18 -> 11030645.3 | J22: 9314150.44 | K22: =+K10+K14+K18 -> 0 | L22: 0 | M22: 4348951.43 | N22: 4348951.43 | O22: =O10+O14+O18 -> 11030645.3 | P22: 9289251.1 | R22: =R10+R14+R18 -> 0 | T22: =+T10+T14+T18 -> 4348951.43 | U22: 4348951.43 | W22: =+W10+W14+W18 -> 1747227.93 | X22: 1747227.93 | Y22: 760435.59 | Z22: 760435.59 | AA22: 515778.98 | AB22: 515778.98
F23: Ss total Fonctionnement | G23: =+G11+G15+G19 -> 12141156.18 | I23: =+I11+I15+I19 -> 6214838.87 | J23: 5352279.2 | K23: =+K11+K15+K19 -> 0 | L23: 0 | M23: 3288076.91 | N23: 3288076.91 | O23: 5428587.43 | P23: 3939513.38 | R23: =R11+R15+R19 -> 0 | T23: =+T11+T15+T19 -> 3261832.35 | U23: 3261832.35 | W23: =+W11+W15+W19 -> 1779661.02 | X23: 1878957.02 | Y23: 554001.05 | Z23: 1032001.05 | AA23: 304578.33 | AB23: 539778.33
F24: Ss total Investissement | G24: =+G12+G16+G20 -> 5807372.77 | I24: =+I12+I16+I20 -> 2886378.39 | J24: 2632879 | K24: =+K12+K16+K20 -> 0 | L24: 0 | M24: 2883259.38 | N24: 2883259.38 | O24: 2600690.39 | P24: 1998606.9 | R24: =R12+R16+R20 -> 0 | T24: =+T12+T16+T20 -> 2668947.38 | U24: 2668947.38 | W24: =+W12+W16+W20 -> 34735 | X24: 534735 | Y24: 3000 | Z24: 3000 | AA24: 0 | AB24: 0
C25: TOTAL | G25: =SUM(G22:G24) -> 36351568.18 | I25: =SUM(I22:I24) -> 20131862.56 | J25: =SUM(J22:J24) -> 17299308.64 | K25: =SUM(K22:K24) -> 0 | L25: 0 | M25: 10520287.72 | N25: 10520287.72 | O25: =SUM(O22:O24) -> 19059923.12 | P25: =SUM(P22:Q24) -> 15227371.38 | R25: =SUM(R22:R24) -> 0 | S25: 0 | T25: 10279731.16 | U25: 10279731.16 | W25: =SUM(W22:W24) -> 3561623.95 | X25: =SUM(X22:X24) -> 4160919.95 | Y25: =SUM(Y22:Y24) -> 1317436.64 | Z25: =SUM(Z22:Z24) -> 1795436.64 | AA25: =SUM(AA22:AA24) -> 820357.31 | AB25: =SUM(AB22:AB24) -> 1055557.31
C27: B - Prévisions de recettes
C29: Prévisions de recettes | G29: Prévisions | I29: Prévisions N | L29: Prévisions en N+1 et suivantes
C30: Opération | F30: Nature | G30: Financement de l'opération | I30: Encaissements < N | J30: Encaissements prévus N | L30: Encaissements prévus en N+1 | M30: Encaissements prévus en N+2 | N30: Encaissements prévus > N+2
C31: Contrats de recherche | F31: Financement de l'Etat | G31: 4208101.28 | I31: 1732299.08 | J31: 962170.15 | L31: 553755.18 | M31: 74280 | N31: 287074.8
F32: Autres financements publics | G32: 16651211.02 | I32: 9198785.06 | J32: 3197411.96 | L32: 1658941.62 | M32: 693828.49 | N32: 373704
F33: Autres financements | G33: 2844632.74 | I33: 1523764.62 | J33: 302315.7 | L33: 100494.03 | M33: 6500 | N33: 0
C34: Total Contrats de recherche | G34: =SUM(G31:G33) -> 23703945.04 | I34: =SUM(I31:I33) -> 12454848.76 | J34: =SUM(J31:J33) -> 4461897.81 | L34: =SUM(L31:L33) -> 2313190.83 | M34: 774608.49 | N34: 660778.8
C35: Contrats d'enseignement | F35: Financement de l'Etat | G35: 775800 | I35: 258600 | J35: 86200 | L35: 344800 | M35: 0 | N35: 0
F36: Autres financements publics | G36: 7649057 | I36: 3744851.12 | J36: 969749.98 | L36: 37194.88 | M36: 1991307.3 | N36: 766861.15
F37: Autres financements | G37: 20000 | I37: 28618.52 | J37: 0 | L37: 0 | M37: 0 | N37: 0
C38: Total Contrats d'enseignement | G38: =SUM(G35:G37) -> 8444857 | I38: =SUM(I35:I37) -> 4032069.64 | J38: =SUM(J35:J37) -> 1055949.98 | L38: =SUM(L35:L37) -> 381994.88 | M38: 1991307.3 | N38: 766861.15
C39: Programme pluriannuels d'inv | F39: Financement de l'Etat | G39: 1702395.46 | I39: 1453595.46 | J39: 189700 | L39: 0 | M39: 0 | N39: 0
F40: Autres financements publics | G40: 1739000 | I40: 213000 | J40: 407500 | L40: 263000 | M40: 0 | N40: 0
F41: Autres financements | G41: 0 | I41: 243.65 | J41: 0 | L41: 0 | M41: 0 | N41: 0
C42: Total Programme pluriannuels d'inv | G42: =SUM(G39:G41) -> 3441395.46 | I42: =SUM(I39:I41) -> 1666839.11 | J42: =SUM(J39:J41) -> 597200 | L42: =SUM(L39:L41) -> 263000 | M42: 0 | N42: 0
F43: Ss total Financement de l'Etat | G43: =G31+G35+G39 -> 6686296.74 | I43: =I31+I35+I39 -> 3444494.54 | J43: 1238070.15 | L43: =L31+L35+L39 -> 898555.18 | M43: =M31+M35+M39 -> 74280 | N43: 287074.8
F44: Ss total Autres financements publics | G44: =G32+G36+G40 -> 26039268.02 | I44: 13156636.18 | J44: 4574661.94 | L44: =L32+L36+L40 -> 1959136.5 | M44: =M32+M36+M40 -> 2685135.79 | N44: 1140565.15
F45: Ss total Autres financements | G45: =G33+G37+G41 -> 2864632.74 | I45: 1552626.79 | J45: 302315.7 | L45: =L33+L37+L41 -> 100494.03 | M45: =M33+M37+M41 -> 6500 | N45: 0
C46: TOTAL | G46: =SUM(G43:G45) -> 35590197.5 | I46: =SUM(I43:I45) -> 18153757.51 | J46: =SUM(J43:J45) -> 6115047.79 | L46: =SUM(L43:L45) -> 2958185.71 | M46: =SUM(M43:M45) -> 2765915.79 | N46: 1427639.95

Sheet 11-tab_UMR_UBS
A1: TABLEAU 11 - Université de Bretagne Sud (0561718N) - Etablissement principal
A2: ="TABLEAU RETRAÇANT LES MOYENS DES UNITÉS MIXTES DE RECHERCHE - Budget consolidé "&Maquette!B4&" "&Maquette!B5&" "&Maquette!B3 -> TABLEAU RETRAÇANT LES MOYENS DES UNITÉS MIXTES DE RECHERCHE - Budget consolidé initial 2024
A5: POUR INFORMATION DE L'ORGANE DÉLIBÉRANT
A9: données 2023 | C9: Moyens de l’établissement | E9: Moyens hors budget de l’établissement
E10: CNRS | G10: ENSTA BRETAGNE | I10: UBO | K10: ENIB
A11: IRDL UMR 6027 | B11: Personnel | C11: 125 | D11: Emplois | E11: 3 | F11: Emplois | G11: 68 | H11: Emplois | I11: 28 | J11: Emplois | K11: 12 | L11: Emplois | N11: Emplois | P11: Emplois | R11: Emplois
B12: Fonctionnement (dotation sur SCSP) | C12: 121700 | E12: 18000 | G12: 123000 | I12: 18000 | K12: 16000
B13: Investissement (PPI recherche) | K13: 16000
A16: données 2023 (UBS uniquement) | C16: Moyens de l’établissement | E16: Moyens hors budget de l’établissement
E17: Univ de Rennes I | G17: CNRS | I17: INSA | K17: Inria | M17: ENS
A18: IRISA UMR 6074 | B18: Personnel | D18: Emplois | F18: Emplois | H18: Emplois | J18: Emplois | L18: Emplois | N18: Emplois | P18: Emplois | R18: Emplois
B19: Fonctionnement (dotation sur SCSP) | C19: 50000
B20: Investissement (PPI recherche)
C23: Moyens de l’établissement | E23: Moyens hors budget de l’établissement
E24: CNRS | G24: ENIB | I24: ENSTA B | K24: IMT Atl | M24: UBO
A25: Lab-STICC UMR 6285 | B25: Personnel | C25: 31.2 | D25: Emplois | E25: 6.9 | F25: Emplois | G25: 22.55 | H25: Emplois | I25: 44.4 | J25: Emplois | K25: 115.25 | L25: Emplois | M25: 75.45 | N25: Emplois | P25: Emplois | R25: Emplois
B26: Fonctionnement (dotation sur SCSP) | C26: 47000 | E26: 65000 | G26: 50400 | I26: 56000 | K26: 90995 | M26: 91280
B27: Investissement (PPI recherche)
C30: Moyens de l’établissement | E30: Moyens hors budget de l’établissement
E31: CNRS 6538
A32: LGO UMR 6538 | B32: Personnel | C32: 15 | D32: Emplois | F32: Emplois | H32: Emplois | J32: Emplois | L32: Emplois | N32: Emplois | P32: Emplois | R32: Emplois
B33: Fonctionnement (dotation sur SCSP) | C33: 11800 | E33: 2400
B34: Investissement (PPI recherche)
C37: Moyens de l’établissement | E37: Moyens hors budget de l’établissement
E38: CNRS
A39: LMBA UMR 6205 | B39: Personnel | C39: 2 | D39: Emplois | F39: Emplois | H39: Emplois | J39: Emplois | L39: Emplois | N39: Emplois | P39: Emplois | R39: Emplois
B40: Fonctionnement / Investissmeent (dotation sur SCSP) | C40: 12000 | E40: 43500
B41: Investissement (PPI recherche)
C44: Moyens de l’établissement | E44: Moyens hors budget de l’établissement
E45: Université d'Angers | G45: Le Mans Université | I45: CNRS-INSHS
A46: TEMOS UMR 9016 | B46: Personnel | C46: 0.5 | D46: Emplois | E46: 1.5 | F46: Emplois | G46: 0.5 | H46: Emplois | I46: 1 | J46: Emplois | L46: Emplois | N46: Emplois | P46: Emplois | R46: Emplois
B47: Fonctionnement (dotation sur SCSP) | C47: 17100 | E47: 37600 | G47: 23875 | I47: 30000
B48: Investissement (PPI recherche) | E48: 0 | G48: 0 | I48: 0
C51: Moyens de l’établissement | E51: Moyens hors budget de l’établissement
E52: CNRS | G52: UBO
A53: LBCM UMR 6076 | B53: Personnel | C53: 22 | D53: Emplois | E53: 4 | F53: Emplois | G53: 6 | H53: Emplois | J53: Emplois | L53: Emplois | N53: Emplois | P53: Emplois | R53: Emplois
B54: Fonctionnement (dotation sur SCSP) | C54: 33000 | E54: 26000 | G54: 11 710
B55: Investissement (PPI recherche) | C55: 77200 | E55: 16200
A57: note : Les ressources propres des unités (subventions, contrats privés et autres ressources et prestations) ne sont pas incluses dans ce tableau
A58: Le tableau est à renseigner en droits constatés et en ETPT.

Sheet Annexe Synthèse_UBS
A1: ANNEXE 5 - Université de Bretagne Sud (0561718N) - Etablissement principal
A2: ="Synthèse budgétaire et comptable - Budget consolidé "&Maquette!B4&" "&Maquette!B5&" "&Maquette!B3 -> Synthèse budgétaire et comptable - Budget consolidé initial 2024
B4: POUR INFORMATION DE L'ORGANE DÉLIBÉRANT
H6: =IF(Maquette!B4="initial","BI "&Maquette!B5,IF(Maquette!B4="rectificatif","BR "&Maquette!B5,"")) -> BI
B7: Stocks initiaux | D7: 1 | F7: Niveau initial de restes à payer | H7: 6530106.89
D9: 2 | F9: Niveau initial du fonds de roulement | H9: ='6-tab CR_TF_UBS'!H49 -> 9847974.65
D10: 3 | F10: Niveau initial du besoin en fonds de roulement | H10: =H9-H11+0.06 -> -1160192.96
D11: 4 | F11: Niveau initial de la trésorerie | H11: ='6-tab CR_TF_UBS'!H51 -> 11008167.67
E12: 4.a | F12: dont niveau initial de la trésorerie fléchée | H12: 1598534.62
E13: 4.b | F13: dont niveau initial de la trésorerie non fléchée | H13: =H11-H12 -> 9409633.05
B15: Flux de l'année | D15: 5 | F15: Autorisations d'engagement | H15: ='2-tab_aut_budg_UBS'!K28 -> 108598343.7
D17: 6 | F17: Résultat patrimonial | H17: =IF('6-tab CR_TF_UBS'!F14>0,'6-tab CR_TF_UBS'!F14,-'6-tab CR_TF_UBS'!L14) -> -1178667.27
D18: 7 | F18: Capacité d'autofinancement (CAF) | H18: ='6-tab CR_TF_UBS'!F28 -> 1399083.73
D19: 8 | F19: Variation du fonds de roulement | H19: ='6-tab CR_TF_UBS'!L46 -> -2848427
D21: 9 | E21: 9.a | F21: Opérations bilancielles non budgétaires | G21: SENS | H21: =SUM(H22:H24) -> 0
F22: Nouvel emprunt / remboursement de prêt | G22: + / -
F23: Remboursement d'emprunt / prêt accordé | G23: +
F24: Cautionnements et dépôts | G24: - | H24: ='7-tab Plan_tréso_UBS'!O22-'7-tab Plan_tréso_UBS'!O42 -> 0
D26: 10 | E26: 9.a | F26: Opérations comptables non retraitées par la CAF, non budgétaires | G26: SENS | H26: =SUM(H27:H30) -> 0
F27: Variation des stocks | G27: + / -
F28: Production immobilisée | G28: +
F29: Charges sur créances irrécouvrables | G29: -
F30: Produits divers de gestion courante | G30: +
D32: 11 | E32: 9.b | F32: Décalages de flux de trésorerie liés aux opérations budgétaires | G32: SENS | H32: =H34-H36 -> 623329.07
F33: Ecart entre les produits / ressources et les encaissements relatifs à des opérations sur exercices antérieurs | G33: + / -
F34: Ecart entre les produits / ressources et les encaissements relatifs à des opérations de l'exercice en cours | G34: + / - | H34: 909028.07
F35: Ecart entre les charges / immobilisations et les décaissements relatifs à des opérations sur exercices antérieurs | G35: + / -
F36: Ecart entre les charges / immobilisations et les décaissements relatifs à des opérations de l'exercice en cours | G36: + / - | H36: 285699
D38: 12 | F38: Solde budgétaire = 8 - 9 - 10 - 11 | H38: =H19-H26-H32-H21 -> -3471756.07
E39: 12.a | F39: Recettes budgétaires | H39: ='2-tab_aut_budg_UBS'!R28 -> 104186031.1
E40: 12.b | F40: Crédits de paiement ouverts | H40: ='2-tab_aut_budg_UBS'!L28 -> 107657787.2
D42: 13 | E42: 9.c | F42: Flux de trésorerie liés aux opérations au nom et pour le compte de tiers | H42: ='4-tab_financier_UBS'!M20-'4-tab_financier_UBS'!G20 -> -220236
D44: 14 | E44: 9.c | F44: Flux de trésorerie liés aux autres encaissements / décaissements sur comptes de tiers (non budgétaires) | H44: ='4-tab_financier_UBS'!M22-'4-tab_financier_UBS'!G22 -> 0
D46: 15 | F46: Variation de la trésorerie = 12 - 13 - 14 | H46: =H38+H42-H44 -> -3691992.07
E47: 15.a | F47: dont variation de la trésorerie fléchée | H47: ='4-tab_financier_UBS'!G27-'4-tab_financier_UBS'!M27 -> -947895.42
E48: 15.b | F48: dont variation de la trésorerie non fléchée | H48: ='4-tab_financier_UBS'!G29-'4-tab_financier_UBS'!M29 -> -2744096.65
D50: 16 | F50: Variation du besoin en fonds de roulement = 9 + 10 + 11 - 13 + 14 | H50: =H26+H32-H42+H21+H44 -> 843565.07
D52: 17 | F52: Restes à payer | H52: =H15-H40 -> 940556.56
B54: Stocks finaux | D54: 18 | F54: Niveau final de restes à payer | H54: =H7+H52 -> 7470663.45
D56: 19 | F56: Niveau final du fonds de roulement | H56: =H9+H19 -> 6999547.65
D57: 20 | F57: Niveau final du besoin en fonds de roulement | H57: =H56-H58 -> -316627.95
D58: 21 | F58: Niveau final de la trésorerie | H58: =H11+H46 -> 7316175.6
E59: 21.a | F59: dont niveau final de la trésorerie fléchée | H59: =H12+H47 -> 650639.2
E60: 21.b | F60: dont niveau final de la trésorerie non fléchée | H60: =H13+H48 -> 6665536.4
F62: Comptabilité budgétaire
F63: Comptabilité générale

Sheet Annexe PAA_ETAB
B1: ANNEXE 14 - Université de Bretagne Sud (0561718N) - Etablissement principal
B2: Plan d'actions achat - Prévisionnel
B4: Identité du projet | K4: Mutualisation du besoin | P4: Objectif de gain achat | T4: Autres objectifs de politique publique | Y4: Suivi du marché
B5: Code CPV à 2 positions | C5: Niveau le plus fin de votre nomenclature achat | D5: Objet du marché, du marché subséquent ou de l'action de progrès | E5: Type de leviers utilisés indiquer maximum 2 leviers | G5: Date de notification prévisionnelle | H5: Durée du contrat en mois (reconductions comprises) | I5: Volume des achats prévisionnel en euros HT | J5: Renouvellement (R) ou nouveau marché (N) | K5: Marché subséquent d'un accord-cadre (O/N) | L5: Accord-cadre avec des entités extérieures (O/N) voir ci-dessous | M5: Groupement de commande (O/N) voir ci-dessous | N5: Recours à un marché du SAE (O/N) | O5: Recours à une centrale d'achats UGAP/AMUE (O/N) | P5: Performance de l'acheteur en prévisionnel sur la durée totale du marché (en euros HT) | Q5: Pourcentage | R5: Chiffre d'affaires attendu base 12 mois en euros HT | S5: Performance de l'acheteur base 12 mois | T5: Rédaction du contrat adaptée à une PME (O/N) | U5: Projet ouvert à des achats innovants (O/N) | W5: Intégration de clauses environnementales (O/N) voir ci-dessous | X5: Intégration de clauses sociales (O/N) voir ci-dessous | Y5: Points d'attention
U6: oui ou non | V6: si oui indiquer les coordonnées de l'acheteur (nom, prénom, adresse électronique)
B7: 55520000 | C7: CB 21 | D7: Prestations de services ; cocktails Lorient | E7: juste besoin | F7: suivi fournisseur | G7: 2024-03-01 | H7: 48 | J7: R | K7: N | L7: N | M7: N | N7: N | O7: N | T7: N | U7: Non | W7: O | X7: O
B8: 55520000 | C8: CB 21 | D8: Prestations de services ; cocktails Vannes | E8: juste besoin | F8: suivi fournisseur | G8: 2024-03-01 | H8: 48 | J8: R | K8: N | L8: N | M8: N | N8: N | O8: N | T8: N | U8: Non | W8: O | X8: O
B9: 55520000 | C9: CB 21 | D9: Prestations de services ; plateaux repas Lorient | E9: juste besoin | F9: suivi fournisseur | G9: 2024-03-01 | H9: 48 | J9: R | K9: N | L9: N | M9: N | N9: N | O9: N | T9: N | U9: Non | W9: O | X9: O
B10: 55520000 | C10: CB 21 | D10: Prestations de services ; plateaux repas Vannes | E10: juste besoin | F10: suivi fournisseur | G10: 2024-03-01 | H10: 48 | J10: R | K10: N | L10: N | M10: N | N10: N | O10: N | T10: N | U10: Non | W10: O | X10: O
B11: 31200000 | C11: AD.25 | D11: Acquistion et installation de bornes de recharge pour véhicules électriques | E11: juste besoin | F11: suivi fournisseur | J11: N | K11: N | L11: N | M11: N | N11: N | O11: N | T11: N | U11: Non | W11: O | X11: O
B12: 71000000-8 | C12: IB.31 | D12: Logiciels (tranga) | E12: juste besoin | F12: suivi fournisseur | G12: 2024-06-30 | H12: 48 | J12: N | K12: N | L12: N | M12: N | N12: N | O12: N | T12: N | U12: Non | W12: O | X12: O
B13: 42994200 | D13: Matériel de recherche Tranga | E13: juste besoin | F13: suivi fournisseur | G13: 2024-06-30 | H13: 48 | J13: N | K13: N | L13: N | M13: N | N13: N | O13: N | T13: N | U13: Non | W13: O | X13: O
B14: 42994200 | D14: Matériel de recherche CPER | E14: juste besoin | F14: suivi fournisseur | G14: 2024-12-31 | J14: N | K14: N | L14: N | M14: N | N14: N | O14: N | T14: N | U14: Non | W14: O | X14: O
B15: 31000000-6 | C15: BD.21 | D15: Petit matériel électrique | E15: juste besoin | F15: suivi fournisseur | G15: 2024-12-31 | H15: 48 | J15: N | K15: N | L15: N | M15: N | N15: N | O15: N | T15: N | U15: Non | W15: O | X15: O
B16: 80000000 | C16: EC.14 | D16: Formation | E16: juste besoin | F16: suivi fournisseur | G16: 2024-12-31 | H16: 48 | J16: N | K16: N | L16: N | M16: N | N16: N | O16: O | T16: N | U16: Non | W16: O | X16: O
C17: EB.16 | D17: Interreg contrôle 1er niveau | E17: juste besoin | F17: suivi fournisseur | G17: 2024-12-31 | H17: 48 | J17: R | K17: N | L17: N | M17: O | N17: N | O17: N | T17: N | U17: Non | W17: O | X17: O
B18: 90911200 | C18: BB.11 | D18: Nettoyage des locaux | E18: juste besoin | F18: suivi fournisseur | G18: 2024-09-30 | H18: 48 | J18: R | K18: N | L18: N | M18: N | N18: N | O18: N | T18: N | U18: Non | W18: O | X18: O
B19: 90520000 | C19: BB.31 | D19: Collecte et élimination des déchets dangereux | E19: juste besoin | F19: suivi fournisseur | G19: 2024-08-31 | H19: 48 | J19: R | K19: N | L19: N | M19: N | N19: N | O19: N | T19: N | U19: Non | W19: O | X19: O
B20: 9310000 | C20: BA.01 | D20: Fourniture électricité | E20: juste besoin | F20: suivi fournisseur | G20: 2024-08-31 | H20: 24 | J20: R | K20: N | L20: N | M20: N | N20: N | O20: O | T20: N | U20: Non | W20: O | X20: O
B21: 30200000-1 | D21: Commutateur éthernet | E21: juste besoin | F21: suivi fournisseur | G21: 2024-10-31 | H21: 48 | J21: R | K21: N | L21: N | M21: N | N21: N | O21: N | T21: N | U21: Non | W21: O | X21: O
B22: 44320000-9 | D22: Cables et réseaux | E22: juste besoin | F22: suivi fournisseur | G22: 2024-10-31 | H22: 48 | J22: R | K22: N | L22: N | M22: N | N22: N | O22: N | T22: N | U22: Non | W22: O | X22: O
B23: 71000000-8 | C23: IB.11/IB.12 | D23: Logiciels | E23: juste besoin | F23: suivi fournisseur | G23: 2024-06-30 | H23: 48 | J23: R | K23: N | L23: N | M23: N | N23: N | O23: O | T23: N | U23: Non | W23: O | X23: O
R24: Total :
B25: Pour les procédures portées par l'établissement, accords-cadres comme groupements de commande, merci d'indiquer ici | S25: Objectif : X %
B26: (si porteur de plusieurs accords-cadres ou groupement de commande, remettre l'objet avec le noms des autres parties prenantes) :
C27: noms des établissements parties prenantes à la procédure : | S27: du montant annuel des achats (HT)
B30: Commentaires sur les clauses sociales (freins et accélérateurs à l'intégration de clauses, recrutement de personnel handicapé…) :
B34: Commentaires sur les clauses environnementales (freins et accélérateurs à l'intégration de clauses…) :
B38: Actions de structuration de la fonction achat lancées en N-1 (recrutement d'un référent "développement durable", d'acheteurs experts…)

Sheet Annexe immo_ETAB
B2: ANNEXE 15 - Université de Bretagne Sud (0561718N) : Etablissement principal + Fondation
B3: Annexe immobilière
B5: POUR INFORMATION DE L'ORGANE DÉLIBÉRANT
B8: Opérateur : Université Bretagne Sud | D8: Réunion de l'organe délibérant du 12 décembre 2023 | I8: Commentaires portant sur la stratégie immobilière de l'établissement : (notamment sur l'avancement des opérations prévues dans le SPSI, la levée des réserves de France Domaine ou du CIE, les économies réalisées ou programmées,...)
I9: L'Université a libéré, en 2018, les dernières surfaces qu'elle occupait au sein du bâtiment Pôle de Formations Sanitaires et Sociales (PFSS) à Lorient. L'usage de ce bâtiment de 4868m2 de SUB se répartit, depuis, exclusivement entre deux utilisateurs tiers (l'IFPS de Lorient et l'organisme de formations Askoria). Pour autant, ce bâtiment propriété de l'État demeure confié en gestion à l'UBS via les conventions d'utilisation passées avec France-Domaine. N'ayant plus d'intérêt à conserver ce bâtiment, le CA de l'Université a pris une délibération, le 14 décembre 2018, approuvant l'inutilité de ce bien pour l'Établissement. Le Centre Hospitalier Bretagne Sud dont dépend l'IPFS de Lorient, qui avait marqué son souhait d'acquérir ce bâtiment, s'oriente désormais vers un déménagement à moyen-terme à proximité de l'Hôpital du Scorff. Les échanges, qui associent les services des Domaines, le Rectorat, l'UBS et les utilisateurs du site quant à une révision de la convention d'usage du site, sont aujourd'hui au point mort. La Région Bretagne a initié, fin 2023, une étude visant à définir et valoriser les travaux qui seraient à mener dans le PFSS pour qu'il réponde aux besoins de ses deux utilisateurs ainsi que les montages administratifs et financiers pour aboutir à une organisation pérenne (en solution alternative à une nouvelle construction à proximité de l'Hôpital). L'UBS participe à cette démarche en rappelant sa volonté de se départir de ce site. Par ailleurs, et dans un contexte de doublement des groupes accueillis sur la filière cyber-défense de l'ENSIBS, des espaces au sein de la délégation de Vannes de la CCI du Morbihan lui avaient été mis à disposition dans le cadre d'une Convention d'Occupation Temporaire. La surface occupée sur l'année universitaire 2020/2021 était de 560m2, pour un coût de 56k€ par an. A la rentrée 2021/2022, une surface complémentaire de 326m2 était occupée, pour coût global passant à 90k€/an. Le site de la délégation vannetaise de la CCI a été racheté par Golfe du Morbihan - Vannes Agglomération, en novembre 2021, en vue de la réalisation du projet de pôle numérique de Vannes prévu au CPER 2021-2027. Les conditions d'usage antérieures de ces espaces ont été maintenus après cette cession. Par contre, faisant suite à la demande du nouveau propriétaire du site, qui souhaitait que ce bâtiment soit libéré à l'été 2022 en vue de la réalisation de l'opération "pôle numérique", l'activité de l'ENSIBS qui s'y déroulait a été entièrement réinternalisée sur le campus de Tohannic à la rentrée universitaire de septembre 2022. Ainsi, l'UBS n'occupe plus, depuis le 31/07/2022, aucun des 886m2 qui lui était antérieurement mis à disposition au sein du bâtiment CCI. Les années 2022 et 2023 ont été fortement structurées autour de la réalisation des opérations d'amélioration de la performance énergétique du patrimoine, pour lesquelles des financements de l'Etat et de l'Europe ont été obtenus : - la réhabilitation énergétique du bâtiment Coppens à Vannes, pour un montant de 3,6M€ issu du plan de relance de l'économie déployé par l'Etat. Les travaux, qui ont débuté au premier trimestre 2021, portaient sur l'isolation thermique par l'extérieur des façades, le remplacement des menuiseries extérieures, le reprise de l'isolation des toitures, le remplacement des chaudières, la mise en place d'une installation de production d'électricité photovoltaïque en toiture, ainsi que la migration Led des éclairages. Ils se sont achevés début 2023. - la réhabilitation énergétique du bâtiment Paquebot à Lorient, bénéficiant de financements européens du programme React-EU à hauteur de 1,8M€. L'opération concernait l'isolation thermique par l'extérieur des façades, le remplacement des menuiseries extérieures, ainsi que la migration Led des éclairages. Les travaux ont débuté en mai 2022 et ont été achevés début 2023, conformément aux engagements pris auprès de l'Europe. - les opérations lauréates des appels à projets - plans de résilience énergétique 1 et 2 lancés par l'Etat pour un montant global de plus de 460k€. Les actions réalisées entre 2022 et 2023 portaient en particulier sur des remplacement de chaudières et d'équipements de chaufferie, le remplacement de Gestions Techniques Bâtimentaires, l'isolation de vides-sanitaires ou encore l'installation de bornes de recharges pour véhicules électriques. Par ailleurs, les travaux de réaménagement de l'ancien gymnase de Kerjulaude à Lorient en espaces de sport, vie étudiante et culturelle ont démarré à l'été 2023, avec un objectif de mise en service fin 2024/début 2025. L'opération a intégré l'achat de ce site, qui appartenait à Lorient-Agglomération, fin 2022 (pour un prix de 50k€). Enfin, le projet de SPSI portant sur la période 2023/2027 a été réadressé en mai 2023 aux entités ayant à formuler un avis avant approbation de ce Schéma Directeur en mai 2023. Cette version intégrait les demandes de compléments que ces mêmes entités avaient précédemment émises suite à la transmission par l'UBS de la première mouture du document. D'un point de vue des dépenses de fonctionnement, 2023 connait une augmentation encore plus sensible des charges de chauffage et d'électricité qu'en 2022, du fait de l'envolée des prix de l'énergie. Ainsi, les dépenses énergétiques de l'UBS seront de l'ordre de de 1,95M€ pour 2023, contre 1,35M€ pour 2022 et 1M€ en 2021, malgré le bouclier tarifaire mis en place par l'Etat et les travaux énergétique menés ces dernières années pour réduire les consommations. La lisibilité des projections pour 2024 demeure extrêmement compliquée, aussi bien du fait de la volatilité des prix que l'incertitude quant au maintien d'un dispositif de bouclier tarifaire de la part de l'Etat (qui représente autour de 250k€ pour 2023). NB : les surfaces totales occupées figurant dans les annexes immobilières des précédents exercices étaient indiquées en SHON. Elles aparaissent ici en SUB
E10: exécution (année 2022) | F10: dernier BR (année 2023)
B11: Données physiques
B12: Nombre de bâtiments occupés | D12: X | E12: 23 | F12: 23
B13: dont biens propres | D13: X | E13: 2 | F13: 2
B14: dont biens domaniaux | D14: X | E14: 21 | F14: 21
B15: dont prises à bail | D15: X | E15: 0 | F15: 0
B16: dont autres mises à disposition (ex. : collectivités territoriales) | D16: X | E16: 0 | F16: 0
B17: Surface totale occupée (m² - SUB) | D17: X | E17: 78689 | F17: 78689
B18: dont biens propres | D18: X | E18: 1786 | F18: 1786
B19: dont biens domaniaux | D19: X | E19: 76903 | F19: 76903
B20: dont prises à bail | D20: X
B21: dont autres mises à disposition (ex. : collectivités territoriales) | D21: X | E21: 0 | F21: 0
B22: Ratio m² SUN / poste de travail (*) | D22: X
D25: classe de compte (n°) | E25: exécution (N-1) | F25: dernier BR (N)
B26: Dépenses de fonctionnement à l'€ près
B27: Redevances de crédit-bail immobilier (*) | D27: 6125 | E27: 0 | F27: 0
B28: Locations immobilières (*) | D28: 6132 | E28: 160207.64 | F28: 76691.66
B29: Entretien et réparations sur biens immobiliers (*) | D29: 6152 | E29: 525535.92 | F29: 494071.73
B31: Dépenses d'acquisition à l'€ près
B32: Acquisition de biens propres ou de biens domaniaux | D32: X | E32: 0 | F32: 50000
B34: Dépenses d'investissement à l'€ près
B35: Réalisation de travaux structurants sur les biens propres ou domaniaux | D35: X | E35: 2 736 225 | F35: 2 141 179
B37: Produits de cession d'immobilisations corporelles à l'€ près
B38: dont biens propres | D38: 7752 | E38: 0 | F38: 0
B39: dont biens domaniaux | D39: 7752 | E39: 0 | F39: 0
B50: (*) Les données sont disponibles à la saisie dans le système d'informations des opérateurs de l'Etat (SI OPE)
